Transaction Date,Department,Beneficiary,Summary of Expenditure,Amount,Net,Vat,Merchant code,Merchant Code Description
28/12/17,Tri-Borough Childrens Services,DLR,Staff travelling expenses,12.30,12.30,.00,4112,Passenger Railways
28/12/17,Tri-Borough Childrens Services,WASABI VICTORIA STATIO,Subsistence Expenses,5.99,5.99,.00,5812,Eating places and Restaurants
28/12/17,City Management and Communities,Trainline,Staff travelling expenses,47.38,47.38,.00,4112,Passenger Railways
28/12/17,City Management and Communities,easyJetET ETCB3QF,Staff travelling expenses,36.22,36.22,.00,3245,EasyJet Airlines
28/12/17,City Management and Communities,GATWICK EXPRSS WEB,Staff travelling expenses,17.80,17.80,.00,4112,Passenger Railways
28/12/17,City Management and Communities,PARKING SERVICES,Tport - Prkng & Congestion Chgs,4.15,4.15,.00,7523,Automobile Parking Lots and Garages
28/12/17,City Management and Communities,MAKRO SELF SERVICE CHA,"Equipment, furniture and materials",98.47,90.27,8.20,5300,Wholesale Clubs
28/12/17,Tri-Borough ASC and NHS Integrated Commi,CENTRAL BAR,Subsistence Expenses,11.34,9.45,1.89,5812,Eating places and Restaurants
28/12/17,Tri-Borough ASC and NHS Integrated Commi,WESTFIELD SHOPPING,Tport - Prkng & Congestion Chgs,8.00,8.00,.00,7523,Automobile Parking Lots and Garages
28/12/17,Tri-Borough Childrens Services,WWW.SHURGARD.CO.UK,Section 17 Other,20.00,20.00,.00,7399,"Business Services, Not Elsewhere Classified"
28/12/17,Tri-Borough Childrens Services,POST OFFICE COUNTER,LAC Contact,6.45,6.45,.00,9402,Postal Services - Government Only
28/12/17,Tri-borough Libraries and Archives,OPP LTD STERLING WEB,Training,1065.00,1065.00,.00,7399,"Business Services, Not Elsewhere Classified"
28/12/17,PPC,AMAZON UK PRIME AMZN.C,Subscriptions,7.99,7.99,.00,5968,Direct Marketing - Continuity/Subscription Merchant
28/12/17,Tri-Borough Childrens Services,LB BRENT PARKING RINGG,Tport - Prkng & Congestion Chgs,1.40,1.40,.00,7523,Automobile Parking Lots and Garages
28/12/17,Tri-Borough Childrens Services,KFC FELTHAM,Subsistence Expenses,5.99,5.99,.00,5814,Fast Food Restaurants
28/12/17,Tri-Borough Childrens Services,WESTMINSTER PARKING,Tport - Prkng & Congestion Chgs,7.40,7.40,.00,7523,Automobile Parking Lots and Garages
27/12/17,Tri-Borough Childrens Services,PREMIER INN44528260,Staff travelling expenses,290.00,290.00,.00,3811,Premier Travel Inn
28/12/17,Tri-Borough Childrens Services,LITTLE VENICE SPOR,Activities and Events,6.80,6.80,.00,7997,"Membership Clubs (Sports, Recreation, Athletic), Country Clubs, and Private Golf Courses"
28/12/17,Tri-Borough ASC and NHS Integrated Commi,HMCOURTS-SERVICE.G,Fees,150.00,150.00,.00,9222,Fines
28/12/17,Tri-Borough ASC and NHS Integrated Commi,OYSTER RENEW WEB,Staff travelling expenses,50.00,50.00,.00,4112,Passenger Railways
28/12/17,Tri-Borough ASC and NHS Integrated Commi,OYSTER RENEW WEB,Staff travelling expenses,50.00,50.00,.00,4112,Passenger Railways
28/12/17,Tri-Borough ASC and NHS Integrated Commi,OYSTER RENEW WEB,Staff travelling expenses,50.00,50.00,.00,4112,Passenger Railways
28/12/17,Tri-Borough ASC and NHS Integrated Commi,CENTRAL BAR,"Equipment, furniture and materials",6.49,6.49,.00,5812,Eating places and Restaurants
28/12/17,Tri-Borough Childrens Services,ARGOS RETAIL GROUP,Section 17 Other,39.99,39.99,.00,5310,Discount Stores
28/12/17,Tri-Borough Childrens Services,UBER TRIP R5PKF HELP.U,"Equipment, furniture and materials",9.24,9.24,.00,4121,Taxicabs and Limousines
28/12/17,Tri-Borough Childrens Services,Amazon UK Marketplace,"Equipment, furniture and materials",18.99,15.82,3.17,5942,Book Stores
28/12/17,Tri-Borough ASC and NHS Integrated Commi,TRAINLINE,Client travelling expenses,-27.00,-27.00,.00,4112,Passenger Railways
28/12/17,City Management and Communities,ARGOS RETAIL GROUP,IT Hardware Purchase,19.00,19.00,.00,5310,Discount Stores
28/12/17,City Management and Communities,ARGOS RETAIL GROUP,IT Hardware Purchase,19.00,19.00,.00,5310,Discount Stores
28/12/17,City Management and Communities,ARGOS RETAIL GROUP,IT Hardware Purchase,-19.00,-19.00,.00,5310,Discount Stores
28/12/17,Tri-Borough ASC and NHS Integrated Commi,THE EARLY DERBY,Subsistence Expenses,5.39,5.39,.00,5812,Eating places and Restaurants
28/12/17,Tri-Borough Childrens Services,DOCKLANDS LIGHT RA,Staff travelling expenses,10.00,10.00,.00,4112,Passenger Railways
27/12/17,Tri-borough Libraries and Archives,Amazon UK Marketplace,"Equipment, furniture and materials",52.47,52.47,.00,5942,Book Stores
27/12/17,Tri-Borough Childrens Services,WWW.ARGOS.CO.UK,Section 17 Other,124.98,124.98,.00,5310,Discount Stores
27/12/17,Tri-Borough Childrens Services,WWW.ARGOS.CO.UK,Section 17 Other,43.93,43.93,.00,5310,Discount Stores
27/12/17,Chief of Staff,POSTOFFICE SELFSERVICE,Postage,20.15,20.15,.00,9402,Postal Services - Government Only
27/12/17,Tri-borough Libraries and Archives,Amazon UK Marketplace,Activities and Events,12.99,10.40,2.59,5942,Book Stores
27/12/17,Tri-borough Libraries and Archives,Amazon UK Marketplace,"Equipment, furniture and materials",5.81,4.84,.97,5942,Book Stores
27/12/17,Chief of Staff,WILKO RETAIL LIMIT,"Equipment, furniture and materials",10.20,10.20,.00,5722,Household Appliance Stores
27/12/17,Tri-Borough Childrens Services,SHREE GANESH,Client travelling expenses,15.50,15.50,.00,5994,News Dealers and Newsstands
26/12/17,Tri-Borough Childrens Services,AMAZON EU AMAZON.CO.UK,Section 17 Other,149.60,124.66,24.94,5999,Miscellaneous and Specialty Retail Stores
26/12/17,City Management and Communities,OYSTER RENEW WEB,Staff travelling expenses,-20.00,-20.00,.00,4112,Passenger Railways
22/12/17,Tri-borough Libraries and Archives,ZAZZLE GBP,"Print, Pub & adverts",-982.95,-903.86,-79.09,5399,Misc. General Merchandise
26/12/17,City Management and Communities,OYSTER AUTOTOPUP,Staff travelling expenses,20.00,20.00,.00,4112,Passenger Railways
26/12/17,City Management and Communities,OYSTER RENEW WEB,Staff travelling expenses,-20.00,-20.00,.00,4112,Passenger Railways
21/12/17,Chief of Staff,AMAZON EU AMAZON.CO.UK,"Equipment, furniture and materials",53.60,46.80,6.80,5999,Miscellaneous and Specialty Retail Stores
23/12/17,City Management and Communities,OYSTER AUTOTOPUP,Staff travelling expenses,40.00,40.00,.00,4112,Passenger Railways
22/12/17,Tri-Borough ASC and NHS Integrated Commi,HMCOURTS-SERVICE.G,Legal Fees,75.00,75.00,.00,9222,Fines
22/12/17,Tri-borough Libraries and Archives,AMAZON EU AMAZON.CO.UK,"Equipment, furniture and materials",12.95,12.95,.00,5999,Miscellaneous and Specialty Retail Stores
23/12/17,Tri-borough Libraries and Archives,AMAZON EU AMAZON.CO.UK,"Equipment, furniture and materials",2.75,2.75,.00,5999,Miscellaneous and Specialty Retail Stores
23/12/17,Tri-borough Libraries and Archives,AMAZON EU AMAZON.CO.UK,"Equipment, furniture and materials",12.99,12.99,.00,5999,Miscellaneous and Specialty Retail Stores
22/12/17,City Management and Communities,OYSTER BUS AUTOTOP,Staff travelling expenses,40.00,40.00,.00,4112,Passenger Railways
23/12/17,Tri-Borough Childrens Services,OYSTER AUTOTOPUP,Staff travelling expenses,20.00,20.00,.00,4112,Passenger Railways
21/12/17,Tri-Borough Childrens Services,AMAZON EU AMAZON.CO.UK,Section 17 Other,15.14,12.62,2.52,5999,Miscellaneous and Specialty Retail Stores
21/12/17,Bi-Borough Corporate Services,BRITISH A 12587663009140,Staff travelling expenses,157.69,157.69,.00,3005,BRITISH AIRWAYS
21/12/17,Bi-Borough Corporate Services,BRITISH A 12587663024270,Staff travelling expenses,157.69,157.69,.00,3005,BRITISH AIRWAYS
21/12/17,Bi-Borough Corporate Services,BRITISH A 12587663025810,Staff travelling expenses,157.69,157.69,.00,3005,BRITISH AIRWAYS
22/12/17,Bi-Borough Corporate Services,FlybeBPNC BPNCML,Staff travelling expenses,104.02,104.02,.00,4511,"Airlines, Air Carriers ( not listed elsewhere)"
22/12/17,Bi-Borough Corporate Services,FlybeBPPL BPPLP7,Staff travelling expenses,232.28,232.28,.00,4511,"Airlines, Air Carriers ( not listed elsewhere)"
21/12/17,Tri-Borough ASC and NHS Integrated Commi,PREMIER INN44022890,Staff travelling expenses,184.97,184.97,.00,3811,Premier Travel Inn
21/12/17,Tri-Borough ASC and NHS Integrated Commi,PREMIER INN44022890,Staff travelling expenses,171.97,171.97,.00,3811,Premier Travel Inn
21/12/17,Bi-Borough Corporate Services,PREMIER INN44022890,Staff travelling expenses,183.97,183.97,.00,3811,Premier Travel Inn
21/12/17,Bi-Borough Corporate Services,PREMIER INN44022890,Staff travelling expenses,178.97,178.97,.00,3811,Premier Travel Inn
21/12/17,Bi-Borough Corporate Services,PREMIER INN44022890,Staff travelling expenses,236.96,236.96,.00,3811,Premier Travel Inn
21/12/17,Bi-Borough Corporate Services,PREMIER INN44022890,Staff travelling expenses,231.96,231.96,.00,3811,Premier Travel Inn
21/12/17,Tri-Borough Childrens Services,MOTHERCARE DIRECT-E-CO,Section 17 Other,89.98,74.98,15.00,5311,Department Stores
22/12/17,Tri-Borough Childrens Services,LUL TICKET MACHINE,Staff travelling expenses,12.30,12.30,.00,4112,Passenger Railways
22/12/17,Tri-Borough ASC and NHS Integrated Commi,WWW.ARGOS.CO.UK,ASC Transfer Payments - other,163.94,163.94,.00,5310,Discount Stores
22/12/17,PPC,OYSTER AUTOTOPUP,Staff travelling expenses,20.00,20.00,.00,4112,Passenger Railways
22/12/17,Tri-borough Libraries and Archives,OPP LTD STERLING WEB,Training,321.00,319.50,1.50,7399,"Business Services, Not Elsewhere Classified"
22/12/17,Bi-Borough Corporate Services,POST OFFICE COUNTER,Postage,12.90,12.90,.00,9402,Postal Services - Government Only
22/12/17,Chief of Staff,OYSTER AUTOTOPUP,Staff travelling expenses,20.00,20.00,.00,4112,Passenger Railways
22/12/17,Tri-Borough Childrens Services,GRO HM PASSPORT OFFICE,LAC Contact,9.25,9.25,.00,9399,Government Services ( Not Elsewhere Classified)
22/12/17,Tri-Borough Childrens Services,TASKRABBIT,Section 17 Other,80.00,80.00,.00,7299,Miscellaneous Personal Services ( not elsewhere classifies)
22/12/17,City Management and Communities,WWW.ISLINGTON.GOV.,Tport - Prkng & Congestion Chgs,5.20,5.14,.06,7523,Automobile Parking Lots and Garages
22/12/17,Bi-Borough Corporate Services,AERLING   2CBE5B PASKO 0,Staff travelling expenses,96.99,96.99,.00,3043,AER LINGUS
22/12/17,City Management and Communities,OYSTER BUS AUTOTOP,Staff travelling expenses,40.00,40.00,.00,4112,Passenger Railways
22/12/17,Tri-Borough Childrens Services,TCR - WARREN ST,Activities and Events,2.75,2.75,.00,5814,Fast Food Restaurants
20/12/17,Tri-Borough ASC and NHS Integrated Commi,TRI BOROUGH- LISSON GR,Staff travelling expenses,2.00,2.00,.00,5811,Caterers
22/12/17,Tri-Borough ASC and NHS Integrated Commi,CO-OP GROUP 070790,Day Opportunities,8.79,8.79,.00,5411,Grocery Stores
20/12/17,Tri-Borough ASC and NHS Integrated Commi,TRI BOROUGH- LISSON GR,Staff travelling expenses,4.30,4.30,.00,5811,Caterers
22/12/17,Tri-Borough ASC and NHS Integrated Commi,OYSTER BUS AUTOTOP,Staff travelling expenses,20.00,20.00,.00,4112,Passenger Railways
24/12/17,Tri-Borough ASC and NHS Integrated Commi,OYSTER BUS AUTOTOP,Staff travelling expenses,20.00,20.00,.00,4112,Passenger Railways
22/12/17,City Management and Communities,OYSTER AUTOTOPUP,Staff travelling expenses,40.00,40.00,.00,4112,Passenger Railways
22/12/17,Tri-borough Libraries and Archives,SAINSBURYS SAC (4367),Hospitality,.80,.80,.00,5411,Grocery Stores
22/12/17,Tri-borough Libraries and Archives,TESCO STORES 3012,Hospitality,17.97,17.97,.00,5411,Grocery Stores
22/12/17,PPC,123-REG.CO.UK,IT Software Purchase,23.98,23.98,.00,4816,Computer Network/Information Services
23/12/17,PPC,HOO HOOTSUITE MEDIA I,Subscriptions,23.98,19.98,4.00,5968,Direct Marketing - Continuity/Subscription Merchant
22/12/17,Tri-Borough Childrens Services,AMAZON SVCS EU-UK AMAZ,Stationery,254.25,254.25,.00,5942,Book Stores
25/12/17,Tri-Borough Childrens Services,OYSTER BUS AUTOTOP,Client travelling expenses,20.00,20.00,.00,4112,Passenger Railways
23/12/17,City Management and Communities,OYSTER AUTOTOPUP,Staff travelling expenses,20.00,20.00,.00,4112,Passenger Railways
23/12/17,Tri-Borough ASC and NHS Integrated Commi,OYSTER BUS AUTOTOP,Staff travelling expenses,20.00,20.00,.00,4112,Passenger Railways
23/12/17,City Management and Communities,OYSTER AUTOTOPUP,Staff travelling expenses,20.00,20.00,.00,4112,Passenger Railways
24/12/17,City Management and Communities,OYSTER AUTOTOPUP,Staff travelling expenses,20.00,20.00,.00,4112,Passenger Railways
22/12/17,City Management and Communities,PRET A MANGER,Subsistence Expenses,5.35,5.35,.00,5812,Eating places and Restaurants
25/12/17,City Management and Communities,DISCLOSURE & BARRING,DBS Police checks,13.00,13.00,.00,9399,Government Services ( Not Elsewhere Classified)
22/12/17,Tri-Borough ASC and NHS Integrated Commi,OYSTER AUTOTOPUP,Staff travelling expenses,20.00,20.00,.00,4112,Passenger Railways
23/12/17,Tri-Borough ASC and NHS Integrated Commi,OYSTER AUTOTOPUP,Staff travelling expenses,20.00,20.00,.00,4112,Passenger Railways
22/12/17,Tri-Borough Childrens Services,Amazon UK Marketplace,"Equipment, furniture and materials",9.98,9.98,.00,5942,Book Stores
22/12/17,Tri-Borough Childrens Services,Amazon UK Marketplace,Stationery,4.99,4.99,.00,5942,Book Stores
22/12/17,City Management and Communities,OYSTER AUTOTOPUP,Staff travelling expenses,20.00,20.00,.00,4112,Passenger Railways
22/12/17,Tri-Borough Childrens Services,WESTMINSTER PARKING,Tport - Prkng & Congestion Chgs,3.70,3.70,.00,7523,Automobile Parking Lots and Garages
24/12/17,PPC,MAILCHIMP    MONTHLY,Subscriptions,965.55,886.64,78.91,5968,Direct Marketing - Continuity/Subscription Merchant
22/12/17,City Management and Communities,PRET A MANGER,Subsistence Expenses,6.35,6.35,.00,5812,Eating places and Restaurants
22/12/17,PPC,O2 UK PAYMENT,Telephony,84.29,84.29,.00,4814,Fax services
21/12/17,Tri-Borough ASC and NHS Integrated Commi,OYSTER AUTOTOPUP,Staff travelling expenses,20.00,20.00,.00,4112,Passenger Railways
14/12/17,PPC,BLOOMSBURY FLOWERSLONDON,"Equipment, furniture and materials",-40.00,-40.00,.00,5942,Book Stores
21/12/17,City Management and Communities,OYSTER AUTOTOPUP,Staff travelling expenses,20.00,20.00,.00,4112,Passenger Railways
21/12/17,"Growth, Planning and Housing",OYSTER BUS AUTOTOP,Staff travelling expenses,40.00,40.00,.00,4112,Passenger Railways
21/12/17,Tri-Borough Childrens Services,SOMERSET COUNTY COUNCI,Section 17 Other,26.00,26.00,.00,9399,Government Services ( Not Elsewhere Classified)
21/12/17,Tri-Borough ASC and NHS Integrated Commi,STARBUCKS,Day Opportunities,6.10,6.10,.00,5814,Fast Food Restaurants
21/12/17,Tri-Borough ASC and NHS Integrated Commi,OYSTER AUTOTOPUP,Staff travelling expenses,20.00,20.00,.00,4112,Passenger Railways
21/12/17,Tri-Borough ASC and NHS Integrated Commi,OYSTER AUTOTOPUP,Staff travelling expenses,20.00,20.00,.00,4112,Passenger Railways
21/12/17,Tri-Borough ASC and NHS Integrated Commi,RYMAN 1037,Stationery,10.04,10.04,.00,5943,"Stationery Stores, Office and School Supply Stores"
21/12/17,Tri-Borough ASC and NHS Integrated Commi,AMZ Amazon.co.uk,Subsistence Expenses,-64.99,-64.99,.00,5999,Miscellaneous and Specialty Retail Stores
21/12/17,City Management and Communities,TEX FARNBOROUGHSST,Transport Fuel,31.61,26.13,5.48,5541,Service Stations ( with or without ancillary services)
18/12/17,Tri-Borough ASC and NHS Integrated Commi,WWW.ADDISONLEE.COM,Staff travelling expenses,39.20,39.20,.00,4121,Taxicabs and Limousines
21/12/17,Tri-Borough Childrens Services,CENTRAL RADIO CARS,LAC Contact,9.00,9.00,.00,4121,Taxicabs and Limousines
20/12/17,Tri-Borough Childrens Services,PRIMARK,Section 17 Young Persons Support,9.00,9.00,.00,5651,Family Clothing Stores
21/12/17,City Management and Communities,STOKEHOUSE,Subsistence Expenses,43.88,43.88,.00,5812,Eating places and Restaurants
21/12/17,City Management and Communities,OYSTER AUTOTOPUP,Staff travelling expenses,20.00,20.00,.00,4112,Passenger Railways
21/12/17,Tri-Borough Childrens Services,COSTA COFFEE,Subsistence Expenses,7.60,7.60,.00,5814,Fast Food Restaurants
21/12/17,Tri-Borough Childrens Services,Amazon UK Marketplace,Section 17 Other,22.37,22.37,.00,5942,Book Stores
21/12/17,Tri-Borough Childrens Services,LUL TICKET MACHINE,Staff travelling expenses,12.30,12.30,.00,4112,Passenger Railways
21/12/17,City Management and Communities,FAVOUR FAIRY,Catering,860.00,860.00,.00,5441,Candy Stores
21/12/17,City Management and Communities,FAVOUR FAIRY,Catering,860.00,860.00,.00,5441,Candy Stores
21/12/17,City Management and Communities,OYSTER AUTOTOPUP,Staff travelling expenses,40.00,40.00,.00,4112,Passenger Railways
21/12/17,City Management and Communities,OYSTER BUS AUTOTOP,Staff travelling expenses,20.00,20.00,.00,4112,Passenger Railways
21/12/17,City Management and Communities,OYSTER BUS AUTOTOP,Staff travelling expenses,20.00,20.00,.00,4112,Passenger Railways
21/12/17,Tri-Borough Childrens Services,TIGER,Stationery,5.05,5.05,.00,5947,"Card Shops, Gift, Novelty, and Souvenir Shops"
21/12/17,Tri-Borough Childrens Services,LUL TICKET MACHINE,Staff travelling expenses,20.00,20.00,.00,4112,Passenger Railways
21/12/17,City Management and Communities,OYSTER BUS AUTOTOP,Staff travelling expenses,20.00,20.00,.00,4112,Passenger Railways
21/12/17,Tri-Borough Childrens Services,ARGOS LTD,Section 17 Young Persons Support,428.03,428.03,.00,5310,Discount Stores
21/12/17,Tri-Borough Childrens Services,LOVE COFFEE STRATFORD,Subsistence Expenses,3.95,3.95,.00,5812,Eating places and Restaurants
21/12/17,Tri-Borough Childrens Services,LUL TICKET MACHINE,Staff travelling expenses,10.00,10.00,.00,4112,Passenger Railways
21/12/17,Tri-Borough Childrens Services,LND & STH EAST RW,Staff travelling expenses,19.80,19.80,.00,4112,Passenger Railways
21/12/17,PPC,WWW.PMGLTD.CO.UK,Training,714.00,595.00,119.00,7399,"Business Services, Not Elsewhere Classified"
22/12/17,Bi-Borough Corporate Services,Amazon EU,Stationery,43.13,35.94,7.19,5969,Direct Marketing - Not Elsewhere Classified
21/12/17,Tri-Borough ASC and NHS Integrated Commi,WWW.CIPS.ORG,Staff dev & training -EO9,200.00,200.00,.00,8699,Membership Organizations ( Not Elsewhere Classified)
21/12/17,City Management and Communities,OYSTER BUS AUTOTOP,Staff travelling expenses,40.00,40.00,.00,4112,Passenger Railways
21/12/17,Tri-Borough Childrens Services,LITTLE VENICE SPOR,Activities and Events,6.80,6.80,.00,7997,"Membership Clubs (Sports, Recreation, Athletic), Country Clubs, and Private Golf Courses"
21/12/17,Tri-Borough ASC and NHS Integrated Commi,SAINSBURYS 0602,Catering,68.27,68.27,.00,5411,Grocery Stores
21/12/17,PPC,MAILCHIMP    MONTHLY,Hired and Contracted Services,37.77,37.77,.00,5968,Direct Marketing - Continuity/Subscription Merchant
21/12/17,Tri-Borough Childrens Services,LONDON OVERGROUND SST,Staff travelling expenses,5.00,5.00,.00,4112,Passenger Railways
21/12/17,City Management and Communities,OYSTER BUS AUTOTOP,Staff travelling expenses,40.00,40.00,.00,4112,Passenger Railways
21/12/17,Tri-Borough Childrens Services,MAIL BOXES ETC,Postage,24.30,24.30,.00,7399,"Business Services, Not Elsewhere Classified"
21/12/17,Tri-borough Libraries and Archives,MARGOLIS OFFICE,"Equipment, furniture and materials",-78.00,-78.00,.00,5943,"Stationery Stores, Office and School Supply Stores"
21/12/17,City Management and Communities,RB KEN&CHELSEA,Tport - Prkng & Congestion Chgs,12.92,12.92,.00,7523,Automobile Parking Lots and Garages
21/12/17,Tri-Borough Childrens Services,Amazon UK Marketplace,Stationery,6.49,6.49,.00,5942,Book Stores
21/12/17,Tri-Borough Childrens Services,Toys R Us,Stationery,9.98,9.98,.00,5999,Miscellaneous and Specialty Retail Stores
21/12/17,Tri-Borough Childrens Services,MARKS&SPENCER PLC SF,Stationery,2.50,2.50,.00,5411,Grocery Stores
21/12/17,City Management and Communities,OYSTER AUTOTOPUP,Staff travelling expenses,20.00,20.00,.00,4112,Passenger Railways
20/12/17,PPC,HOTELS.COM143828727544,Staff travelling expenses,-55.04,-55.04,.00,4722,Travel Agencies and Tour Operations
20/12/17,Tri-Borough Childrens Services,WATERSTONES.COM,"Print, Pub & adverts",24.99,24.99,.00,5942,Book Stores
20/12/17,Tri-Borough Childrens Services,SurveyMonkey,Surveys,29.00,29.00,.00,7372,"Computer Programming, Integrated Systems Design and Data Processing Services"
20/12/17,Tri-Borough Childrens Services,LUL TICKET MACHINE,Staff travelling expenses,12.30,12.30,.00,4112,Passenger Railways
20/12/17,Tri-Borough Childrens Services,LUL TICKET MACHINE,Staff travelling expenses,12.30,12.30,.00,4112,Passenger Railways
20/12/17,Tri-Borough ASC and NHS Integrated Commi,MARKS&SPENCER PLC SF,Subsistence Expenses,9.10,9.10,.00,5411,Grocery Stores
20/12/17,Tri-Borough ASC and NHS Integrated Commi,ODEON,Activities and Events,28.00,23.33,4.67,7832,Motion Picture Theaters
20/12/17,Tri-Borough ASC and NHS Integrated Commi,ODEON,Catering,3.00,3.00,.00,7832,Motion Picture Theaters
20/12/17,Tri-Borough Childrens Services,PATISSERIE VALERIE,Section 17 Young Persons Support,8.75,8.75,.00,5812,Eating places and Restaurants
20/12/17,Bi-Borough Corporate Services,KFC,Subsistence Expenses,4.29,4.29,.00,5814,Fast Food Restaurants
20/12/17,Bi-Borough Corporate Services,LUL TICKET MACHINE,Staff travelling expenses,12.30,12.30,.00,4112,Passenger Railways
20/12/17,Tri-Borough Childrens Services,H&M,Section 17 Other,135.00,135.00,.00,5691,Men�s and Women�s Clothing Stores
20/12/17,Tri-borough Libraries and Archives,TESCO STORES 3012,Catering,1.09,1.09,.00,5411,Grocery Stores
20/12/17,City Management and Communities,OYSTER AUTOTOPUP,Staff travelling expenses,20.00,20.00,.00,4112,Passenger Railways
20/12/17,Tri-Borough Childrens Services,LONDON OVERGROUND SST,Staff travelling expenses,17.50,17.50,.00,4112,Passenger Railways
20/12/17,Tri-Borough ASC and NHS Integrated Commi,TESCO STORE 3012,S24 Support allowance,100.00,100.00,.00,5411,Grocery Stores
20/12/17,Tri-Borough Childrens Services,LUL TICKET MACHINE,Staff travelling expenses,20.00,20.00,.00,4112,Passenger Railways
20/12/17,Tri-Borough Childrens Services,COMPLETE CARE SHOP,"Equipment, furniture and materials",-59.94,-49.95,-9.99,5399,Misc. General Merchandise
20/12/17,"Growth, Planning and Housing",MCDONALDS,Hospitality,3.38,3.38,.00,5814,Fast Food Restaurants
20/12/17,PPC,CMT UK LTD TAXI FARE,Staff travelling expenses,17.94,17.94,.00,4121,Taxicabs and Limousines
20/12/17,Chief of Staff,AMAZON SVCS EU-UK AMAZ,"Equipment, furniture and materials",4.99,4.16,.83,5942,Book Stores
20/12/17,City Management and Communities,OYSTER AUTOTOPUP,Staff travelling expenses,20.00,20.00,.00,4112,Passenger Railways
20/12/17,City Management and Communities,Amazon UK Marketplace,IT Hardware Purchase,21.98,21.98,.00,5942,Book Stores
20/12/17,City Management and Communities,OYSTER AUTOTOPUP,Staff travelling expenses,20.00,20.00,.00,4112,Passenger Railways
20/12/17,City Management and Communities,OYSTER AUTOTOPUP,Staff travelling expenses,20.00,20.00,.00,4112,Passenger Railways
20/12/17,"Growth, Planning and Housing",OYSTER BUS AUTOTOP,Staff travelling expenses,40.00,40.00,.00,4112,Passenger Railways
20/12/17,Tri-Borough ASC and NHS Integrated Commi,OYSTER BUS AUTOTOP,Subsistence Expenses,20.00,20.00,.00,4112,Passenger Railways
20/12/17,Tri-Borough Childrens Services,MARKS&SPENCER PLC SACA,Subsistence Expenses,5.20,5.20,.00,5411,Grocery Stores
20/12/17,Tri-Borough ASC and NHS Integrated Commi,SAINSBURYS 0602,Subsistence Expenses,5.00,5.00,.00,5411,Grocery Stores
20/12/17,"Growth, Planning and Housing",OYSTER AUTOTOPUP,Staff travelling expenses,40.00,40.00,.00,4112,Passenger Railways
20/12/17,"Growth, Planning and Housing",OYSTER AUTOTOPUP,Staff travelling expenses,20.00,20.00,.00,4112,Passenger Railways
20/12/17,Tri-Borough Childrens Services,LUL TICKET MACHINE,Staff travelling expenses,10.00,10.00,.00,4112,Passenger Railways
20/12/17,PPC,INTERFLORA BRITISH UNI,Hired and Contracted Services,47.00,47.00,.00,5992,Florists
20/12/17,Tri-Borough Childrens Services,LUL TICKET MACHINE,Staff travelling expenses,52.30,52.30,.00,4112,Passenger Railways
20/12/17,Tri-Borough ASC and NHS Integrated Commi,SAINSBURYS TO YOU 0602,Day Opportunities,191.01,191.01,.00,5411,Grocery Stores
20/12/17,Tri-Borough ASC and NHS Integrated Commi,SAINSBURYS TO YOU 0602,Catering,.50,.50,.00,5411,Grocery Stores
20/12/17,Tri-Borough ASC and NHS Integrated Commi,SAINSBURYS TO YOU 0602,Catering,-3.00,-3.00,.00,5411,Grocery Stores
20/12/17,Tri-Borough ASC and NHS Integrated Commi,SAINSBURYS SACAT 0602,Catering,1.10,1.10,.00,5411,Grocery Stores
20/12/17,Tri-Borough ASC and NHS Integrated Commi,INSHA ALLAH,Catering,54.00,54.00,.00,5422,Freezer and Locker Meat Provisioners
20/12/17,PPC,HOTELS.COM143958402944,Staff travelling expenses,91.72,91.72,.00,4722,Travel Agencies and Tour Operations
20/12/17,Tri-Borough ASC and NHS Integrated Commi,SAINSBURYS 0602,Subsistence Expenses,1.95,1.95,.00,5411,Grocery Stores
20/12/17,Tri-Borough Childrens Services,EAST MIDLANDS TRAI,Staff travelling expenses,31.30,31.30,.00,4112,Passenger Railways
20/12/17,Tri-Borough ASC and NHS Integrated Commi,OYSTER AUTOTOPUP,Staff travelling expenses,20.00,20.00,.00,4112,Passenger Railways
20/12/17,Tri-Borough Childrens Services,OYSTER AUTOTOPUP,Staff travelling expenses,20.00,20.00,.00,4112,Passenger Railways
19/12/17,Tri-Borough Childrens Services,TESCO STORES 6109,Provisions -E25,51.90,51.90,.00,5411,Grocery Stores
19/12/17,"Growth, Planning and Housing",LUL TICKET MACHINE,Staff travelling expenses,20.00,20.00,.00,4112,Passenger Railways
19/12/17,"Growth, Planning and Housing",LUL TICKET MACHINE,Staff travelling expenses,20.00,20.00,.00,4112,Passenger Railways
19/12/17,Tri-Borough Childrens Services,PRET A MANGER,Subsistence Expenses,5.24,5.24,.00,5812,Eating places and Restaurants
19/12/17,Tri-Borough Childrens Services,TFL.GOV.UK/CP,Staff travelling expenses,7.10,7.10,.00,4111,"Local/Suburban Commuter Passenger Transportation - Railroads, Feries, Local Water Transportation."
19/12/17,Tri-Borough ASC and NHS Integrated Commi,Amazon UK Marketplace,ASC Transfer Payments - other,10.48,8.73,1.75,5942,Book Stores
19/12/17,Tri-Borough Childrens Services,STAYING FIRST,Section 17 Other,261.00,261.00,.00,5712,"Furniture, Home Furnishings, and Equipment Stores, Except Appliances"
19/12/17,Tri-Borough Childrens Services,WWW.ARGOS.CO.UK,Section 17 Other,156.93,156.93,.00,5310,Discount Stores
19/12/17,Tri-Borough Childrens Services,LONDON OVERGROUND TO,Staff travelling expenses,15.00,15.00,.00,4112,Passenger Railways
19/12/17,City Management and Communities,PRET A MANGER,Catering,10.64,9.74,.90,5812,Eating places and Restaurants
19/12/17,City Management and Communities,PRET A MANGER,Catering,14.17,12.84,1.33,5812,Eating places and Restaurants
19/12/17,City Management and Communities,SNAPPY SNAPS STORE 246,"Equipment, furniture and materials",19.99,16.66,3.33,7395,"Photofinishing Laboratories, Photo Developing"
19/12/17,Tri-Borough Childrens Services,LUL TICKET MACHINE,Section 17 Young Persons Support,30.00,30.00,.00,4112,Passenger Railways
19/12/17,Tri-Borough Childrens Services,AIR CAN01 01451171415610,Section 17 Other,1399.47,1399.47,.00,3009,AIR CANADA
19/12/17,Tri-Borough Childrens Services,AIR CAN01 01451171415621,Section 17 Other,184.97,184.97,.00,3009,AIR CANADA
19/12/17,Tri-Borough Childrens Services,TRAVELODGE GB0000,Section 17 Other,51.75,43.12,8.63,3615,TRAVELODGE
19/12/17,Tri-Borough Childrens Services,Opodo ID 3845956290,Section 17 Other,84.41,84.41,.00,4722,Travel Agencies and Tour Operations
19/12/17,Tri-Borough Childrens Services,Opodo ID 3845974011,Section 17 Other,1653.51,1653.51,.00,4722,Travel Agencies and Tour Operations
19/12/17,City Management and Communities,LUL TICKET MACHINE,Staff travelling expenses,125.00,125.00,.00,4112,Passenger Railways
19/12/17,City Management and Communities,OYSTER RENEW WEB,Staff travelling expenses,15.00,15.00,.00,4112,Passenger Railways
19/12/17,City Management and Communities,OYSTER RENEW WEB,Staff travelling expenses,20.00,20.00,.00,4112,Passenger Railways
19/12/17,Tri-Borough Childrens Services,WESTMINSTER CITY COUNC,Section 17 Other,35.00,35.00,.00,9399,Government Services ( Not Elsewhere Classified)
19/12/17,Tri-Borough Childrens Services,LUL TICKET MACHINE,Staff travelling expenses,5.00,5.00,.00,4112,Passenger Railways
19/12/17,City Treasurers,NEXUS TRAVEL SHOP,Staff travelling expenses,20.00,20.00,.00,4131,"Bus Lines, Including Charters, Tour Buses"
19/12/17,Tri-Borough ASC and NHS Integrated Commi,TESCO STORES,Catering,7.54,7.54,.00,5411,Grocery Stores
19/12/17,Tri-Borough Childrens Services,BENS NEWS,Staff travelling expenses,12.00,12.00,.00,5411,Grocery Stores
19/12/17,Tri-Borough ASC and NHS Integrated Commi,TESCO STORES,"Equipment, furniture and materials",3.59,3.59,.00,5411,Grocery Stores
19/12/17,Tri-Borough ASC and NHS Integrated Commi,TESCO PFS  2861,Subsistence Expenses,6.40,6.40,.00,5541,Service Stations ( with or without ancillary services)
19/12/17,City Management and Communities,TESCO STORE 2737,Catering,51.97,51.97,.00,5411,Grocery Stores
19/12/17,City Management and Communities,RINGGO PARKING,Tport - Prkng & Congestion Chgs,7.40,7.36,.04,7523,Automobile Parking Lots and Garages
18/12/17,City Management and Communities,HUB BY PREMIER INN 391,Staff travelling expenses,243.00,202.50,40.50,3811,Premier Travel Inn
19/12/17,City Management and Communities,WWW.ISLINGTON.GOV.,Tport - Prkng & Congestion Chgs,6.40,6.34,.06,7523,Automobile Parking Lots and Garages
19/12/17,Tri-Borough Childrens Services,LUL TICKET MACHINE,Internal Fostering,10.00,10.00,.00,4112,Passenger Railways
19/12/17,Tri-Borough Childrens Services,LUL TICKET MACHINE,Internal Fostering,50.00,50.00,.00,4112,Passenger Railways
19/12/17,Tri-Borough Childrens Services,TSGN,Staff travelling expenses,48.10,48.10,.00,4112,Passenger Railways
19/12/17,Tri-Borough Childrens Services,ST PANCRAS INTL,Staff travelling expenses,6.00,6.00,.00,5812,Eating places and Restaurants
19/12/17,Tri-Borough Childrens Services,Amazon UK Marketplace,Stationery,14.19,14.19,.00,5942,Book Stores
19/12/17,Tri-Borough Childrens Services,WESTMINSTER PARKING,Tport - Prkng & Congestion Chgs,7.25,7.25,.00,7523,Automobile Parking Lots and Garages
19/12/17,Tri-Borough Childrens Services,WESTMINSTER PARKING,Tport - Prkng & Congestion Chgs,2.90,2.90,.00,7523,Automobile Parking Lots and Garages
19/12/17,Tri-Borough Childrens Services,LUL TICKET MACHINE,Staff travelling expenses,20.00,20.00,.00,4112,Passenger Railways
19/12/17,Tri-Borough Childrens Services,LUL TICKET MACHINE,Emp. Trvl & Sub -EO8,30.00,30.00,.00,4112,Passenger Railways
19/12/17,City Management and Communities,WWW.BOOHOO.COM,Activities and Events,20.00,16.00,4.00,5691,Men�s and Women�s Clothing Stores
19/12/17,City Management and Communities,WWW.VOUCHEREXPRESS.CO.,Activities and Events,40.00,40.00,.00,5947,"Card Shops, Gift, Novelty, and Souvenir Shops"
19/12/17,Tri-Borough Childrens Services,LUL TICKET MACHINE,Emp. Trvl & Sub -EO8,30.00,30.00,.00,4112,Passenger Railways
19/12/17,Tri-Borough Childrens Services,LUL TICKET MACHINE,Emp. Trvl & Sub -EO8,30.00,30.00,.00,4112,Passenger Railways
19/12/17,Tri-Borough Childrens Services,LUL TICKET MACHINE,Emp. Trvl & Sub -EO8,30.00,30.00,.00,4112,Passenger Railways
19/12/17,Tri-Borough Childrens Services,LUL TICKET MACHINE,Emp. Trvl & Sub -EO8,30.00,30.00,.00,4112,Passenger Railways
19/12/17,Tri-Borough Childrens Services,TIGER,Achievmnts Gifts Prizes Pupils E19,55.00,45.83,9.17,5947,"Card Shops, Gift, Novelty, and Souvenir Shops"
19/12/17,City Management and Communities,ONLINE GIFT CARD -HAMM,Activities and Events,61.00,61.00,.00,5999,Miscellaneous and Specialty Retail Stores
19/12/17,Tri-Borough ASC and NHS Integrated Commi,AMZ Desire-London,Stationery,-3.70,-3.70,.00,5999,Miscellaneous and Specialty Retail Stores
19/12/17,Tri-Borough ASC and NHS Integrated Commi,HMCOURTS-SERVICE.G,Fees,150.00,150.00,.00,9222,Fines
19/12/17,Tri-Borough ASC and NHS Integrated Commi,WAITROSE 756,Subsistence Expenses,5.00,5.00,.00,5411,Grocery Stores
19/12/17,PPC,FIRSTSERV LTD,Hired and Contracted Services,15.59,12.99,2.60,4816,Computer Network/Information Services
19/12/17,Tri-Borough ASC and NHS Integrated Commi,LUL TICKET MACHINE,"Equipment, furniture and materials",10.00,10.00,.00,4112,Passenger Railways
19/12/17,Tri-Borough ASC and NHS Integrated Commi,BENGAL CUISINE,"Equipment, furniture and materials",10.00,10.00,.00,5812,Eating places and Restaurants
19/12/17,City Management and Communities,OYSTER AUTOTOPUP,Staff travelling expenses,20.00,20.00,.00,4112,Passenger Railways
19/12/17,Tri-Borough Childrens Services,COMPLETE CARE SHOP,"Equipment, furniture and materials",15.59,13.65,1.94,5399,Misc. General Merchandise
19/12/17,"Growth, Planning and Housing",TESCO STORES (5565),Subsistence Expenses,10.00,10.00,.00,5411,Grocery Stores
19/12/17,City Management and Communities,CIEH,Professional Subscriptions -EO8,180.00,180.00,.00,8699,Membership Organizations ( Not Elsewhere Classified)
19/12/17,Tri-Borough ASC and NHS Integrated Commi,MCDONALDS,Subsistence Expenses,3.47,3.47,.00,5814,Fast Food Restaurants
19/12/17,"Growth, Planning and Housing",CONTEH CONV STORE,Client travelling expenses,15.50,15.50,.00,5411,Grocery Stores
19/12/17,Tri-Borough Childrens Services,MAIL BOXES ETC,Postage,8.35,8.35,.00,7399,"Business Services, Not Elsewhere Classified"
19/12/17,"Growth, Planning and Housing",LUL TICKET MACHINE,Staff travelling expenses,30.00,30.00,.00,4112,Passenger Railways
19/12/17,"Growth, Planning and Housing",POST OFFICE COUNTER,Interview Expenses,85.25,85.25,.00,9402,Postal Services - Government Only
19/12/17,"Growth, Planning and Housing",LUL TICKET MACHINE,Client travelling expenses,85.00,85.00,.00,4112,Passenger Railways
19/12/17,Chief of Staff,Amazon UK Marketplace,"Equipment, furniture and materials",21.20,21.20,.00,5942,Book Stores
19/12/17,Chief of Staff,PAYPAL  GOBRANDSLIM,"Equipment, furniture and materials",16.85,14.50,2.35,5941,Sporting Goods Stores
18/12/17,Chief of Staff,THE LANGHAM HOTEL  FRO,Hospitality,561.94,468.28,93.66,7011,"Lodging - Hotels, Motels, Resorts, Central Reservation Services (not elsewhere classified)"
18/12/17,Corporate Services WCC,WWW.JA.NET,Licences,360.00,300.00,60.00,8699,Membership Organizations ( Not Elsewhere Classified)
18/12/17,Tri-Borough Childrens Services,Trainline,Staff travelling expenses,47.74,47.74,.00,4112,Passenger Railways
18/12/17,Tri-Borough Childrens Services,PRET A MANGER,Subsistence Expenses,4.73,4.73,.00,5812,Eating places and Restaurants
18/12/17,Tri-Borough Childrens Services,PRET A MANGER,Young Persons Subsistence Allowance,6.00,6.00,.00,5812,Eating places and Restaurants
18/12/17,Tri-Borough ASC and NHS Integrated Commi,HMCOURTS-SERVICE.G,Legal Fees,150.00,150.00,.00,9222,Fines
18/12/17,Tri-Borough Childrens Services,PIZZA HUT 228,Hospitality,76.05,63.38,12.67,5812,Eating places and Restaurants
18/12/17,Tri-Borough Childrens Services,PIZZA HUT 228,Hospitality,73.65,61.38,12.27,5812,Eating places and Restaurants
18/12/17,Tri-Borough Childrens Services,PIZZA HUT 228,Hospitality,68.45,57.04,11.41,5812,Eating places and Restaurants
18/12/17,"Growth, Planning and Housing",PORCHESTER SPA,Activities and Events,400.00,400.00,.00,7997,"Membership Clubs (Sports, Recreation, Athletic), Country Clubs, and Private Golf Courses"
18/12/17,Tri-Borough ASC and NHS Integrated Commi,Amazon UK Marketplace,"Equipment, furniture and materials",75.80,63.15,12.65,5942,Book Stores
18/12/17,Tri-Borough Childrens Services,LUL TICKET MACHINE,Staff travelling expenses,10.00,10.00,.00,4112,Passenger Railways
18/12/17,"Growth, Planning and Housing",LUL TICKET MACHINE,Client travelling expenses,15.00,15.00,.00,4112,Passenger Railways
18/12/17,Tri-Borough Childrens Services,WESTMINSTER PARKING,Tport - Prkng & Congestion Chgs,3.40,3.40,.00,7523,Automobile Parking Lots and Garages
18/12/17,Tri-Borough Childrens Services,WESTMINSTER PARKING,Tport - Prkng & Congestion Chgs,.28,.28,.00,7523,Automobile Parking Lots and Garages
18/12/17,Tri-Borough Childrens Services,LUL TICKET MACHINE,Staff travelling expenses,5.00,5.00,.00,4112,Passenger Railways
18/12/17,PPC,SAINSBURYS SACAT (4286,Catering,16.10,16.10,.00,5411,Grocery Stores
18/12/17,Tri-Borough Childrens Services,BEAN N GONE,Staff travelling expenses,5.95,5.95,.00,5812,Eating places and Restaurants
18/12/17,Tri-Borough ASC and NHS Integrated Commi,OYSTER AUTOTOPUP,Staff travelling expenses,40.00,40.00,.00,4112,Passenger Railways
18/12/17,Tri-Borough Childrens Services,SUBWAY,Activities and Events,12.80,12.80,.00,5812,Eating places and Restaurants
18/12/17,Tri-Borough ASC and NHS Integrated Commi,SAINSBURYS SACAT 0602,Catering,1.10,1.10,.00,5411,Grocery Stores
18/12/17,Tri-Borough ASC and NHS Integrated Commi,POST OFFICE COUNTER,Stationery,3.12,3.12,.00,9402,Postal Services - Government Only
18/12/17,Tri-Borough ASC and NHS Integrated Commi,COSTCUTTERS,Catering,16.97,16.97,.00,5411,Grocery Stores
18/12/17,Tri-Borough Childrens Services,LUL TICKET MACHINE,Staff travelling expenses,20.00,20.00,.00,4112,Passenger Railways
18/12/17,Chief of Staff,POSTOFFICE SELFSERVICE,Postage,10.40,10.40,.00,9402,Postal Services - Government Only
18/12/17,City Management and Communities,Amazon UK Marketplace,IT Hardware Purchase,15.99,15.99,.00,5942,Book Stores
18/12/17,"Growth, Planning and Housing",TFL OYST PHOTOCARD,Staff travelling expenses,161.70,161.70,.00,4112,Passenger Railways
18/12/17,Tri-Borough Childrens Services,C2C-FENCHURCH SST,Staff travelling expenses,16.90,16.90,.00,4112,Passenger Railways
18/12/17,Tri-Borough Childrens Services,NEW SOUTHERN RAILW,Staff travelling expenses,21.30,21.30,.00,4112,Passenger Railways
18/12/17,City Management and Communities,SNAPPY SNAPS STORE 246,"Equipment, furniture and materials",75.94,75.94,.00,7395,"Photofinishing Laboratories, Photo Developing"
14/12/17,City Management and Communities,ZAZZLE GBP,"Equipment, furniture and materials",-933.30,-858.21,-75.09,5399,Misc. General Merchandise
18/12/17,Tri-Borough Childrens Services,LUL TICKET MACHINE,Section 17 Young Persons Support,35.00,35.00,.00,4112,Passenger Railways
18/12/17,City Management and Communities,OYSTER BUS AUTOTOP,Staff travelling expenses,20.00,20.00,.00,4112,Passenger Railways
18/12/17,Tri-Borough ASC and NHS Integrated Commi,Trainline,Staff travelling expenses,143.92,143.92,.00,4112,Passenger Railways
18/12/17,Tri-Borough ASC and NHS Integrated Commi,Trainline,Client travelling expenses,39.27,39.27,.00,4112,Passenger Railways
18/12/17,City Management and Communities,WWW.UK-MOBILESTORE,Telephony,10.44,10.44,.00,5947,"Card Shops, Gift, Novelty, and Souvenir Shops"
18/12/17,Tri-Borough Childrens Services,LUL TICKET MACHINE,Staff travelling expenses,10.00,10.00,.00,4112,Passenger Railways
18/12/17,Tri-Borough ASC and NHS Integrated Commi,TESCO STORES 3012,Catering,2.00,2.00,.00,5411,Grocery Stores
18/12/17,Tri-Borough Childrens Services,BENS NEWS,Staff travelling expenses,7.70,7.70,.00,5411,Grocery Stores
18/12/17,Tri-Borough Childrens Services,SAINSBURYS SACAT 4992,Subsistence Expenses,5.20,5.20,.00,5411,Grocery Stores
18/12/17,City Management and Communities,LUL TICKET MACHINE,Staff travelling expenses,50.00,50.00,.00,4112,Passenger Railways
18/12/17,Tri-Borough ASC and NHS Integrated Commi,TESCO STORES 3012,Subsistence Expenses,5.29,5.29,.00,5411,Grocery Stores
18/12/17,Tri-borough Libraries and Archives,TESCO STORES,Activities and Events,19.59,16.99,2.60,5411,Grocery Stores
18/12/17,City Management and Communities,OYSTER RENEW WEB,Staff travelling expenses,50.00,50.00,.00,4112,Passenger Railways
18/12/17,Tri-Borough ASC and NHS Integrated Commi,PRET A MANGER,Subsistence Expenses,5.24,5.24,.00,5812,Eating places and Restaurants
18/12/17,Tri-Borough Childrens Services,CAVENDISH CANDY,S24 Support allowance,26.70,26.70,.00,5411,Grocery Stores
13/12/17,Tri-Borough ASC and NHS Integrated Commi,TRI BOROUGH- LISSON GR,Subsistence Expenses,2.87,2.87,.00,5811,Caterers
14/12/17,PPC,BRITISH A 12587660259000,Staff travelling expenses,295.51,295.51,.00,3005,BRITISH AIRWAYS
15/12/17,Tri-Borough ASC and NHS Integrated Commi,OYSTER BUS AUTOTOP,Staff travelling expenses,20.00,20.00,.00,4112,Passenger Railways
17/12/17,Bi-Borough Corporate Services,Amazon UK Marketplace,Stationery,25.59,22.76,2.83,5942,Book Stores
15/12/17,Tri-Borough ASC and NHS Integrated Commi,NETFLIX.COM,"Equipment, furniture and materials",7.99,7.99,.00,4899,Cable and other pay television (previously Cable Services)
15/12/17,Tri-Borough ASC and NHS Integrated Commi,SAINSBURYS SACAT 0602,Stationery,8.65,8.65,.00,5411,Grocery Stores
15/12/17,Tri-Borough ASC and NHS Integrated Commi,HMCOURTS-SERVICE.G,Fees,75.00,75.00,.00,9222,Fines
16/12/17,Tri-Borough ASC and NHS Integrated Commi,OYSTER BUS AUTOTOP,Staff travelling expenses,20.00,20.00,.00,4112,Passenger Railways
15/12/17,Tri-Borough ASC and NHS Integrated Commi,WOODS CHEMIST,"Equipment, furniture and materials",17.70,17.70,.00,5912,Drug Stores and Pharmacies
14/12/17,WAES,TFL ROAD CHARGE,Tport - Prkng & Congestion Chgs,103.50,103.50,.00,4784,Toll and Bridge Fees
14/12/17,"Growth, Planning and Housing",TRI BOROUGH- LISSON GR,Hospitality,3.70,3.70,.00,5811,Caterers
15/12/17,Tri-borough Libraries and Archives,TIMPSON LTD,Stationery,45.00,45.00,.00,7251,"Shop Repair Shops and Shoe Shine Parlors, and Hat Cleaning Shops"
16/12/17,PPC,THE FINANCIAL TIMES,Subscriptions,278.20,278.20,.00,5968,Direct Marketing - Continuity/Subscription Merchant
16/12/17,City Management and Communities,WILKO.COM,"Equipment, furniture and materials",22.00,18.34,3.66,5722,Household Appliance Stores
16/12/17,Tri-borough Libraries and Archives,PRET A MANGER,Subsistence Expenses,13.15,13.15,.00,5812,Eating places and Restaurants
15/12/17,City Management and Communities,OYSTER BUS AUTOTOP,Staff travelling expenses,40.00,40.00,.00,4112,Passenger Railways
16/12/17,City Management and Communities,OYSTER AUTOTOPUP,Staff travelling expenses,40.00,40.00,.00,4112,Passenger Railways
15/12/17,Chief of Staff,POSTOFFICE SELFSERVICE,Postage,1.57,1.57,.00,9402,Postal Services - Government Only
15/12/17,Tri-Borough Childrens Services,EBUYER (UK) LTD,Learning Res Not ICT Equip E19,39.48,32.90,6.58,5722,Household Appliance Stores
14/12/17,Tri-Borough ASC and NHS Integrated Commi,ZAMS PERI PERI CHICKEN,Subsistence Expenses,10.99,10.99,.00,5812,Eating places and Restaurants
15/12/17,Tri-Borough ASC and NHS Integrated Commi,PRET A MANGER,Subsistence Expenses,2.35,2.35,.00,5812,Eating places and Restaurants
15/12/17,Tri-borough Libraries and Archives,SAINSBURYS 0602,Catering,106.19,106.19,.00,5411,Grocery Stores
15/12/17,City Management and Communities,3C_ Highland and Islan,Tport - Prkng & Congestion Chgs,20.00,20.00,.00,7523,Automobile Parking Lots and Garages
15/12/17,City Management and Communities,WILLOW WALK,Subsistence Expenses,16.27,16.27,.00,5812,Eating places and Restaurants
14/12/17,City Management and Communities,AMAZON SVCS EU-UK AMAZ,"Equipment, furniture and materials",31.09,25.91,5.18,5942,Book Stores
14/12/17,City Management and Communities,AMAZON SVCS EU-UK AMAZ,"Equipment, furniture and materials",3.99,3.32,.67,5942,Book Stores
14/12/17,City Management and Communities,AMAZON SVCS EU-UK AMAZ,"Equipment, furniture and materials",3.98,3.98,.00,5942,Book Stores
15/12/17,City Management and Communities,AMAZON SVCS EU-UK AMAZ,"Equipment, furniture and materials",2.15,1.79,.36,5942,Book Stores
15/12/17,City Management and Communities,AMAZON SVCS EU-UK AMAZ,"Equipment, furniture and materials",35.98,29.98,6.00,5942,Book Stores
16/12/17,City Management and Communities,OYSTER BUS AUTOTOP,Staff travelling expenses,20.00,20.00,.00,4112,Passenger Railways
17/12/17,PPC,OYSTER AUTOTOPUP,Staff travelling expenses,20.00,20.00,.00,4112,Passenger Railways
15/12/17,Tri-Borough Childrens Services,LUL TICKET MACHINE,Staff travelling expenses,10.00,10.00,.00,4112,Passenger Railways
15/12/17,Tri-Borough ASC and NHS Integrated Commi,Amazon UK Marketplace,Subsistence Expenses,64.99,55.61,9.38,5942,Book Stores
16/12/17,Tri-Borough ASC and NHS Integrated Commi,Amazon UK Marketplace,Subsistence Expenses,9.99,9.99,.00,5942,Book Stores
16/12/17,Tri-Borough ASC and NHS Integrated Commi,OYSTER AUTOTOPUP,Staff travelling expenses,20.00,20.00,.00,4112,Passenger Railways
16/12/17,Tri-Borough ASC and NHS Integrated Commi,OYSTER AUTOTOPUP,Staff travelling expenses,20.00,20.00,.00,4112,Passenger Railways
16/12/17,Tri-Borough ASC and NHS Integrated Commi,AMAZON UK PRIME AMZN.C,Subsistence Expenses,7.99,7.99,.00,5968,Direct Marketing - Continuity/Subscription Merchant
17/12/17,Tri-Borough ASC and NHS Integrated Commi,OYSTER BUS AUTOTOP,Staff travelling expenses,20.00,20.00,.00,4112,Passenger Railways
14/12/17,Tri-Borough Childrens Services,WWW.KENFIELD.COM,Staff Empl Cost of M & Equip E12,104.35,86.96,17.39,5965,Direct Marketing - Catalog and Catalog and Retail Merchant
15/12/17,Tri-Borough Childrens Services,Amazon EU,Teaching Materials -E19,23.25,19.35,3.90,5969,Direct Marketing - Not Elsewhere Classified
15/12/17,Tri-Borough Childrens Services,SP  MEDPAC,Medical and Domestic Supplies -E22,29.98,25.48,4.50,5734,Computer Software Stores
14/12/17,Tri-Borough Childrens Services,AMAZON SVCS EU-UK AMAZ,Staff Empl Cost of M & Equip E12,52.00,52.00,.00,5942,Book Stores
16/12/17,Tri-borough Libraries and Archives,PIMLICO HARDWARE,Activities and Events,9.98,8.32,1.66,5251,Hardware Stores
15/12/17,Tri-Borough ASC and NHS Integrated Commi,SODEXO HAMMERSMITH SUB,Subsistence Expenses,3.30,3.30,.00,5811,Caterers
16/12/17,City Management and Communities,OYSTER AUTOTOPUP,Staff travelling expenses,20.00,20.00,.00,4112,Passenger Railways
15/12/17,Tri-borough Libraries and Archives,Amazon UK Marketplace,"Equipment, furniture and materials",20.87,20.87,.00,5942,Book Stores
16/12/17,Tri-borough Libraries and Archives,Amazon UK Marketplace,"Equipment, furniture and materials",14.18,14.18,.00,5942,Book Stores
15/12/17,City Management and Communities,OYSTER AUTOTOPUP,Staff travelling expenses,20.00,20.00,.00,4112,Passenger Railways
15/12/17,Tri-Borough Childrens Services,Amazon UK Marketplace,"Equipment, furniture and materials",29.96,24.97,4.99,5942,Book Stores
15/12/17,Tri-Borough Childrens Services,Amazon UK Marketplace,"Equipment, furniture and materials",23.96,19.97,3.99,5942,Book Stores
16/12/17,Tri-Borough Childrens Services,Amazon UK Marketplace,"Equipment, furniture and materials",11.95,9.96,1.99,5942,Book Stores
15/12/17,Tri-Borough Childrens Services,OYSTER BUS AUTOTOP,Staff travelling expenses,20.00,20.00,.00,4112,Passenger Railways
15/12/17,Tri-Borough Childrens Services,WESTMINSTER CITY COUNC,Section 17 Other,95.00,95.00,.00,9399,Government Services ( Not Elsewhere Classified)
15/12/17,City Management and Communities,LUL TICKET MACHINE,Staff travelling expenses,30.00,30.00,.00,4112,Passenger Railways
15/12/17,City Management and Communities,OYSTER AUTOTOPUP,Staff travelling expenses,20.00,20.00,.00,4112,Passenger Railways
15/12/17,City Management and Communities,AMAZON SVCS EU-UK AMAZ,"Equipment, furniture and materials",124.70,124.70,.00,5942,Book Stores
17/12/17,City Management and Communities,OYSTER BUS AUTOTOP,Staff travelling expenses,20.00,20.00,.00,4112,Passenger Railways
15/12/17,City Management and Communities,OYSTER AUTOTOPUP,Staff travelling expenses,40.00,40.00,.00,4112,Passenger Railways
15/12/17,City Management and Communities,OYSTER BUS AUTOTOP,Staff travelling expenses,40.00,40.00,.00,4112,Passenger Railways
16/12/17,City Management and Communities,OYSTER AUTOTOPUP,Staff travelling expenses,40.00,40.00,.00,4112,Passenger Railways
16/12/17,City Management and Communities,OYSTER BUS AUTOTOP,Staff travelling expenses,20.00,20.00,.00,4112,Passenger Railways
16/12/17,City Management and Communities,OYSTER AUTOTOPUP,Staff travelling expenses,20.00,20.00,.00,4112,Passenger Railways
17/12/17,City Management and Communities,OYSTER AUTOTOPUP,Staff travelling expenses,20.00,20.00,.00,4112,Passenger Railways
15/12/17,Tri-Borough Childrens Services,Amazon UK Marketplace,C/Rm & Learning Equip Excl ICT E19,39.58,33.00,6.58,5942,Book Stores
16/12/17,Tri-Borough ASC and NHS Integrated Commi,OYSTER AUTOTOPUP,Staff travelling expenses,20.00,20.00,.00,4112,Passenger Railways
16/12/17,Tri-Borough ASC and NHS Integrated Commi,OYSTER AUTOTOPUP,Staff travelling expenses,20.00,20.00,.00,4112,Passenger Railways
16/12/17,Tri-Borough Childrens Services,POST OFFICE COUNTER,Postage,12.90,12.90,.00,9402,Postal Services - Government Only
16/12/17,Tri-Borough Childrens Services,AMAZON SVCS EU-UK AMAZ,Section 17 Other,39.99,33.32,6.67,5942,Book Stores
15/12/17,Tri-Borough Childrens Services,EALING BROADWAY SST,Staff travelling expenses,10.00,10.00,.00,4112,Passenger Railways
15/12/17,Tri-Borough Childrens Services,NORTHOLT PARK SST,Staff travelling expenses,10.00,10.00,.00,4112,Passenger Railways
15/12/17,Tri-Borough Childrens Services,LUL TICKET MACHINE,Staff travelling expenses,10.00,10.00,.00,4112,Passenger Railways
11/12/17,Tri-Borough ASC and NHS Integrated Commi,WWW.ADDISONLEE.COM,Staff travelling expenses,19.25,19.25,.00,4121,Taxicabs and Limousines
14/12/17,Tri-Borough Childrens Services,IKEA ONLINE,Section 17 Other,425.00,425.00,.00,5719,Miscellaneous Home Furnishing Specialty Stores
14/12/17,"Growth, Planning and Housing",OYSTER AUTOTOPUP,Staff travelling expenses,40.00,40.00,.00,4112,Passenger Railways
14/12/17,"Growth, Planning and Housing",OYSTER AUTOTOPUP,Staff travelling expenses,40.00,40.00,.00,4112,Passenger Railways
14/12/17,"Growth, Planning and Housing",OYSTER BUS AUTOTOP,Staff travelling expenses,40.00,40.00,.00,4112,Passenger Railways
14/12/17,Tri-Borough Childrens Services,LUL TICKET MACHINE,Staff travelling expenses,10.00,10.00,.00,4112,Passenger Railways
14/12/17,Tri-Borough ASC and NHS Integrated Commi,OYSTER BUS AUTOTOP,Staff travelling expenses,20.00,20.00,.00,4112,Passenger Railways
14/12/17,Tri-Borough Childrens Services,Amazon EU,Teaching Materials -E19,9.30,7.74,1.56,5969,Direct Marketing - Not Elsewhere Classified
14/12/17,Tri-Borough Childrens Services,Amazon EU,Staff Empl Cost of M & Equip E12,2.64,2.20,.44,5969,Direct Marketing - Not Elsewhere Classified
13/12/17,Tri-Borough Childrens Services,TVLICENSING.CO.UK,"S/scriptns, pblcations, Per Non Cur E22",147.00,147.00,.00,7392,"Management, Consulting, and Public Relations Services"
14/12/17,Tri-Borough ASC and NHS Integrated Commi,GOLDEN GRILL,Subsistence Expenses,4.00,4.00,.00,5812,Eating places and Restaurants
14/12/17,Tri-Borough ASC and NHS Integrated Commi,ITUNES.COM/BILL,Assistive Equipment & Technology,299.99,249.99,50.00,5735,Record Shops
14/12/17,Tri-borough Libraries and Archives,WESTWAY CT,Hired and Contracted Services,175.94,175.94,.00,4121,Taxicabs and Limousines
14/12/17,Tri-Borough ASC and NHS Integrated Commi,TESCO STORE 3012,Catering,78.76,78.76,.00,5411,Grocery Stores
14/12/17,Tri-Borough Childrens Services,COSTA COFFEE,Subsistence Expenses,5.75,5.75,.00,5814,Fast Food Restaurants
14/12/17,Tri-Borough Childrens Services,CROSS STREET CARS,Staff travelling expenses,10.50,10.50,.00,5592,Motor Home Dealers
14/12/17,Tri-Borough Childrens Services,CROSS STREET CARS,Staff travelling expenses,10.50,10.50,.00,5592,Motor Home Dealers
14/12/17,Tri-Borough Childrens Services,TSGN,Staff travelling expenses,56.50,56.50,.00,4112,Passenger Railways
14/12/17,Tri-Borough Childrens Services,Amazon EU,Section 17 Other,17.30,14.42,2.88,5969,Direct Marketing - Not Elsewhere Classified
14/12/17,Tri-Borough Childrens Services,LUL TICKET MACHINE,Staff travelling expenses,10.00,10.00,.00,4112,Passenger Railways
14/12/17,City Management and Communities,OYSTER RENEW WEB,Staff travelling expenses,50.00,50.00,.00,4112,Passenger Railways
14/12/17,Tri-Borough Childrens Services,CURRYS ONLINE,Section 17 Other,229.99,229.99,.00,5732,Electronic Sales
14/12/17,"Growth, Planning and Housing",LUL TICKET MACHINE,Staff travelling expenses,10.00,10.00,.00,4112,Passenger Railways
14/12/17,Tri-Borough Childrens Services,LUL TICKET MACHINE,Staff travelling expenses,10.00,10.00,.00,4112,Passenger Railways
14/12/17,Tri-Borough Childrens Services,MCDONALDS,Subsistence Expenses,6.29,6.29,.00,5812,Eating places and Restaurants
14/12/17,Tri-Borough ASC and NHS Integrated Commi,REGENTS PARK-CATERING,Day Opportunities,8.20,8.20,.00,5811,Caterers
14/12/17,PPC,SAINSBURYS LOC( 4286,Catering,7.00,7.00,.00,5411,Grocery Stores
14/12/17,PPC,M&S SIMPLY FOOD - SSP,Catering,31.45,31.45,.00,5499,Misc. Food Stores - Convenience Stores and Specialty Markets
14/12/17,City Management and Communities,OYSTER BUS AUTOTOP,Staff travelling expenses,40.00,40.00,.00,4112,Passenger Railways
14/12/17,City Management and Communities,OYSTER BUS AUTOTOP,Staff travelling expenses,40.00,40.00,.00,4112,Passenger Railways
14/12/17,Tri-Borough ASC and NHS Integrated Commi,Amazon UK Marketplace,"Equipment, furniture and materials",14.81,14.81,.00,5942,Book Stores
14/12/17,Tri-Borough ASC and NHS Integrated Commi,TESCO STORES  6707,Catering,7.80,7.80,.00,5411,Grocery Stores
14/12/17,Tri-Borough ASC and NHS Integrated Commi,AO RETAIL LIMITED,"Equipment, furniture and materials",204.00,204.00,.00,5722,Household Appliance Stores
14/12/17,Tri-Borough ASC and NHS Integrated Commi,POST OFFICE COUNTER,Fees,6.45,6.45,.00,9402,Postal Services - Government Only
14/12/17,Tri-Borough ASC and NHS Integrated Commi,ARGOS LTD,"Equipment, furniture and materials",20.04,20.04,.00,5310,Discount Stores
14/12/17,PPC,HOTELS.COM143828541973,Subsistence Expenses,376.83,376.83,.00,4722,Travel Agencies and Tour Operations
14/12/17,PPC,HOTELS.COM143828727544,Subsistence Expenses,55.04,55.04,.00,4722,Travel Agencies and Tour Operations
14/12/17,PPC,WWW.BIPSOLUTIONS.COM,Subscriptions,282.00,235.00,47.00,8244,Business and Secretarial Schools
14/12/17,PPC,EASYJET00 000    ET9T6MV,Staff travelling expenses,425.63,425.63,.00,3245,EasyJet Airlines
14/12/17,Tri-Borough ASC and NHS Integrated Commi,Trainline,Client travelling expenses,50.90,50.90,.00,4112,Passenger Railways
14/12/17,Tri-Borough ASC and NHS Integrated Commi,LUL TICKET MACHINE,Staff travelling expenses,30.00,30.00,.00,4112,Passenger Railways
14/12/17,Tri-Borough ASC and NHS Integrated Commi,LUL TICKET MACHINE,Staff travelling expenses,30.00,30.00,.00,4112,Passenger Railways
14/12/17,WAES,SAINSBURYS SACAT (4354,Catering,4.35,4.35,.00,5411,Grocery Stores
14/12/17,City Management and Communities,IKEA LIMITED,"Equipment, furniture and materials",-40.00,-33.33,-6.67,5712,"Furniture, Home Furnishings, and Equipment Stores, Except Appliances"
14/12/17,Chief of Staff,CMT (UK) LTD - GLASGOW,Staff travelling expenses,5.60,5.60,.00,4121,Taxicabs and Limousines
14/12/17,Chief of Staff,LEEDS GOLF CAR CO LTD,"Equipment, furniture and materials",816.00,680.00,136.00,7519,Motor Home and Recreational Vehicle Rentals
14/12/17,Tri-Borough Childrens Services,LUL TICKET MACHINE,Staff travelling expenses,9.80,9.80,.00,4112,Passenger Railways
14/12/17,City Management and Communities,Amazon UK Marketplace,"Equipment, furniture and materials",149.90,149.90,.00,5942,Book Stores
14/12/17,WAES,1 POUND SHOP,"Equipment, furniture and materials",13.00,13.00,.00,5310,Discount Stores
14/12/17,WAES,WAITROSE 756,Catering,317.49,317.49,.00,5411,Grocery Stores
14/12/17,WAES,WAITROSE 756,Catering,167.49,167.49,.00,5411,Grocery Stores
14/12/17,WAES,MARKS&SPENCER PLC SF,Catering,400.00,400.00,.00,5411,Grocery Stores
14/12/17,WAES,MARKS&SPENCER PLC SF,Catering,51.10,51.10,.00,5411,Grocery Stores
14/12/17,WAES,TESCO STORES 4447,Catering,8.00,8.00,.00,5411,Grocery Stores
14/12/17,"Growth, Planning and Housing",JAI NEWS,Client travelling expenses,10.50,10.50,.00,5994,News Dealers and Newsstands
14/12/17,"Growth, Planning and Housing",SAI NEWS,Client travelling expenses,8.25,8.25,.00,5921,"Package Stores - Beer, Wine, and Liquor"
14/12/17,"Growth, Planning and Housing",TESCO STORE 3012,Hospitality,20.00,20.00,.00,5411,Grocery Stores
14/12/17,"Growth, Planning and Housing",TESCO STORE 3012,Subsistence Expenses,15.00,15.00,.00,5411,Grocery Stores
14/12/17,"Growth, Planning and Housing",TESCO STORES,Subsistence Expenses,10.00,10.00,.00,5411,Grocery Stores
14/12/17,"Growth, Planning and Housing",SAI NEWS,Client travelling expenses,10.25,10.25,.00,5921,"Package Stores - Beer, Wine, and Liquor"
14/12/17,PPC,WESTMINSTER CITY COUNC,Fees,24.50,24.50,.00,9399,Government Services ( Not Elsewhere Classified)
14/12/17,City Management and Communities,OYSTER AUTOTOPUP,Staff travelling expenses,20.00,20.00,.00,4112,Passenger Railways
14/12/17,Tri-Borough Childrens Services,Amazon UK Marketplace,"Equipment, furniture and materials",299.00,249.17,49.83,5942,Book Stores
14/12/17,Tri-Borough Childrens Services,Amazon UK Marketplace,"Equipment, furniture and materials",9.99,8.33,1.66,5942,Book Stores
14/12/17,Tri-Borough Childrens Services,Amazon UK Marketplace,Hospitality,11.89,9.91,1.98,5942,Book Stores
15/12/17,Tri-Borough Childrens Services,Amazon UK Marketplace,Hospitality,11.99,9.99,2.00,5942,Book Stores
14/12/17,Bi-Borough Corporate Services,KFC,Subsistence Expenses,5.29,5.29,.00,5814,Fast Food Restaurants
14/12/17,Bi-Borough Corporate Services,NEW SOUTHERN RAILW,Staff travelling expenses,12.30,12.30,.00,4112,Passenger Railways
14/12/17,City Management and Communities,EXPEDIA 7315855908004,Training,75.14,75.14,.00,4722,Travel Agencies and Tour Operations
14/12/17,City Management and Communities,Amazon UK Marketplace,"Clothes, uniform and laundry",26.44,26.44,.00,5942,Book Stores
14/12/17,City Management and Communities,Trainline,Staff travelling expenses,52.53,52.53,.00,4112,Passenger Railways
14/12/17,Tri-Borough ASC and NHS Integrated Commi,OYSTER BUS AUTOTOP,Staff travelling expenses,20.00,20.00,.00,4112,Passenger Railways
14/12/17,City Management and Communities,OYSTER ISSUE WEB,Staff travelling expenses,25.00,25.00,.00,4112,Passenger Railways
14/12/17,City Management and Communities,OYSTER RENEW WEB,Staff travelling expenses,-50.00,-50.00,.00,4112,Passenger Railways
13/12/17,City Management and Communities,The Knowledge Academy,Training,946.80,946.80,.00,8249,Vocational Schools and Trade Schools
14/12/17,Tri-borough Libraries and Archives,AMAZON EU AMAZON.CO.UK,"Equipment, furniture and materials",10.61,10.61,.00,5999,Miscellaneous and Specialty Retail Stores
14/12/17,Tri-borough Libraries and Archives,AMAZON EU AMAZON.CO.UK,"Equipment, furniture and materials",26.98,26.98,.00,5999,Miscellaneous and Specialty Retail Stores
14/12/17,City Management and Communities,OYSTER AUTOTOPUP,Staff travelling expenses,20.00,20.00,.00,4112,Passenger Railways
14/12/17,City Management and Communities,LUL TICKET MACHINE,Staff travelling expenses,9.80,9.80,.00,4112,Passenger Railways
14/12/17,City Management and Communities,NEW SOUTHERN RAILW,Staff travelling expenses,12.70,12.70,.00,4112,Passenger Railways
13/12/17,Tri-Borough Childrens Services,EBUYER (UK) LTD,"ICT Purch, Lease, Hire & Maint E20",829.00,690.83,138.17,5722,Household Appliance Stores
14/12/17,Tri-Borough ASC and NHS Integrated Commi,OYSTER AUTOTOPUP,Staff travelling expenses,20.00,20.00,.00,4112,Passenger Railways
14/12/17,Tri-Borough ASC and NHS Integrated Commi,OYSTER AUTOTOPUP,Staff travelling expenses,20.00,20.00,.00,4112,Passenger Railways
13/12/17,Tri-Borough Childrens Services,LUL TICKET MACHINE,Section 17 Young Persons Support,25.00,25.00,.00,4112,Passenger Railways
13/12/17,Tri-Borough ASC and NHS Integrated Commi,RONNIES GENERAL STORE,Catering,7.59,7.59,.00,5411,Grocery Stores
13/12/17,Tri-borough Libraries and Archives,POUND PLACE LTD,Activities and Events,9.00,9.00,.00,5999,Miscellaneous and Specialty Retail Stores
13/12/17,Tri-borough Libraries and Archives,W M MORRISONS,Activities and Events,4.10,4.10,.00,5411,Grocery Stores
13/12/17,City Management and Communities,OYSTER BUS AUTOTOP,Staff travelling expenses,20.00,20.00,.00,4112,Passenger Railways
13/12/17,Tri-Borough ASC and NHS Integrated Commi,OYSTER BUS AUTOTOP,Staff travelling expenses,20.00,20.00,.00,4112,Passenger Railways
13/12/17,City Management and Communities,OYSTER AUTOTOPUP,Staff travelling expenses,20.00,20.00,.00,4112,Passenger Railways
13/12/17,City Management and Communities,OYSTER BUS AUTOTOP,Staff travelling expenses,20.00,20.00,.00,4112,Passenger Railways
13/12/17,City Management and Communities,CO-OP GROUP 500593,Subsistence Expenses,2.50,2.50,.00,5411,Grocery Stores
13/12/17,Tri-Borough Childrens Services,PASSPORT FEE,Section 17 Other,199.00,199.00,.00,7399,"Business Services, Not Elsewhere Classified"
13/12/17,Tri-Borough ASC and NHS Integrated Commi,PULLMAN LONDON ST PANC,Day Opportunities,4.00,4.00,.00,7011,"Lodging - Hotels, Motels, Resorts, Central Reservation Services (not elsewhere classified)"
13/12/17,Tri-Borough ASC and NHS Integrated Commi,OYSTER AUTOTOPUP,Staff travelling expenses,20.00,20.00,.00,4112,Passenger Railways
13/12/17,Tri-Borough ASC and NHS Integrated Commi,OYSTER BUS AUTOTOP,Staff travelling expenses,20.00,20.00,.00,4112,Passenger Railways
13/12/17,Tri-Borough ASC and NHS Integrated Commi,V&P FOX LOCKSMITHS &EN,Subsistence Expenses,11.80,11.80,.00,5722,Household Appliance Stores
13/12/17,Tri-Borough Childrens Services,BENS NEWS,Staff travelling expenses,7.70,7.70,.00,5411,Grocery Stores
13/12/17,Tri-Borough Childrens Services,PRET A MANGER,Subsistence Expenses,6.17,6.17,.00,5812,Eating places and Restaurants
13/12/17,Tri-Borough Childrens Services,Amazon EU,Teaching Materials -E19,73.29,61.04,12.25,5969,Direct Marketing - Not Elsewhere Classified
13/12/17,Tri-Borough ASC and NHS Integrated Commi,HAMMERSMITH FOODCOURT-,Subsistence Expenses,4.25,4.25,.00,5811,Caterers
13/12/17,Tri-Borough ASC and NHS Integrated Commi,HAMMERSMITH RENAL PTS,Subsistence Expenses,2.30,2.30,.00,5811,Caterers
13/12/17,Tri-Borough ASC and NHS Integrated Commi,HEMA London Victoria S,"Equipment, furniture and materials",4.00,3.33,.67,5311,Department Stores
13/12/17,Tri-Borough ASC and NHS Integrated Commi,METROPOLITAN,Subsistence Expenses,6.25,6.25,.00,5812,Eating places and Restaurants
13/12/17,Tri-borough Libraries and Archives,HEMA London Victoria S,Activities and Events,6.50,5.42,1.08,5311,Department Stores
13/12/17,Tri-borough Libraries and Archives,SAINSBURYS LOC 4366,Activities and Events,58.80,49.00,9.80,5411,Grocery Stores
13/12/17,Tri-borough Libraries and Archives,SAINSBURYS SACAT 4366,Activities and Events,17.00,14.17,2.83,5411,Grocery Stores
13/12/17,Tri-Borough Childrens Services,AMAZON SVCS EU-UK AMAZ,C/Rm & Learning Equip Excl ICT E19,22.13,22.13,.00,5942,Book Stores
13/12/17,Bi-Borough Corporate Services,POSTOFFICE SELFSERVICE,Postage,8.35,8.35,.00,9402,Postal Services - Government Only
13/12/17,Chief of Staff,ITUNES.COM/BILL,IT Software Purchase,.79,.79,.00,5735,Record Shops
13/12/17,Tri-borough Libraries and Archives,Amazon UK Marketplace,Stationery,20.90,20.90,.00,5942,Book Stores
13/12/17,Tri-Borough Childrens Services,WESTMINSTER PARKING,Tport - Prkng & Congestion Chgs,11.60,11.60,.00,7523,Automobile Parking Lots and Garages
13/12/17,Tri-Borough Childrens Services,WESTMINSTER PARKING,Tport - Prkng & Congestion Chgs,5.80,5.80,.00,7523,Automobile Parking Lots and Garages
13/12/17,Tri-Borough Childrens Services,LUL TICKET MACHINE,Staff travelling expenses,15.00,15.00,.00,4112,Passenger Railways
13/12/17,Tri-borough Libraries and Archives,TESCO STORES 5177,Catering,1.09,1.09,.00,5411,Grocery Stores
13/12/17,"Growth, Planning and Housing",OYSTER AUTOTOPUP,Staff travelling expenses,20.00,20.00,.00,4112,Passenger Railways
13/12/17,Tri-Borough Childrens Services,WEST COAST TRAINS,Staff travelling expenses,19.90,19.90,.00,4112,Passenger Railways
13/12/17,Tri-Borough Childrens Services,LUL TICKET MACHINE,Staff travelling expenses,10.00,10.00,.00,4112,Passenger Railways
13/12/17,City Management and Communities,CITB,Training,30.00,30.00,.00,8220,"Colleges, Junior Colleges, Universities, and Professional Schools"
13/12/17,Tri-Borough Childrens Services,LUL TICKET MACHINE,Staff travelling expenses,10.00,10.00,.00,4112,Passenger Railways
13/12/17,Tri-Borough Childrens Services,GREATER ANGLIA,Staff travelling expenses,10.00,10.00,.00,4112,Passenger Railways
13/12/17,Tri-Borough Childrens Services,LEON HAMMERSMITH,Subsistence Expenses,6.35,6.35,.00,5812,Eating places and Restaurants
13/12/17,City Management and Communities,OYSTER AUTOTOPUP,Staff travelling expenses,20.00,20.00,.00,4112,Passenger Railways
13/12/17,Tri-Borough Childrens Services,TESCO STORES 4447,Before & After Sch Clubs Exp E24,7.73,7.73,.00,5411,Grocery Stores
13/12/17,Chief of Staff,POSTOFFICE SELFSERVICE,Postage,31.25,31.25,.00,9402,Postal Services - Government Only
13/12/17,"Growth, Planning and Housing",LUL TICKET MACHINE,Staff travelling expenses,10.00,10.00,.00,4112,Passenger Railways
13/12/17,Tri-Borough Childrens Services,LUL TICKET MACHINE,Staff travelling expenses,10.00,10.00,.00,4112,Passenger Railways
13/12/17,Tri-Borough ASC and NHS Integrated Commi,LUL TICKET MACHINE,Client travelling expenses,5.00,5.00,.00,4112,Passenger Railways
13/12/17,Tri-Borough ASC and NHS Integrated Commi,SAINSBURYS 0602,Day Opportunities,63.65,63.65,.00,5411,Grocery Stores
13/12/17,Tri-Borough ASC and NHS Integrated Commi,ODEON,Day Opportunities,42.00,42.00,.00,7832,Motion Picture Theaters
13/12/17,Tri-Borough ASC and NHS Integrated Commi,HMCOURTS-SERVICE.G,Fees,150.00,150.00,.00,9222,Fines
12/12/17,Tri-Borough Childrens Services,LAS IGUANAS,Client travelling expenses,9.00,9.00,.00,5812,Eating places and Restaurants
12/12/17,Tri-Borough Childrens Services,LAS IGUANAS,Section 17 Young Persons Support,16.00,16.00,.00,5812,Eating places and Restaurants
13/12/17,Tri-borough Libraries and Archives,FAVOUR FAIRY,Publicity,1000.00,1000.00,.00,5441,Candy Stores
13/12/17,Chief of Staff,THE COSTUME STUDIO,"Equipment, furniture and materials",1034.00,861.67,172.33,5691,Men�s and Women�s Clothing Stores
13/12/17,Chief of Staff,PROPS N FROCKS,"Equipment, furniture and materials",340.00,283.33,56.67,7296,"Clothing Rental - Costumes, Formal Wear, Uniforms"
13/12/17,Chief of Staff,PAYPAL  WORLDBARGAI,"Equipment, furniture and materials",5.99,5.99,.00,5331,Variety Stores
13/12/17,Chief of Staff,CMT UK LTD TAXI FARE,Staff travelling expenses,11.00,11.00,.00,4121,Taxicabs and Limousines
13/12/17,City Management and Communities,AMAZON SVCS EU-UK AMAZ,"Equipment, furniture and materials",194.85,194.85,.00,5942,Book Stores
13/12/17,Tri-Borough ASC and NHS Integrated Commi,EAST MIDLANDS TRAI,Staff travelling expenses,19.90,19.90,.00,4112,Passenger Railways
13/12/17,Tri-Borough Childrens Services,OYSTER BUS AUTOTOP,Staff travelling expenses,20.00,20.00,.00,4112,Passenger Railways
13/12/17,Tri-Borough Childrens Services,PAYPAL  MANVANCOMPA,Section 17 Other,105.00,105.00,.00,7513,Truck and Utility Trailer Rentals
13/12/17,Tri-borough Libraries and Archives,POUNDLAND LTD,Activities and Events,3.00,2.50,.50,5310,Discount Stores
12/12/17,Chief of Staff,THE COSTUME STUDIO,"Equipment, furniture and materials",2500.00,2083.33,416.67,5691,Men�s and Women�s Clothing Stores
12/12/17,Chief of Staff,Amazon UK Marketplace,"Equipment, furniture and materials",19.94,19.12,.82,5942,Book Stores
12/12/17,"Growth, Planning and Housing",ALLFS CAFE,Hospitality,4.40,4.40,.00,5812,Eating places and Restaurants
12/12/17,Tri-Borough Childrens Services,MELISSA SUPERMARKE,Young Persons Subsistence Allowance,4.76,4.76,.00,5499,Misc. Food Stores - Convenience Stores and Specialty Markets
30/11/17,PPC,AMAZON UK PRIME AMZN.C,Subscriptions,7.99,7.99,.00,5968,Direct Marketing - Continuity/Subscription Merchant
12/12/17,Tri-Borough Childrens Services,WEST COAST TRAINS,Client travelling expenses,20.55,20.55,.00,4112,Passenger Railways
12/12/17,Tri-borough Libraries and Archives,Amazon UK Marketplace,"Equipment, furniture and materials",75.40,62.83,12.57,5942,Book Stores
12/12/17,Tri-borough Libraries and Archives,Amazon UK Marketplace,"Equipment, furniture and materials",75.39,62.82,12.57,5942,Book Stores
12/12/17,Tri-borough Libraries and Archives,Amazon UK Marketplace,Stationery,9.68,9.68,.00,5942,Book Stores
30/11/17,Tri-borough Libraries and Archives,AMAZON.CO.UK,Activities and Events,4.40,4.40,.00,5942,Book Stores
12/12/17,Tri-borough Libraries and Archives,WAITROSE 236,Activities and Events,6.99,6.99,.00,5411,Grocery Stores
12/12/17,City Management and Communities,IKEA LIMITED,"Equipment, furniture and materials",169.00,140.83,28.17,5712,"Furniture, Home Furnishings, and Equipment Stores, Except Appliances"
12/12/17,City Management and Communities,IKEA LIMITED,"Equipment, furniture and materials",40.00,33.33,6.67,5712,"Furniture, Home Furnishings, and Equipment Stores, Except Appliances"
12/12/17,Tri-borough Libraries and Archives,Fortnum  Mason,Stationery,54.45,54.45,.00,5499,Misc. Food Stores - Convenience Stores and Specialty Markets
12/12/17,Tri-borough Libraries and Archives,JOHN LEWIS,Stationery,120.00,120.00,.00,5311,Department Stores
12/12/17,Tri-borough Libraries and Archives,Amazon UK Marketplace,"Equipment, furniture and materials",2.89,2.89,.00,5942,Book Stores
12/12/17,Tri-borough Libraries and Archives,Amazon UK Marketplace,"Equipment, furniture and materials",6.35,5.29,1.06,5942,Book Stores
12/12/17,Tri-borough Libraries and Archives,Amazon UK Marketplace,"Equipment, furniture and materials",21.98,21.98,.00,5942,Book Stores
12/12/17,Tri-Borough Childrens Services,WWW.SHURGARD.CO.UK,Section 17 Other,79.20,79.20,.00,7399,"Business Services, Not Elsewhere Classified"
12/12/17,Chief of Staff,AUTOCLEAN,Tport - Prkng & Congestion Chgs,72.00,72.00,.00,7538,Automotive Service Shops
12/12/17,Chief of Staff,TESCO STORES 2020,"Equipment, furniture and materials",7.50,7.50,.00,5411,Grocery Stores
11/12/17,"Growth, Planning and Housing",AMAZON SVCS EU-UK AMAZ,Training,-26.36,-26.36,.00,5942,Book Stores
12/12/17,"Growth, Planning and Housing",AMAZON SVCS EU-UK AMAZ,Training,-11.62,-11.62,.00,5942,Book Stores
12/12/17,Tri-Borough Childrens Services,LEON,Subsistence Expenses,6.95,6.95,.00,5812,Eating places and Restaurants
12/12/17,Tri-Borough Childrens Services,LONDON OVERGROUND SST,Staff travelling expenses,15.00,15.00,.00,4112,Passenger Railways
12/12/17,Tri-Borough ASC and NHS Integrated Commi,TESCO STORES,Catering,35.12,35.12,.00,5411,Grocery Stores
12/12/17,Bi-Borough Corporate Services,Amazon UK Marketplace,IT Hardware Purchase,29.48,24.56,4.92,5942,Book Stores
12/12/17,Tri-Borough Childrens Services,BOXES & BUBBLE,Section 17 Other,51.60,51.60,.00,5999,Miscellaneous and Specialty Retail Stores
12/12/17,Tri-Borough Childrens Services,LUL TICKET MACHINE,Section 17 Young Persons Support,30.00,30.00,.00,4112,Passenger Railways
12/12/17,Bi-Borough Corporate Services,LUL TICKET MACHINE,Staff travelling expenses,12.30,12.30,.00,4112,Passenger Railways
12/12/17,Bi-Borough Corporate Services,MARKS&SPENCER PLC,Subsistence Expenses,6.15,6.15,.00,5411,Grocery Stores
12/12/17,Tri-borough Libraries and Archives,TESCO STORES 3012,Catering,1.09,1.09,.00,5411,Grocery Stores
12/12/17,Tri-Borough ASC and NHS Integrated Commi,Trainline,Client travelling expenses,158.61,158.61,.00,4112,Passenger Railways
12/12/17,Tri-Borough ASC and NHS Integrated Commi,Trainline,Staff travelling expenses,51.10,51.10,.00,4112,Passenger Railways
12/12/17,Tri-borough Libraries and Archives,ROBERT DYAS HOLDNG LTD,"Equipment, furniture and materials",11.97,11.97,.00,5251,Hardware Stores
12/12/17,Tri-Borough Childrens Services,LUL TICKET MACHINE,Staff travelling expenses,10.00,10.00,.00,4112,Passenger Railways
12/12/17,City Management and Communities,CIEH,Professional Subscriptions -EO8,180.00,180.00,.00,8699,Membership Organizations ( Not Elsewhere Classified)
12/12/17,City Management and Communities,CIEH,Professional Subscriptions -EO8,180.00,180.00,.00,8699,Membership Organizations ( Not Elsewhere Classified)
12/12/17,Tri-Borough ASC and NHS Integrated Commi,TESCO STORES,Subsistence Expenses,6.27,6.27,.00,5411,Grocery Stores
12/12/17,Tri-Borough ASC and NHS Integrated Commi,TESCO STORES 3012,Catering,6.00,6.00,.00,5411,Grocery Stores
12/12/17,Tri-Borough ASC and NHS Integrated Commi,CARPHONE WAREHOUSE,"Equipment, furniture and materials",39.98,39.98,.00,4812,Telecommunications Equipment including telephone sales
12/12/17,Tri-Borough ASC and NHS Integrated Commi,Spotify P044CE74F9,Subscriptions,9.99,9.99,.00,5815,"Digital Good: Media, Books, Movies, Music"
12/12/17,Corporate Services WCC,VINYL WAREHOUSE,"Equipment, furniture and materials",47.22,39.35,7.87,5231,Glass Stores
12/12/17,Tri-Borough Childrens Services,HOWARD BROTHERS,"Clothes, uniform and laundry",326.89,326.89,.00,5699,Miscellaneous Apparel and Accessory Shops
12/12/17,Tri-Borough Childrens Services,CITYFLEET/COMCAB,Staff travelling expenses,10.00,10.00,.00,4121,Taxicabs and Limousines
11/12/17,PPC,TIMES NEWSPAPERS LTD,Subscriptions,8.67,8.67,.00,5192,"Books, Periodicals, and Newspapers"
11/12/17,Tri-borough Libraries and Archives,AMAZON UK RETAIL AMAZO,"Equipment, furniture and materials",30.97,30.97,.00,5999,Miscellaneous and Specialty Retail Stores
12/12/17,Tri-borough Libraries and Archives,AMZ Book Depository,"Equipment, furniture and materials",-19.92,-19.92,.00,5999,Miscellaneous and Specialty Retail Stores
12/12/17,Tri-Borough Childrens Services,Amazon UK Marketplace,"Equipment, furniture and materials",8.99,7.49,1.50,5942,Book Stores
12/12/17,Tri-Borough Childrens Services,ONE PRICE,Section 17 Other,18.32,18.32,.00,5310,Discount Stores
12/12/17,Tri-Borough ASC and NHS Integrated Commi,SANTANA,"Equipment, furniture and materials",7.50,7.50,.00,5411,Grocery Stores
12/12/17,Tri-Borough Childrens Services,SP  CHARFLEET BOOKS,Stationery,42.35,42.35,.00,5734,Computer Software Stores
11/12/17,Tri-Borough Childrens Services,AMAZON SVCS EU-UK AMAZ,Stationery,3.99,3.99,.00,5942,Book Stores
12/12/17,City Management and Communities,NEW SOUTHERN RAILW,Staff travelling expenses,25.40,25.40,.00,4112,Passenger Railways
12/12/17,Tri-Borough Childrens Services,TENNISNUTS.COM,PE Equip Purch. & Rep. 0,144.98,120.81,24.17,5941,Sporting Goods Stores
12/12/17,Tri-Borough Childrens Services,AMAZON SVCS EU-UK AMAZ,C/Rm & Learning Equip Excl ICT E19,11.55,11.55,.00,5942,Book Stores
12/12/17,Tri-Borough Childrens Services,AMAZON SVCS EU-UK AMAZ,C/Rm & Learning Equip Excl ICT E19,10.79,10.79,.00,5942,Book Stores
12/12/17,Tri-Borough Childrens Services,AMAZON SVCS EU-UK AMAZ,C/Rm & Learning Equip Excl ICT E19,7.99,6.66,1.33,5942,Book Stores
12/12/17,Tri-Borough Childrens Services,AMAZON SVCS EU-UK AMAZ,C/Rm & Learning Equip Excl ICT E19,7.50,6.25,1.25,5942,Book Stores
12/12/17,City Management and Communities,WWW.ISLINGTON.GOV.,Tport - Prkng & Congestion Chgs,6.40,6.34,.06,7523,Automobile Parking Lots and Garages
12/12/17,City Management and Communities,WWW.ISLINGTON.GOV.,Tport - Prkng & Congestion Chgs,12.40,12.34,.06,7523,Automobile Parking Lots and Garages
12/12/17,City Management and Communities,MARKS & SPENCER PLC,Conference Expenses,61.50,61.50,.00,5411,Grocery Stores
13/12/17,Bi-Borough Corporate Services,Amazon UK Marketplace,"Equipment, furniture and materials",17.35,14.46,2.89,5942,Book Stores
30/11/17,Bi-Borough Corporate Services,AMAZON SVCS EU-UK AMAZ,Stationery,-7.99,-7.99,.00,5942,Book Stores
12/12/17,Tri-Borough ASC and NHS Integrated Commi,Amazon UK Marketplace,Day Opportunities,4.50,4.50,.00,5942,Book Stores
12/12/17,Tri-Borough ASC and NHS Integrated Commi,Amazon UK Marketplace,Day Opportunities,3.99,3.99,.00,5942,Book Stores
12/12/17,Tri-Borough ASC and NHS Integrated Commi,Amazon UK Marketplace,Day Opportunities,5.93,5.93,.00,5942,Book Stores
12/12/17,Tri-Borough ASC and NHS Integrated Commi,AMAZON.CO.UK,Day Opportunities,6.94,6.94,.00,5942,Book Stores
12/12/17,Tri-Borough ASC and NHS Integrated Commi,HMCOURTS-SERVICE.G,Fees,75.00,75.00,.00,9222,Fines
12/12/17,City Management and Communities,CMT (UK) LTD - GLASGOW,Staff travelling expenses,13.60,13.60,.00,4121,Taxicabs and Limousines
12/12/17,City Management and Communities,AMAZON UK PRIME AMZN.C,Activities and Events,-7.99,-7.99,.00,5968,Direct Marketing - Continuity/Subscription Merchant
12/12/17,Tri-Borough ASC and NHS Integrated Commi,SELFRIDGES LONDON,Day Opportunities,5.25,5.25,.00,5311,Department Stores
12/12/17,WAES,Amazon UK Marketplace,"Equipment, furniture and materials",27.93,27.93,.00,5942,Book Stores
12/12/17,WAES,Amazon UK Marketplace,"Equipment, furniture and materials",9.99,9.99,.00,5942,Book Stores
12/12/17,Tri-borough Libraries and Archives,FENWICK LTD BOND ST,Stationery,163.00,163.00,.00,5311,Department Stores
12/12/17,Tri-Borough ASC and NHS Integrated Commi,WAITROSE 174,Catering,1.80,1.80,.00,5411,Grocery Stores
11/12/17,Tri-Borough Childrens Services,Amazon UK Marketplace,C/Rm & Learning Equip Excl ICT E19,15.18,13.15,2.03,5942,Book Stores
11/12/17,Tri-Borough Childrens Services,Amazon UK Marketplace,"Admin Stat., Print & Reprog. E22",3.75,3.13,.62,5942,Book Stores
11/12/17,Tri-Borough Childrens Services,AMAZON EU AMAZON.CO.UK,C/Rm & Learning Equip Excl ICT E19,14.50,12.08,2.42,5999,Miscellaneous and Specialty Retail Stores
11/12/17,Tri-Borough Childrens Services,WWW.ARGOS.CO.UK,Cleaning and Caretaking -E14,-29.99,-29.99,.00,5310,Discount Stores
11/12/17,Tri-Borough Childrens Services,LUL TICKET MACHINE,Staff travelling expenses,30.00,30.00,.00,4112,Passenger Railways
11/12/17,Tri-Borough Childrens Services,CAFE CONCERTO LTD,Subsistence Expenses,3.50,3.50,.00,5814,Fast Food Restaurants
11/12/17,Tri-borough Libraries and Archives,Amazon UK Marketplace,Stationery,18.71,18.71,.00,5942,Book Stores
11/12/17,Tri-Borough Childrens Services,LUL TICKET MACHINE,Staff travelling expenses,30.00,30.00,.00,4112,Passenger Railways
10/12/17,Tri-Borough Childrens Services,AMAZON SVCS EU-UK AMAZ,Stationery,13.96,13.96,.00,5942,Book Stores
11/12/17,Tri-Borough Childrens Services,TULSI NEWS,Staff travelling expenses,5.90,5.90,.00,5994,News Dealers and Newsstands
11/12/17,Tri-Borough Childrens Services,STARBUCKS,Subsistence Expenses,7.14,7.14,.00,5814,Fast Food Restaurants
11/12/17,Tri-Borough Childrens Services,LUL TICKET MACHINE,Sch Trips & Educ Vsits 0,5.00,5.00,.00,4112,Passenger Railways
11/12/17,Tri-Borough Childrens Services,LUL TICKET MACHINE,Sch Trips & Educ Vsits 0,5.00,5.00,.00,4112,Passenger Railways
11/12/17,Tri-Borough Childrens Services,LUL TICKET MACHINE,Sch Trips & Educ Vsits 0,10.00,10.00,.00,4112,Passenger Railways
11/12/17,Tri-Borough Childrens Services,LUL TICKET MACHINE,Sch Trips & Educ Vsits 0,5.00,5.00,.00,4112,Passenger Railways
11/12/17,City Management and Communities,OYSTER AUTOTOPUP,Staff travelling expenses,40.00,40.00,.00,4112,Passenger Railways
11/12/17,Tri-Borough ASC and NHS Integrated Commi,Amazon UK Marketplace,"Equipment, furniture and materials",9.69,9.69,.00,5942,Book Stores
10/12/17,Tri-Borough Childrens Services,HI ROCHESTER - CHA,LAC Contact,87.00,87.00,.00,7011,"Lodging - Hotels, Motels, Resorts, Central Reservation Services (not elsewhere classified)"
10/12/17,Tri-Borough ASC and NHS Integrated Commi,AMAZON SVCS EU-UK AMAZ,Stationery,6.98,6.98,.00,5942,Book Stores
11/12/17,Tri-Borough Childrens Services,COSTA COFFEE 43041130,Subsistence Expenses,2.75,2.75,.00,5814,Fast Food Restaurants
11/12/17,Tri-Borough Childrens Services,EAST MIDLANDS TRAI,Staff travelling expenses,35.30,35.30,.00,4112,Passenger Railways
11/12/17,City Management and Communities,PETE HAWKINS LTD,"Equipment, furniture and materials",49.98,49.98,.00,7372,"Computer Programming, Integrated Systems Design and Data Processing Services"
11/12/17,City Management and Communities,WWW.PRET.COM,Training,132.87,128.23,4.64,5812,Eating places and Restaurants
11/12/17,Tri-Borough Childrens Services,WESTMINSTER PARKING,Tport - Prkng & Congestion Chgs,3.50,3.50,.00,7523,Automobile Parking Lots and Garages
11/12/17,Tri-Borough Childrens Services,PIZZA HUT ONLINE WEB,Hospitality,33.70,28.08,5.62,5814,Fast Food Restaurants
11/12/17,Tri-Borough Childrens Services,TERRASMITH LIMITED,Section 17 Other,325.20,325.20,.00,7399,"Business Services, Not Elsewhere Classified"
11/12/17,Tri-Borough Childrens Services,LUL TICKET MACHINE,Staff travelling expenses,12.30,12.30,.00,4112,Passenger Railways
11/12/17,Tri-Borough Childrens Services,LUL TICKET MACHINE,Staff travelling expenses,4.90,4.90,.00,4112,Passenger Railways
11/12/17,Tri-Borough ASC and NHS Integrated Commi,CAFFE NERO 495 LADBROK,Subsistence Expenses,5.75,5.75,.00,5814,Fast Food Restaurants
11/12/17,Tri-Borough Childrens Services,LUL TICKET MACHINE,Section 17 Young Persons Support,5.00,5.00,.00,4112,Passenger Railways
11/12/17,Tri-Borough Childrens Services,COSTA COFFEE 43041130,Subsistence Expenses,5.80,5.80,.00,5814,Fast Food Restaurants
11/12/17,Tri-Borough Childrens Services,NEW SOUTHERN RAILW,Staff travelling expenses,15.70,15.70,.00,4112,Passenger Railways
11/12/17,Tri-Borough Childrens Services,ST PANCRAS INTERNATION,Staff travelling expenses,31.30,31.30,.00,4112,Passenger Railways
11/12/17,Tri-Borough Childrens Services,CRESTOAKS,Subsistence Expenses,27.17,27.17,.00,5812,Eating places and Restaurants
11/12/17,Tri-Borough Childrens Services,Amazon UK Marketplace,Stationery,14.97,14.97,.00,5942,Book Stores
11/12/17,Tri-borough Libraries and Archives,WWWSTAMPS4UCOUK,Stationery,32.95,27.46,5.49,5734,Computer Software Stores
11/12/17,Tri-borough Libraries and Archives,ASDA SUPERSTORE 04881,Activities and Events,27.16,27.16,.00,5411,Grocery Stores
11/12/17,City Management and Communities,Amazon UK Marketplace,"Equipment, furniture and materials",79.33,79.33,.00,5942,Book Stores
11/12/17,Tri-borough Libraries and Archives,MAILCHIMP    ADCAMPAIG,Activities and Events,26.96,24.76,2.20,5968,Direct Marketing - Continuity/Subscription Merchant
11/12/17,Tri-Borough Childrens Services,BENS NEWS,Staff travelling expenses,11.20,11.20,.00,5411,Grocery Stores
11/12/17,Tri-borough Libraries and Archives,Amazon UK Marketplace,"Equipment, furniture and materials",32.66,32.66,.00,5942,Book Stores
11/12/17,City Management and Communities,OYSTER BUS AUTOTOP,Staff travelling expenses,40.00,40.00,.00,4112,Passenger Railways
11/12/17,"Growth, Planning and Housing",LAND REGISTRY,Legal Fees,6.00,6.00,.00,9399,Government Services ( Not Elsewhere Classified)
11/12/17,WAES,WP-GATEHOUSE MEDIA,"Equipment, furniture and materials",67.56,67.56,.00,5942,Book Stores
11/12/17,WAES,WWW.CASSART.CO.UK,"Equipment, furniture and materials",50.00,50.00,.00,5970,Artist�s Supply and Craft Shops
11/12/17,Tri-Borough Childrens Services,MEPANI NEWS,Client travelling expenses,20.00,20.00,.00,5994,News Dealers and Newsstands
11/12/17,Tri-Borough Childrens Services,MEPANI NEWS,Young Persons Subsistence Allowance,2.18,2.18,.00,5994,News Dealers and Newsstands
11/12/17,Tri-Borough Childrens Services,ALDI 18 776,Young Persons Subsistence Allowance,7.47,7.47,.00,5411,Grocery Stores
11/12/17,PPC,ADOBE  CREATIVE CLOUD,Subscriptions,49.94,41.62,8.32,5734,Computer Software Stores
11/12/17,PPC,SAINSBURYS SACAT (4286,Catering,16.60,16.60,.00,5411,Grocery Stores
11/12/17,Tri-borough Libraries and Archives,Amazon UK Marketplace,"Equipment, furniture and materials",30.99,25.82,5.17,5942,Book Stores
11/12/17,Tri-borough Libraries and Archives,AMAZON.CO.UK,IT Hardware Purchase,61.30,51.09,10.21,5942,Book Stores
11/12/17,Bi-Borough Corporate Services,4D MODELSHOP LIMITED,,-107.88,-107.88,.00,5046,"Commercial Equipment, Not Elsewhere Classified"
11/12/17,Chief of Staff,PAYPAL  GOBRANDSLIM,"Equipment, furniture and materials",11.25,11.25,.00,5941,Sporting Goods Stores
11/12/17,Chief of Staff,AMAZON EU AMAZON.CO.UK,Stationery,82.62,68.85,13.77,5999,Miscellaneous and Specialty Retail Stores
11/12/17,City Management and Communities,OYSTER RENEW WEB,Staff travelling expenses,-20.00,-20.00,.00,4112,Passenger Railways
11/12/17,City Management and Communities,OYSTER RENEW WEB,Staff travelling expenses,-20.00,-20.00,.00,4112,Passenger Railways
11/12/17,City Management and Communities,OYSTER RENEW WEB,Staff travelling expenses,-20.00,-20.00,.00,4112,Passenger Railways
11/12/17,Tri-Borough Childrens Services,BURGER KING,Subsistence Expenses,6.29,6.29,.00,5814,Fast Food Restaurants
11/12/17,Tri-Borough Childrens Services,POST OFFICE COUNTER,Postage,11.00,11.00,.00,9402,Postal Services - Government Only
07/12/17,Tri-Borough Childrens Services,AMAZON SVCS EU-UK AMAZ,"Equipment, furniture and materials",64.95,64.95,.00,5942,Book Stores
08/12/17,Tri-borough Libraries and Archives,AMAZON.CO.UK,Activities and Events,13.70,13.70,.00,5942,Book Stores
09/12/17,Tri-borough Libraries and Archives,SAINSBURYS SACAT 0602,"Equipment, furniture and materials",14.00,14.00,.00,5411,Grocery Stores
08/12/17,Tri-borough Libraries and Archives,1 POUND SHOP,Activities and Events,13.05,13.05,.00,5310,Discount Stores
07/12/17,City Management and Communities,BARRY BROS SECURITY DE,"Equipment, furniture and materials",450.00,375.00,75.00,7393,Protective and Security Services - Including Armored Cars and Guard Dogs
08/12/17,City Management and Communities,POST OFFICE COUNTER,Postage,21.36,17.80,3.56,9402,Postal Services - Government Only
08/12/17,City Management and Communities,ETI LTD,"Equipment, furniture and materials",16.20,13.25,2.95,5085,"Industrial Supplies, Not Elsewhere Classified"
08/12/17,City Management and Communities,ETI LTD,"Equipment, furniture and materials",16.20,13.25,2.95,5085,"Industrial Supplies, Not Elsewhere Classified"
08/12/17,City Management and Communities,OYSTER BUS AUTOTOP,Staff travelling expenses,40.00,40.00,.00,4112,Passenger Railways
08/12/17,Tri-Borough ASC and NHS Integrated Commi,TRI BOROUGH- LISSON GR,Subsistence Expenses,3.95,3.95,.00,5811,Caterers
08/12/17,Tri-Borough Childrens Services,PRET A MANGER,Subsistence Expenses,2.45,2.45,.00,5812,Eating places and Restaurants
08/12/17,Tri-Borough Childrens Services,PRET A MANGER,Subsistence Expenses,1.50,1.50,.00,5812,Eating places and Restaurants
08/12/17,Tri-Borough Childrens Services,RADISSON BLU HOTEL AND,Subsistence Expenses,12.15,12.15,.00,7011,"Lodging - Hotels, Motels, Resorts, Central Reservation Services (not elsewhere classified)"
08/12/17,Tri-Borough Childrens Services,ONE PRICE,Hospitality,7.00,7.00,.00,5310,Discount Stores
08/12/17,Tri-Borough Childrens Services,LUL TICKET MACHINE,Section 17 Young Persons Support,20.00,20.00,.00,4112,Passenger Railways
09/12/17,Tri-Borough Childrens Services,RADISSON BLU HOTEL AND,Staff travelling expenses,80.90,80.90,.00,7011,"Lodging - Hotels, Motels, Resorts, Central Reservation Services (not elsewhere classified)"
09/12/17,Tri-Borough Childrens Services,IRELAND WEST AIRPORT K,Staff travelling expenses,9.06,9.06,.00,4582,"Airports, Airport Terminals"
10/12/17,Corporate Services WCC,OYSTER AUTOTOPUP,Staff travelling expenses,20.00,20.00,.00,4112,Passenger Railways
08/12/17,Tri-Borough Childrens Services,KFC - HIGHBURY,Client travelling expenses,5.79,5.79,.00,5814,Fast Food Restaurants
08/12/17,Tri-Borough Childrens Services,LUL TICKET MACHINE,Section 17 Young Persons Support,33.00,33.00,.00,4112,Passenger Railways
08/12/17,Tri-Borough Childrens Services,ARGOS LTD,Hospitality,40.01,40.01,.00,5310,Discount Stores
08/12/17,Tri-Borough Childrens Services,TESCO STORES 3012,Hospitality,8.10,8.10,.00,5411,Grocery Stores
08/12/17,Bi-Borough Corporate Services,LUL TICKET MACHINE,Staff travelling expenses,12.30,12.30,.00,4112,Passenger Railways
08/12/17,Bi-Borough Corporate Services,TESCO-STORES 2610,Subsistence Expenses,4.26,4.26,.00,5411,Grocery Stores
09/12/17,Tri-borough Libraries and Archives,POUNDLAND LTD 1231,Activities and Events,8.00,6.67,1.33,5310,Discount Stores
10/12/17,Tri-borough Libraries and Archives,W M MORRISONS,Activities and Events,3.00,3.00,.00,5411,Grocery Stores
08/12/17,City Management and Communities,OYSTER AUTOTOPUP,Staff travelling expenses,40.00,40.00,.00,4112,Passenger Railways
08/12/17,City Management and Communities,OYSTER BUS AUTOTOP,Staff travelling expenses,20.00,20.00,.00,4112,Passenger Railways
08/12/17,City Management and Communities,OYSTER AUTOTOPUP,Staff travelling expenses,40.00,40.00,.00,4112,Passenger Railways
10/12/17,City Management and Communities,OYSTER BUS AUTOTOP,Staff travelling expenses,20.00,20.00,.00,4112,Passenger Railways
08/12/17,Tri-borough Libraries and Archives,MARKS&SPENCER PLC,Stationery,8.55,8.55,.00,5411,Grocery Stores
10/12/17,Tri-Borough ASC and NHS Integrated Commi,OYSTER BUS AUTOTOP,Staff travelling expenses,20.00,20.00,.00,4112,Passenger Railways
09/12/17,City Management and Communities,OYSTER AUTOTOPUP,Staff travelling expenses,20.00,20.00,.00,4112,Passenger Railways
10/12/17,"Growth, Planning and Housing",OYSTER AUTOTOPUP,Staff travelling expenses,40.00,40.00,.00,4112,Passenger Railways
10/12/17,"Growth, Planning and Housing",OYSTER BUS AUTOTOP,Staff travelling expenses,40.00,40.00,.00,4112,Passenger Railways
08/12/17,Tri-Borough Childrens Services,LUL TICKET MACHINE,Staff travelling expenses,10.00,10.00,.00,4112,Passenger Railways
08/12/17,City Treasurers,Trainline,Staff travelling expenses,771.63,771.63,.00,4112,Passenger Railways
09/12/17,City Treasurers,THE ROYAL STATION,Staff travelling expenses,307.50,307.50,.00,7011,"Lodging - Hotels, Motels, Resorts, Central Reservation Services (not elsewhere classified)"
08/12/17,Tri-Borough ASC and NHS Integrated Commi,OYSTER BUS AUTOTOP,Staff travelling expenses,20.00,20.00,.00,4112,Passenger Railways
09/12/17,Tri-Borough ASC and NHS Integrated Commi,OYSTER AUTOTOPUP,Staff travelling expenses,20.00,20.00,.00,4112,Passenger Railways
09/12/17,Tri-Borough ASC and NHS Integrated Commi,OYSTER BUS AUTOTOP,Staff travelling expenses,20.00,20.00,.00,4112,Passenger Railways
10/12/17,Tri-Borough ASC and NHS Integrated Commi,OYSTER AUTOTOPUP,Staff travelling expenses,20.00,20.00,.00,4112,Passenger Railways
09/12/17,Tri-Borough Childrens Services,AMZ Amazon.co.uk,Staff Empl Cost of M & Equip E12,-3.11,-2.59,-.52,5969,Direct Marketing - Not Elsewhere Classified
09/12/17,Tri-Borough Childrens Services,AMZ Amazon.co.uk,"ICT Purch, Lease, Hire & Maint E20",-16.47,-13.71,-2.76,5999,Miscellaneous and Specialty Retail Stores
09/12/17,Tri-borough Libraries and Archives,Amazon UK Marketplace,"Equipment, furniture and materials",9.02,9.02,.00,5942,Book Stores
08/12/17,Tri-Borough ASC and NHS Integrated Commi,BOOTS 1903,"Equipment, furniture and materials",2.99,2.99,.00,5912,Drug Stores and Pharmacies
08/12/17,Tri-Borough Childrens Services,TESCO STORE 3012,Contingency,20.93,20.93,.00,5411,Grocery Stores
09/12/17,Tri-Borough Childrens Services,PLATINUM GROCERY,Subsistence Expenses,5.20,5.20,.00,5411,Grocery Stores
08/12/17,Tri-Borough Childrens Services,HI ROCHESTER - CHA,LAC Contact,86.00,86.00,.00,7011,"Lodging - Hotels, Motels, Resorts, Central Reservation Services (not elsewhere classified)"
10/12/17,Tri-borough Libraries and Archives,LUL TICKET MACHINE,Staff travelling expenses,10.00,10.00,.00,4112,Passenger Railways
10/12/17,City Management and Communities,OYSTER AUTOTOPUP,Staff travelling expenses,20.00,20.00,.00,4112,Passenger Railways
08/12/17,"Growth, Planning and Housing",POUNDLAND LTD 1398,Stationery,36.00,31.34,4.66,5310,Discount Stores
08/12/17,"Growth, Planning and Housing",POUND PLACE LTD,Stationery,10.98,10.98,.00,5999,Miscellaneous and Specialty Retail Stores
08/12/17,"Growth, Planning and Housing",POUND SUPERSTORE,Stationery,7.00,7.00,.00,5722,Household Appliance Stores
08/12/17,Tri-borough Libraries and Archives,SAINSBURYS SACAT (4354,Activities and Events,5.00,5.00,.00,5411,Grocery Stores
09/12/17,City Management and Communities,OYSTER AUTOTOPUP,Staff travelling expenses,40.00,40.00,.00,4112,Passenger Railways
10/12/17,City Management and Communities,OYSTER BUS AUTOTOP,Staff travelling expenses,40.00,40.00,.00,4112,Passenger Railways
08/12/17,"Growth, Planning and Housing",OYSTER RENEW WEB,Staff travelling expenses,20.00,20.00,.00,4112,Passenger Railways
08/12/17,"Growth, Planning and Housing",OYSTER RENEW WEB,Staff travelling expenses,-20.00,-20.00,.00,4112,Passenger Railways
07/12/17,Chief of Staff,CMT (UK) LTD - GLASGOW,Staff travelling expenses,21.40,21.40,.00,4121,Taxicabs and Limousines
08/12/17,Chief of Staff,ESCAPADERS LTD,"Equipment, furniture and materials",42.99,35.83,7.16,5631,Women�s Accessory and Specialty Shops
08/12/17,Chief of Staff,M&S SIMPLY FOOD - SSP,Hospitality,16.25,16.25,.00,5499,Misc. Food Stores - Convenience Stores and Specialty Markets
08/12/17,Tri-Borough Childrens Services,LUL TICKET MACHINE,Section 17 Young Persons Support,126.80,126.80,.00,4112,Passenger Railways
09/12/17,Tri-Borough Childrens Services,Amazon Prime,Activities and Events,7.99,7.99,.00,5968,Direct Marketing - Continuity/Subscription Merchant
08/12/17,City Management and Communities,OYSTER AUTOTOPUP,Staff travelling expenses,20.00,20.00,.00,4112,Passenger Railways
09/12/17,City Management and Communities,APPFIGURES,IT Software Purchase,6.94,6.94,.00,7372,"Computer Programming, Integrated Systems Design and Data Processing Services"
08/12/17,Tri-Borough ASC and NHS Integrated Commi,LONDON COUNCILS,ASC Transfer Payments - other,10.00,10.00,.00,9399,Government Services ( Not Elsewhere Classified)
08/12/17,Tri-borough Libraries and Archives,Amazon EU,"Equipment, furniture and materials",7.99,7.99,.00,5969,Direct Marketing - Not Elsewhere Classified
09/12/17,Tri-borough Libraries and Archives,Amazon EU,"Equipment, furniture and materials",26.99,26.99,.00,5969,Direct Marketing - Not Elsewhere Classified
09/12/17,City Management and Communities,OYSTER AUTOTOPUP,Staff travelling expenses,20.00,20.00,.00,4112,Passenger Railways
09/12/17,City Management and Communities,OYSTER AUTOTOPUP,Staff travelling expenses,20.00,20.00,.00,4112,Passenger Railways
09/12/17,Tri-Borough Childrens Services,OYSTER AUTOTOPUP,Staff travelling expenses,20.00,20.00,.00,4112,Passenger Railways
08/12/17,Tri-Borough Childrens Services,SOUTHEASTERN WEB,Staff travelling expenses,51.60,51.60,.00,4112,Passenger Railways
08/12/17,City Management and Communities,SNAPPY SNAPS STORE 246,"Equipment, furniture and materials",363.86,303.22,60.64,7395,"Photofinishing Laboratories, Photo Developing"
08/12/17,"Growth, Planning and Housing",PRIMARK,Stationery,28.00,28.00,.00,5651,Family Clothing Stores
09/12/17,"Growth, Planning and Housing",MARKS&SPENCER PLC,Catering,287.46,287.38,.08,5411,Grocery Stores
08/12/17,Tri-Borough ASC and NHS Integrated Commi,AMAZON UK PRIME AMZN.C,"Equipment, furniture and materials",-7.99,-7.99,.00,5968,Direct Marketing - Continuity/Subscription Merchant
08/12/17,Tri-Borough Childrens Services,WHICH,"S/scriptns, pblcations, Per Non Cur E22",11.75,11.75,.00,5968,Direct Marketing - Continuity/Subscription Merchant
09/12/17,Tri-borough Libraries and Archives,AMAZON.CO.UK,Stationery,2.99,2.99,.00,5942,Book Stores
10/12/17,Tri-borough Libraries and Archives,Amazon UK Marketplace,Stationery,13.48,13.48,.00,5942,Book Stores
10/12/17,Tri-borough Libraries and Archives,Amazon UK Marketplace,Stationery,15.20,15.20,.00,5942,Book Stores
10/12/17,Tri-borough Libraries and Archives,Amazon UK Marketplace,Stationery,1.43,1.43,.00,5942,Book Stores
10/12/17,Tri-borough Libraries and Archives,AMAZON.CO.UK,Stationery,3.99,3.99,.00,5942,Book Stores
06/12/17,Tri-Borough ASC and NHS Integrated Commi,WWW.ADDISONLEE.COM,Staff travelling expenses,113.50,113.50,.00,4121,Taxicabs and Limousines
10/12/17,Tri-Borough ASC and NHS Integrated Commi,WWW.ADDISONLEE.COM,Staff travelling expenses,130.00,130.00,.00,4121,Taxicabs and Limousines
10/12/17,Tri-Borough ASC and NHS Integrated Commi,WWW.ADDISONLEE.COM,Staff travelling expenses,117.00,117.00,.00,4121,Taxicabs and Limousines
09/12/17,Tri-Borough Childrens Services,AMAZON SVCS EU-UK AMAZ,Stationery,6.98,6.98,.00,5942,Book Stores
08/12/17,Tri-Borough Childrens Services,AMAZON EU AMAZON.CO.UK,Stationery,6.25,5.21,1.04,5999,Miscellaneous and Specialty Retail Stores
08/12/17,Tri-Borough Childrens Services,POST OFFICE COUNTER,Staff travelling expenses,10.00,10.00,.00,9402,Postal Services - Government Only
08/12/17,Tri-Borough Childrens Services,CENTRAL RADIO CARS,Staff travelling expenses,5.00,5.00,.00,4121,Taxicabs and Limousines
08/12/17,Tri-Borough Childrens Services,LUL TICKET MACHINE,Staff travelling expenses,12.30,12.30,.00,4112,Passenger Railways
08/12/17,"Growth, Planning and Housing",OYSTER AUTOTOPUP,Staff travelling expenses,40.00,40.00,.00,4112,Passenger Railways
08/12/17,Tri-Borough Childrens Services,WWW.WESTMINSTER-BRIEFI,Conference Expenses,354.00,295.00,59.00,8244,Business and Secretarial Schools
08/12/17,Tri-Borough Childrens Services,LUL TICKET MACHINE,Staff travelling expenses,5.00,5.00,.00,4112,Passenger Railways
08/12/17,Tri-Borough Childrens Services,BARBURRITO HAMMERSMITH,Subsistence Expenses,16.00,16.00,.00,5814,Fast Food Restaurants
05/12/17,"Growth, Planning and Housing",GWR LOND PADD SST,Staff travelling expenses,46.00,46.00,.00,4112,Passenger Railways
08/12/17,Tri-Borough Childrens Services,SAINSBURYS SACAT 2327,Subsistence Expenses,4.20,4.20,.00,5411,Grocery Stores
08/12/17,Tri-Borough Childrens Services,ABBEY WOOD SST,Staff travelling expenses,10.00,10.00,.00,4112,Passenger Railways
08/12/17,Tri-Borough Childrens Services,ABBEY WOOD TO,Staff travelling expenses,10.80,10.80,.00,4112,Passenger Railways
08/12/17,Tri-Borough Childrens Services,WWW.ACCESSTRAININGUK.C,S24 Support allowance,255.17,255.17,.00,8249,Vocational Schools and Trade Schools
08/12/17,City Management and Communities,OYSTER AUTOTOPUP,Staff travelling expenses,20.00,20.00,.00,4112,Passenger Railways
08/12/17,Tri-Borough Childrens Services,MCDONALDS,Subsistence Expenses,5.48,5.48,.00,5812,Eating places and Restaurants
08/12/17,Tri-Borough Childrens Services,LONDON & SOUTH EAS,Staff travelling expenses,3.10,3.10,.00,4112,Passenger Railways
08/12/17,Tri-Borough Childrens Services,LONDON & SOUTH EAS,Staff travelling expenses,22.20,22.20,.00,4112,Passenger Railways
07/12/17,Tri-Borough ASC and NHS Integrated Commi,PRIMARK,"Clothes, uniform and laundry",32.50,32.50,.00,5651,Family Clothing Stores
08/12/17,Tri-Borough ASC and NHS Integrated Commi,LUL TICKET MACHINE,Client travelling expenses,10.00,10.00,.00,4112,Passenger Railways
08/12/17,Tri-Borough ASC and NHS Integrated Commi,CAFFE NERO 500 MAIDA V,Day Opportunities,2.60,2.60,.00,5814,Fast Food Restaurants
08/12/17,City Management and Communities,POST OFFICE COUNTER,Postage,16.20,13.50,2.70,9402,Postal Services - Government Only
08/12/17,Bi-Borough Corporate Services,Amazon UK Marketplace,Stationery,36.70,36.70,.00,5942,Book Stores
08/12/17,Tri-Borough ASC and NHS Integrated Commi,RONNIES GENERAL STORE,Cleaning and domestic supplies,4.24,4.24,.00,5411,Grocery Stores
10/12/17,Tri-Borough ASC and NHS Integrated Commi,OYSTER BUS AUTOTOP,Staff travelling expenses,20.00,20.00,.00,4112,Passenger Railways
09/12/17,Tri-Borough Childrens Services,LONDON OVERGROUND SST,Staff travelling expenses,5.00,5.00,.00,4112,Passenger Railways
08/12/17,Tri-Borough ASC and NHS Integrated Commi,PP ABELLIOEAST,Catering,4.40,4.40,.00,4789,"Transportation Services, Not elsewhere classified)"
08/12/17,City Management and Communities,OYSTER AUTOTOPUP,Staff travelling expenses,20.00,20.00,.00,4112,Passenger Railways
08/12/17,Tri-Borough Childrens Services,WCPC VICTORIA STAT0021,Staff travelling expenses,6.95,6.95,.00,5812,Eating places and Restaurants
08/12/17,Tri-Borough Childrens Services,LONDON & SOUTH EAS,Staff travelling expenses,18.40,18.40,.00,4112,Passenger Railways
08/12/17,Tri-Borough Childrens Services,NEW SOUTHERN RAILW,Staff travelling expenses,18.60,18.60,.00,4112,Passenger Railways
08/12/17,Tri-Borough Childrens Services,Amazon UK Marketplace,"Equipment, furniture and materials",17.17,17.17,.00,5942,Book Stores
07/12/17,City Management and Communities,OYSTER AUTOTOPUP,Staff travelling expenses,20.00,20.00,.00,4112,Passenger Railways
07/12/17,City Management and Communities,OYSTER AUTOTOPUP,Staff travelling expenses,20.00,20.00,.00,4112,Passenger Railways
07/12/17,City Treasurers,OYSTER AUTOTOPUP,Staff travelling expenses,40.00,40.00,.00,4112,Passenger Railways
07/12/17,City Management and Communities,OYSTER BUS AUTOTOP,Staff travelling expenses,20.00,20.00,.00,4112,Passenger Railways
07/12/17,Tri-borough Libraries and Archives,MAILCHIMP    MONTHLY,Activities and Events,56.72,52.08,4.64,5968,Direct Marketing - Continuity/Subscription Merchant
07/12/17,Tri-Borough ASC and NHS Integrated Commi,TESCO STORE 3012,Catering,10.47,10.47,.00,5411,Grocery Stores
07/12/17,Tri-Borough ASC and NHS Integrated Commi,OYSTER AUTOTOPUP,Staff travelling expenses,20.00,20.00,.00,4112,Passenger Railways
07/12/17,Tri-Borough Childrens Services,Amazon UK Marketplace,Medical and Domestic Supplies -E22,14.29,11.91,2.38,5942,Book Stores
07/12/17,Tri-Borough Childrens Services,Amazon EU,"Admin Stat., Print & Reprog. E22",10.00,8.32,1.68,5969,Direct Marketing - Not Elsewhere Classified
07/12/17,City Management and Communities,ARGOS RETAIL GROUP,Stationery,6.50,5.42,1.08,5310,Discount Stores
07/12/17,City Management and Communities,ARGOS RETAIL GROUP,Stationery,6.49,5.41,1.08,5310,Discount Stores
07/12/17,City Management and Communities,AMAZON UK PRIME AMZN.C,Stationery,-7.99,-7.99,.00,5968,Direct Marketing - Continuity/Subscription Merchant
07/12/17,"Growth, Planning and Housing",TESCO STORES (5565),Activities and Events,19.20,19.20,.00,5411,Grocery Stores
07/12/17,"Growth, Planning and Housing",POUND PLACE LTD,"Equipment, furniture and materials",5.97,5.97,.00,5999,Miscellaneous and Specialty Retail Stores
07/12/17,Chief of Staff,Amazon UK Marketplace,"Equipment, furniture and materials",22.00,22.00,.00,5942,Book Stores
07/12/17,Chief of Staff,JOHN LEWIS,"Equipment, furniture and materials",12.00,10.00,2.00,5311,Department Stores
07/12/17,Chief of Staff,PAUL UK,Hospitality,13.20,13.20,.00,5812,Eating places and Restaurants
07/12/17,Chief of Staff,THE OSTLER LTD,"Equipment, furniture and materials",590.00,590.00,.00,7399,"Business Services, Not Elsewhere Classified"
07/12/17,Tri-Borough Childrens Services,Amazon EU,Staff Empl Cost of M & Equip E12,3.11,2.59,.52,5969,Direct Marketing - Not Elsewhere Classified
07/12/17,Tri-Borough Childrens Services,OYSTER BUS AUTOTOP,Staff travelling expenses,20.00,20.00,.00,4112,Passenger Railways
07/12/17,City Management and Communities,Amazon EU,IT Hardware Purchase,169.98,141.64,28.34,5969,Direct Marketing - Not Elsewhere Classified
07/12/17,City Management and Communities,OYSTER RENEW WEB,Staff travelling expenses,50.00,50.00,.00,4112,Passenger Railways
07/12/17,Tri-borough Libraries and Archives,Amazon UK Marketplace,"Equipment, furniture and materials",4.54,4.54,.00,5942,Book Stores
07/12/17,Tri-borough Libraries and Archives,Amazon UK Marketplace,"Equipment, furniture and materials",85.97,85.97,.00,5942,Book Stores
07/12/17,Tri-borough Libraries and Archives,Amazon UK Marketplace,"Equipment, furniture and materials",4.75,4.75,.00,5942,Book Stores
08/12/17,PPC,ITUNES.COM/BILLITUNES.COM,Telephony,-.75,-.75,.00,5942,Book Stores
08/12/17,PPC,FRIENDS OF THE EARTH LLONDON SW9 0H,"Equipment, furniture and materials",-15.00,-15.00,.00,5942,Book Stores
08/12/17,PPC,FRIENDS OF THE EARTH LLONDON SW9 0H,"Equipment, furniture and materials",-15.00,-15.00,.00,5942,Book Stores
08/12/17,PPC,FRIENDS OF THE EARTH LLONDON SW9 0H,"Equipment, furniture and materials",-15.00,-15.00,.00,5942,Book Stores
08/12/17,PPC,FRIENDS OF THE EARTH LLONDON SW9 0H,"Equipment, furniture and materials",-15.00,-15.00,.00,5942,Book Stores
08/12/17,PPC,ITUNES.COM/BILLITUNES.COM,Telephony,-26.96,-26.96,.00,5942,Book Stores
08/12/17,PPC,FRIENDS OF THE EARTH LLONDON SW9 0H,"Equipment, furniture and materials",-15.00,-15.00,.00,5942,Book Stores
08/12/17,PPC,ITUNES.COM/BILLITUNES.COM,Telephony,-.30,-.30,.00,5942,Book Stores
08/12/17,PPC,FRIENDS OF THE EARTH LLONDON SW9 0H,"Equipment, furniture and materials",-15.00,-15.00,.00,5942,Book Stores
08/12/17,PPC,ITUNES.COM/BILLITUNES.COM,Telephony,-31.96,-31.96,.00,5942,Book Stores
08/12/17,PPC,FRIENDS OF THE EARTH LLONDON SW9 0H,"Equipment, furniture and materials",-15.00,-15.00,.00,5942,Book Stores
08/12/17,PPC,FRIENDS OF THE EARTH LLONDON SW9 0H,"Equipment, furniture and materials",-15.00,-15.00,.00,5942,Book Stores
07/12/17,Tri-Borough ASC and NHS Integrated Commi,PIZZA HUT 342,Subsistence Expenses,7.50,7.50,.00,5812,Eating places and Restaurants
07/12/17,Tri-Borough ASC and NHS Integrated Commi,TENPIN,Day Opportunities,4.35,4.35,.00,7997,"Membership Clubs (Sports, Recreation, Athletic), Country Clubs, and Private Golf Courses"
06/12/17,Tri-borough Libraries and Archives,AMAZON SVCS EU-UK AMAZ,Activities and Events,7.49,6.24,1.25,5942,Book Stores
07/12/17,Tri-borough Libraries and Archives,AMAZON SVCS EU-UK AMAZ,Activities and Events,5.64,4.70,.94,5942,Book Stores
07/12/17,City Management and Communities,OYSTER RENEW WEB,Staff travelling expenses,10.00,10.00,.00,4112,Passenger Railways
07/12/17,City Management and Communities,SOUTHERN RAILWAY L,Staff travelling expenses,18.30,18.30,.00,4112,Passenger Railways
07/12/17,City Management and Communities,OYSTER BUS AUTOTOP,Staff travelling expenses,20.00,20.00,.00,4112,Passenger Railways
07/12/17,Tri-Borough Childrens Services,ROALD DAHL MUSEUM STOR,Sch Trips & Educ Vsits 0,380.00,380.00,.00,7991,Tourist Attractions and Exhibits
07/12/17,Tri-Borough Childrens Services,PAYPAL  PHONICBOOKS,Bks (Lib. & Txt bks) -E19,150.90,150.90,.00,8211,Elementary and Secondary Schools
07/12/17,Tri-Borough Childrens Services,CLASS FUNDRAISING LTD,Purch of trading items for resale E24,348.00,290.00,58.00,5399,Misc. General Merchandise
07/12/17,Tri-Borough Childrens Services,QUICKSTEP,PE Equip Purch. & Rep. 0,16.00,13.33,2.67,7251,"Shop Repair Shops and Shoe Shine Parlors, and Hat Cleaning Shops"
07/12/17,Tri-Borough Childrens Services,WWW.GL-EDUCATION.C,C/Rm & Learning Equip Excl ICT E19,35.27,29.39,5.88,5942,Book Stores
07/12/17,Chief of Staff,OYSTER AUTOTOPUP,Staff travelling expenses,20.00,20.00,.00,4112,Passenger Railways
07/12/17,Tri-Borough Childrens Services,NISA LOCAL ELSTREE STA,Staff travelling expenses,5.00,5.00,.00,5499,Misc. Food Stores - Convenience Stores and Specialty Markets
07/12/17,Tri-Borough Childrens Services,WESTMINSTER PARKING,Tport - Prkng & Congestion Chgs,11.60,11.60,.00,7523,Automobile Parking Lots and Garages
07/12/17,Tri-Borough Childrens Services,WEST COAST TRAINS,Staff travelling expenses,140.10,140.10,.00,4112,Passenger Railways
07/12/17,Tri-Borough Childrens Services,RYMAN 1085,"Equipment, furniture and materials",7.97,7.97,.00,5943,"Stationery Stores, Office and School Supply Stores"
07/12/17,Tri-Borough Childrens Services,LONDON & SOUTH EAS,Staff travelling expenses,17.50,17.50,.00,4112,Passenger Railways
07/12/17,Tri-Borough ASC and NHS Integrated Commi,OYSTER BUS AUTOTOP,Staff travelling expenses,20.00,20.00,.00,4112,Passenger Railways
07/12/17,Tri-borough Libraries and Archives,Amazon UK Marketplace,"Equipment, furniture and materials",8.94,8.94,.00,5942,Book Stores
07/12/17,Tri-borough Libraries and Archives,Amazon EU,"Equipment, furniture and materials",45.71,45.71,.00,5969,Direct Marketing - Not Elsewhere Classified
07/12/17,Tri-borough Libraries and Archives,Amazon EU,"Equipment, furniture and materials",16.98,16.98,.00,5969,Direct Marketing - Not Elsewhere Classified
07/12/17,Tri-borough Libraries and Archives,AMAZON.CO.UK,"Equipment, furniture and materials",15.79,15.79,.00,5942,Book Stores
07/12/17,Tri-borough Libraries and Archives,Amazon EU,"Equipment, furniture and materials",72.60,72.60,.00,5969,Direct Marketing - Not Elsewhere Classified
07/12/17,City Management and Communities,OYSTER AUTOTOPUP,Staff travelling expenses,20.00,20.00,.00,4112,Passenger Railways
07/12/17,Tri-Borough Childrens Services,LUL TICKET MACHINE,Staff travelling expenses,20.00,20.00,.00,4112,Passenger Railways
07/12/17,Tri-Borough ASC and NHS Integrated Commi,VUE BSL LTD,"Equipment, furniture and materials",10.99,10.99,.00,7832,Motion Picture Theaters
07/12/17,Tri-Borough Childrens Services,LUL TICKET MACHINE,Staff travelling expenses,50.00,50.00,.00,4112,Passenger Railways
07/12/17,Tri-Borough Childrens Services,STEFFAS & ASSOCIATES P,Subsistence Expenses,2375.58,2375.58,.00,8111,Legal Services and Attorneys
07/12/17,Bi-Borough Children,LUL TICKET MACHINE,Staff travelling expenses,10.00,10.00,.00,4112,Passenger Railways
07/12/17,Bi-Borough Children,MUMBAI LOCAL,Subsistence Expenses,6.00,6.00,.00,5812,Eating places and Restaurants
07/12/17,Tri-Borough Childrens Services,ARGOS LTD,Hospitality,19.99,19.99,.00,5310,Discount Stores
07/12/17,Tri-Borough Childrens Services,WH SMITH,Hospitality,23.99,23.99,.00,5994,News Dealers and Newsstands
07/12/17,Tri-Borough Childrens Services,LONDON OVERGROUND SST,Staff travelling expenses,10.00,10.00,.00,4112,Passenger Railways
07/12/17,Tri-Borough Childrens Services,GOYA LONDON,Emp. Trvl & Sub -EO8,1.75,1.75,.00,5812,Eating places and Restaurants
07/12/17,Tri-Borough Childrens Services,LONDON & SOUTH EAS,Staff travelling expenses,20.00,20.00,.00,4112,Passenger Railways
07/12/17,Tri-Borough Childrens Services,LUL TICKET MACHINE,Staff travelling expenses,5.00,5.00,.00,4112,Passenger Railways
07/12/17,Tri-Borough Childrens Services,WASABI HAMMERSMITH,Subsistence Expenses,11.50,11.50,.00,5812,Eating places and Restaurants
07/12/17,"Growth, Planning and Housing",Amazon UK Marketplace,Stationery,7.84,6.53,1.31,5942,Book Stores
07/12/17,Tri-Borough Childrens Services,AMAZON SVCS EU-UK AMAZ,"Equipment, furniture and materials",6.89,5.74,1.15,5942,Book Stores
07/12/17,Tri-Borough Childrens Services,COMPLETE CARE SHOP,"Equipment, furniture and materials",59.94,49.95,9.99,5399,Misc. General Merchandise
07/12/17,Tri-Borough Childrens Services,COMPLETE CARE SHOP,"Equipment, furniture and materials",59.94,49.95,9.99,5399,Misc. General Merchandise
07/12/17,Tri-Borough Childrens Services,COMPLETE CARE SHOP,"Equipment, furniture and materials",59.94,49.95,9.99,5399,Misc. General Merchandise
07/12/17,"Growth, Planning and Housing",MCDONALDS,Hospitality,3.38,3.38,.00,5814,Fast Food Restaurants
07/12/17,Tri-Borough Childrens Services,POUNDLAND LTD,Stationery,3.00,3.00,.00,5310,Discount Stores
07/12/17,Tri-Borough ASC and NHS Integrated Commi,AMAZON UK PRIME AMZN.C,"Equipment, furniture and materials",79.00,79.00,.00,5968,Direct Marketing - Continuity/Subscription Merchant
07/12/17,Tri-Borough Childrens Services,NEW SOUTHERN RAILW,Staff travelling expenses,198.30,198.30,.00,4112,Passenger Railways
07/12/17,Tri-Borough Childrens Services,UPPERCRUST& HEROES BAR,Subsistence Expenses,6.89,6.89,.00,5812,Eating places and Restaurants
06/12/17,Chief of Staff,CAFFE NERO 415 TRAFALG,Hospitality,10.95,10.95,.00,5814,Fast Food Restaurants
07/12/17,"Growth, Planning and Housing",GWR LOND PADD SST,Staff travelling expenses,46.00,46.00,.00,4112,Passenger Railways
07/12/17,"Growth, Planning and Housing",GWR READING TO,Staff travelling expenses,3.40,3.40,.00,4112,Passenger Railways
07/12/17,Bi-Borough Corporate Services,Amazon UK Marketplace,Stationery,48.80,40.66,8.14,5942,Book Stores
07/12/17,Bi-Borough Corporate Services,Amazon EU,Stationery,11.49,9.57,1.92,5969,Direct Marketing - Not Elsewhere Classified
07/12/17,Bi-Borough Corporate Services,AMAZON SVCS EU-UK AMAZ,Stationery,-4.42,-4.42,.00,5942,Book Stores
07/12/17,Tri-Borough ASC and NHS Integrated Commi,Amazon UK Marketplace,"Equipment, furniture and materials",6.22,6.22,.00,5942,Book Stores
07/12/17,Tri-Borough ASC and NHS Integrated Commi,Amazon UK Marketplace,"Equipment, furniture and materials",5.78,5.78,.00,5942,Book Stores
07/12/17,Bi-Borough Corporate Services,LUL TICKET MACHINE,Staff travelling expenses,12.30,12.30,.00,4112,Passenger Railways
07/12/17,Bi-Borough Corporate Services,TESCO-STORES 2610,Subsistence Expenses,4.50,4.50,.00,5411,Grocery Stores
07/12/17,Tri-borough Libraries and Archives,ALDI 81 775,Activities and Events,16.68,16.68,.00,5411,Grocery Stores
07/12/17,City Management and Communities,OYSTER AUTOTOPUP,Staff travelling expenses,40.00,40.00,.00,4112,Passenger Railways
07/12/17,City Management and Communities,OYSTER BUS AUTOTOP,Staff travelling expenses,20.00,20.00,.00,4112,Passenger Railways
07/12/17,City Management and Communities,OYSTER BUS AUTOTOP,Staff travelling expenses,20.00,20.00,.00,4112,Passenger Railways
07/12/17,Tri-Borough ASC and NHS Integrated Commi,OYSTER AUTOTOPUP,Staff travelling expenses,20.00,20.00,.00,4112,Passenger Railways
07/12/17,Tri-Borough ASC and NHS Integrated Commi,OYSTER AUTOTOPUP,Staff travelling expenses,20.00,20.00,.00,4112,Passenger Railways
06/12/17,Tri-Borough Childrens Services,OXFAM F8049,Stationery,4.98,4.98,.00,8398,Charitable and Social Service Organizations
06/12/17,Tri-borough Libraries and Archives,Amazon EU,"Equipment, furniture and materials",23.94,23.94,.00,5969,Direct Marketing - Not Elsewhere Classified
06/12/17,"Growth, Planning and Housing",SAINSBURYS 0433,Activities and Events,81.50,81.50,.00,5411,Grocery Stores
06/12/17,"Growth, Planning and Housing",WESTMINSTER CITY COUNC,Activities and Events,105.00,105.00,.00,9399,Government Services ( Not Elsewhere Classified)
05/12/17,Tri-Borough Childrens Services,FASTVISION LTD,"S/scriptns, Lic., Period. - E19",115.20,96.00,19.20,5968,Direct Marketing - Continuity/Subscription Merchant
06/12/17,Tri-Borough Childrens Services,LONDON OVERGROUND SST,Staff travelling expenses,27.10,27.10,.00,4112,Passenger Railways
06/12/17,"Growth, Planning and Housing",OYSTER AUTOTOPUP,Staff travelling expenses,20.00,20.00,.00,4112,Passenger Railways
06/12/17,Tri-Borough Childrens Services,WESTMINSTER PARKING,Tport - Prkng & Congestion Chgs,2.69,2.69,.00,7523,Automobile Parking Lots and Garages
06/12/17,Chief of Staff,MARKS&SPENCER PLC SF,Hospitality,66.50,66.50,.00,5411,Grocery Stores
06/12/17,Tri-Borough Childrens Services,LUL TICKET MACHINE,Staff travelling expenses,30.00,30.00,.00,4112,Passenger Railways
06/12/17,Tri-borough Libraries and Archives,AMAZON SVCS EU-UK AMAZ,Activities and Events,2.39,1.99,.40,5942,Book Stores
06/12/17,Tri-borough Libraries and Archives,AMAZON SVCS EU-UK AMAZ,Activities and Events,18.52,15.43,3.09,5942,Book Stores
06/12/17,City Management and Communities,Hotel on Booking.com,Subsistence Expenses,53.50,53.50,.00,7011,"Lodging - Hotels, Motels, Resorts, Central Reservation Services (not elsewhere classified)"
06/12/17,City Management and Communities,EASYJET00 000    ET8WDZ4,Staff travelling expenses,57.13,57.13,.00,3245,EasyJet Airlines
06/12/17,PPC,OYSTER AUTOTOPUP,Staff travelling expenses,20.00,20.00,.00,4112,Passenger Railways
06/12/17,Tri-Borough Childrens Services,CBA ACRONIS,"ICT Purch, Lease, Hire & Maint E20",958.80,799.00,159.80,5817,Digital Goods: Applications (Excludes Games)
06/12/17,Tri-Borough ASC and NHS Integrated Commi,SAINSBURYS 0602,Activities and Events,17.00,17.00,.00,5411,Grocery Stores
05/12/17,Tri-borough Libraries and Archives,IZ  Mr B Fox,Staff travelling expenses,7.00,7.00,.00,4121,Taxicabs and Limousines
06/12/17,"Growth, Planning and Housing",TESCO STORES (5565),Telephony,10.00,8.33,1.67,5411,Grocery Stores
06/12/17,"Growth, Planning and Housing",PATISSERIE VALERIE,Hospitality,4.50,4.50,.00,5812,Eating places and Restaurants
06/12/17,"Growth, Planning and Housing",LUL TICKET MACHINE,Client travelling expenses,20.00,20.00,.00,4112,Passenger Railways
06/12/17,"Growth, Planning and Housing",GWR LOND PADD SST,Staff travelling expenses,46.00,46.00,.00,4112,Passenger Railways
06/12/17,"Growth, Planning and Housing",GWR READING TO,Tport - Prkng & Congestion Chgs,3.40,3.40,.00,4112,Passenger Railways
06/12/17,Tri-Borough Childrens Services,LUL TICKET MACHINE,Staff travelling expenses,5.00,5.00,.00,4112,Passenger Railways
06/12/17,Tri-Borough ASC and NHS Integrated Commi,WILL TO WIN LTD,Day Opportunities,7.40,7.40,.00,7941,"Commercial Sports, Athletic Fields, Professional Sport Clubs, and Sport Promoters"
06/12/17,Bi-Borough Corporate Services,Amazon EU,Stationery,18.99,15.82,3.17,5969,Direct Marketing - Not Elsewhere Classified
06/12/17,Bi-Borough Corporate Services,Amazon UK Marketplace,Stationery,28.93,24.10,4.83,5942,Book Stores
06/12/17,Bi-Borough Corporate Services,Amazon EU,Stationery,18.99,15.82,3.17,5969,Direct Marketing - Not Elsewhere Classified
06/12/17,City Management and Communities,Amazon UK Marketplace,"Equipment, furniture and materials",19.60,16.33,3.27,5942,Book Stores
06/12/17,City Management and Communities,LUL TICKET MACHINE,Staff travelling expenses,50.00,50.00,.00,4112,Passenger Railways
06/12/17,City Management and Communities,LUL TICKET MACHINE,Staff travelling expenses,50.00,50.00,.00,4112,Passenger Railways
06/12/17,City Management and Communities,MARKSANDSPENCER.CO,Training,-116.39,-116.39,.00,7392,"Management, Consulting, and Public Relations Services"
06/12/17,Tri-Borough ASC and NHS Integrated Commi,PRET A MANGER,Subsistence Expenses,5.20,5.20,.00,5812,Eating places and Restaurants
06/12/17,Tri-Borough Childrens Services,PRET A MANGER,Client travelling expenses,4.44,4.44,.00,5812,Eating places and Restaurants
06/12/17,Corporate Services WCC,OYSTER BUS AUTOSET,Staff travelling expenses,40.00,40.00,.00,4112,Passenger Railways
06/12/17,Corporate Services WCC,OYSTER ISSUE WEB,Staff travelling expenses,25.00,25.00,.00,4112,Passenger Railways
06/12/17,Corporate Services WCC,OYSTER ISSUE WEB,Staff travelling expenses,25.00,25.00,.00,4112,Passenger Railways
06/12/17,Tri-Borough Childrens Services,33269 SUBWAY,Client travelling expenses,5.20,5.20,.00,5812,Eating places and Restaurants
06/12/17,Tri-Borough Childrens Services,LONDON MIDLAND SEL,Staff travelling expenses,11.80,11.80,.00,4112,Passenger Railways
06/12/17,Tri-Borough Childrens Services,NEW SOUTHERN RAILW,Staff travelling expenses,27.10,27.10,.00,4112,Passenger Railways
06/12/17,City Management and Communities,MEATLIQOUR QW LTD,"Print, Pub & adverts",69.85,69.85,.00,5812,Eating places and Restaurants
06/12/17,Tri-Borough ASC and NHS Integrated Commi,Trainline,Staff travelling expenses,97.21,97.21,.00,4112,Passenger Railways
06/12/17,Tri-Borough ASC and NHS Integrated Commi,Trainline,Staff travelling expenses,31.37,31.37,.00,4112,Passenger Railways
06/12/17,Tri-borough Libraries and Archives,TESCO METRO 2299,Activities and Events,6.78,5.89,.89,5411,Grocery Stores
06/12/17,City Management and Communities,RYMAN 1037,Stationery,5.99,5.99,.00,5943,"Stationery Stores, Office and School Supply Stores"
06/12/17,Tri-Borough Childrens Services,GRO HM PASSPORT OFFICE,Section 17 Other,29.85,29.85,.00,9399,Government Services ( Not Elsewhere Classified)
06/12/17,City Treasurers,Amazon UK Marketplace,Stationery,10.95,10.95,.00,5942,Book Stores
06/12/17,Tri-Borough Childrens Services,WASABI VICTORIA STATIO,Subsistence Expenses,5.99,5.99,.00,5812,Eating places and Restaurants
06/12/17,Tri-Borough Childrens Services,TESCO STORE 3012,Catering,8.80,8.80,.00,5411,Grocery Stores
06/12/17,Tri-Borough Childrens Services,LUL TICKET MACHINE,Staff travelling expenses,10.00,10.00,.00,4112,Passenger Railways
06/12/17,City Management and Communities,SNAPPY SNAPS STORE 246,"Equipment, furniture and materials",363.86,303.22,60.64,7395,"Photofinishing Laboratories, Photo Developing"
06/12/17,Tri-Borough Childrens Services,LUL TICKET MACHINE,Section 17 Young Persons Support,25.00,25.00,.00,4112,Passenger Railways
06/12/17,Tri-borough Libraries and Archives,W M MORRISONS,Activities and Events,5.00,5.00,.00,5411,Grocery Stores
06/12/17,Tri-borough Libraries and Archives,W M MORRISONS,Activities and Events,1.92,1.92,.00,5411,Grocery Stores
06/12/17,Tri-borough Libraries and Archives,W M MORRISONS,Activities and Events,30.00,30.00,.00,5411,Grocery Stores
06/12/17,City Management and Communities,OYSTER AUTOTOPUP,Staff travelling expenses,20.00,20.00,.00,4112,Passenger Railways
06/12/17,Tri-Borough ASC and NHS Integrated Commi,PP BRENTWDEXEC,Staff travelling expenses,8.00,8.00,.00,7538,Automotive Service Shops
06/12/17,Tri-Borough ASC and NHS Integrated Commi,PP BRENTWDEXEC,Staff travelling expenses,5.00,5.00,.00,7538,Automotive Service Shops
06/12/17,Tri-Borough ASC and NHS Integrated Commi,OYSTER BUS AUTOTOP,Staff travelling expenses,20.00,20.00,.00,4112,Passenger Railways
06/12/17,Tri-Borough Childrens Services,QUEEN MOTHER CENTR,Activities and Events,100.00,100.00,.00,7997,"Membership Clubs (Sports, Recreation, Athletic), Country Clubs, and Private Golf Courses"
06/12/17,City Management and Communities,ROBERT DYAS HOLDNG LTD,Fixtures and Fittings -E12,9.99,9.99,.00,5251,Hardware Stores
06/12/17,Tri-Borough ASC and NHS Integrated Commi,SODEXO HAMMERSMITH SUB,Subsistence Expenses,4.40,4.40,.00,5811,Caterers
06/12/17,Tri-Borough ASC and NHS Integrated Commi,Trainline,Staff travelling expenses,156.52,156.52,.00,4112,Passenger Railways
06/12/17,City Management and Communities,RYMAN 1037,Stationery,8.97,7.47,1.50,5943,"Stationery Stores, Office and School Supply Stores"
06/12/17,Tri-Borough Childrens Services,LUL TICKET MACHINE,Staff travelling expenses,20.00,20.00,.00,4112,Passenger Railways
06/12/17,"Growth, Planning and Housing",ALLFS CAFE,Hospitality,4.40,4.40,.00,5812,Eating places and Restaurants
04/12/17,City Management and Communities,"RSTUDIO, INC.",IT Software Purchase,75.93,75.93,.00,7372,"Computer Programming, Integrated Systems Design and Data Processing Services"
05/12/17,City Management and Communities,SAINSBURYS SACAT 0693,Catering,10.50,8.40,2.10,5411,Grocery Stores
05/12/17,Tri-Borough Childrens Services,WWW.IBHF.GOV.UK,Tport - Prkng & Congestion Chgs,1.80,1.80,.00,9399,Government Services ( Not Elsewhere Classified)
05/12/17,Tri-Borough ASC and NHS Integrated Commi,NEW SOUTHERN RAILW,Staff travelling expenses,6.70,6.70,.00,4112,Passenger Railways
05/12/17,Tri-borough Libraries and Archives,P & N NEWSAGENTS,Activities and Events,65.00,65.00,.00,5411,Grocery Stores
05/12/17,Tri-borough Libraries and Archives,DISCOUNT SUPERSTORE,Activities and Events,6.00,6.00,.00,5722,Household Appliance Stores
05/12/17,Tri-borough Libraries and Archives,ICELAND,Activities and Events,16.40,16.40,.00,5411,Grocery Stores
04/12/17,Tri-Borough Childrens Services,CAFFE NERO75 BEDFORD S,Section 17 Other,8.25,8.25,.00,5814,Fast Food Restaurants
05/12/17,Tri-Borough Childrens Services,LUL TICKET MACHINE,Staff travelling expenses,15.00,15.00,.00,4112,Passenger Railways
05/12/17,Tri-Borough Childrens Services,LUL TICKET MACHINE,Staff travelling expenses,12.30,12.30,.00,4112,Passenger Railways
05/12/17,Tri-Borough Childrens Services,Amazon Prime,Stationery,7.99,7.99,.00,5968,Direct Marketing - Continuity/Subscription Merchant
05/12/17,Tri-borough Libraries and Archives,VISTAPRINT,Stationery,22.77,18.97,3.80,2741,Miscellaneous Publishing and Printing
05/12/17,City Management and Communities,LUL TICKET MACHINE,Staff travelling expenses,60.00,60.00,.00,4112,Passenger Railways
05/12/17,Tri-borough Libraries and Archives,SAINSBURYS 0602,Catering,77.20,77.20,.00,5411,Grocery Stores
05/12/17,City Management and Communities,VODAFONE LTD,Telephony,27.20,27.20,.00,4814,Fax services
05/12/17,Tri-Borough Childrens Services,LUL TICKET MACHINE,Staff travelling expenses,12.30,12.30,.00,4112,Passenger Railways
05/12/17,Tri-Borough Childrens Services,GREATER ANGLIA T/O,Staff travelling expenses,7.30,7.30,.00,4112,Passenger Railways
05/12/17,Tri-Borough Childrens Services,SELFSERVE TICKET,Staff travelling expenses,8.80,8.80,.00,4112,Passenger Railways
05/12/17,Tri-Borough Childrens Services,M&S SIMPLY FOOD,Subsistence Expenses,5.85,5.85,.00,5499,Misc. Food Stores - Convenience Stores and Specialty Markets
05/12/17,Tri-Borough Childrens Services,M&S SIMPLY FOOD,Subsistence Expenses,1.80,1.80,.00,5499,Misc. Food Stores - Convenience Stores and Specialty Markets
05/12/17,Tri-Borough Childrens Services,LUL TICKET MACHINE,Staff travelling expenses,10.00,10.00,.00,4112,Passenger Railways
05/12/17,Tri-borough Libraries and Archives,MARKS&SPENCER PLC,Catering,74.10,74.10,.00,5411,Grocery Stores
05/12/17,Tri-borough Libraries and Archives,MARKS&SPENCER PLC,Catering,72.95,72.95,.00,5411,Grocery Stores
05/12/17,Tri-borough Libraries and Archives,MARKS&SPENCER PLC,Catering,16.80,16.80,.00,5411,Grocery Stores
05/12/17,Tri-Borough ASC and NHS Integrated Commi,MARKS&SPENCER PLC,Subsistence Expenses,4.75,4.75,.00,5411,Grocery Stores
05/12/17,Tri-Borough Childrens Services,Trainline,Staff travelling expenses,34.43,34.43,.00,4112,Passenger Railways
05/12/17,Tri-Borough Childrens Services,C2C BARKING,Client travelling expenses,5.00,5.00,.00,4112,Passenger Railways
05/12/17,Tri-borough Libraries and Archives,VISTAPRINT,Stationery,-22.77,-18.98,-3.79,2741,Miscellaneous Publishing and Printing
05/12/17,Tri-Borough ASC and NHS Integrated Commi,Trainline,Staff travelling expenses,60.84,60.84,.00,4112,Passenger Railways
05/12/17,Tri-Borough Childrens Services,LUL TICKET MACHINE,Staff travelling expenses,10.00,10.00,.00,4112,Passenger Railways
05/12/17,Tri-Borough Childrens Services,PAPERCHASE,Stationery,5.00,5.00,.00,5947,"Card Shops, Gift, Novelty, and Souvenir Shops"
05/12/17,Tri-Borough ASC and NHS Integrated Commi,MARKS&SPENCER PLC,Day Opportunities,4.75,4.75,.00,5411,Grocery Stores
05/12/17,Tri-Borough ASC and NHS Integrated Commi,MARKS&SPENCER PLC,Day Opportunities,2.35,2.35,.00,5411,Grocery Stores
05/12/17,Tri-Borough ASC and NHS Integrated Commi,POST OFFICE COUNTER,Staff travelling expenses,1.75,1.75,.00,9402,Postal Services - Government Only
05/12/17,Tri-Borough ASC and NHS Integrated Commi,LONDON & SOUTH EAS,Subsistence Expenses,13.10,13.10,.00,4112,Passenger Railways
05/12/17,Tri-Borough Childrens Services,Amazon UK Marketplace,Hygiene Services -E18,6.99,6.99,.00,5942,Book Stores
05/12/17,Tri-Borough Childrens Services,Amazon UK Marketplace,"ICT Purch, Lease, Hire & Maint E20",16.47,13.71,2.76,5942,Book Stores
05/12/17,Tri-Borough Childrens Services,Amazon EU,"Admin Stat., Print & Reprog. E22",45.58,37.98,7.60,5969,Direct Marketing - Not Elsewhere Classified
05/12/17,Tri-Borough ASC and NHS Integrated Commi,MARKS&SPENCER PLC SACA,Subsistence Expenses,7.35,7.35,.00,5411,Grocery Stores
05/12/17,WAES,WAITROSE 756,Catering,100.00,100.00,.00,5411,Grocery Stores
05/12/17,WAES,WWW.MAJESTIC.CO.UK,"Equipment, furniture and materials",194.76,194.76,.00,5921,"Package Stores - Beer, Wine, and Liquor"
05/12/17,Tri-Borough Childrens Services,NAT MUSEUM OF CHILDHOO,Stationery,10.99,10.99,.00,5947,"Card Shops, Gift, Novelty, and Souvenir Shops"
05/12/17,Chief of Staff,M&S SIMPLY FOOD - SSP,Hospitality,96.00,96.00,.00,5499,Misc. Food Stores - Convenience Stores and Specialty Markets
04/12/17,Tri-Borough Childrens Services,EBUYER (UK) LTD,Educ s/ware & Hardware,10.32,8.60,1.72,5722,Household Appliance Stores
05/12/17,Tri-Borough Childrens Services,WWW.O-MILLS.CO.UK,Learning Res Not ICT Equip E19,24.00,20.00,4.00,5311,Department Stores
05/12/17,Tri-Borough Childrens Services,CURRYS ONLINE,S24 Support allowance,59.94,59.94,.00,5732,Electronic Sales
05/12/17,Tri-Borough Childrens Services,Samsonite,Staff Empl Cost of M & Equip E12,45.90,45.90,.00,5948,Leather Foods Stores
05/12/17,"Growth, Planning and Housing",GWR READING TO,Staff travelling expenses,3.40,3.40,.00,4112,Passenger Railways
05/12/17,Tri-Borough Childrens Services,COSTA COFFEE,Subsistence Expenses,3.65,3.65,.00,5814,Fast Food Restaurants
05/12/17,Tri-Borough Childrens Services,SELFSERVE TICKET,Staff travelling expenses,15.00,15.00,.00,4112,Passenger Railways
05/12/17,Tri-Borough Childrens Services,MARKS&SPENCER PLC SA,Staff travelling expenses,2.95,2.95,.00,5411,Grocery Stores
05/12/17,PPC,PAPERCHASE,Stationery,2.50,2.50,.00,5947,"Card Shops, Gift, Novelty, and Souvenir Shops"
04/12/17,Bi-Borough Corporate Services,PREMIER INN44022890,Staff travelling expenses,70.99,70.99,.00,3811,Premier Travel Inn
04/12/17,Bi-Borough Corporate Services,AERLING   2RNVA2 RAMSAY0,Staff travelling expenses,231.98,231.98,.00,3043,AER LINGUS
05/12/17,Tri-Borough ASC and NHS Integrated Commi,RONNIES GENERAL STORE,Catering,9.06,9.06,.00,5411,Grocery Stores
05/12/17,Tri-Borough Childrens Services,LUL TICKET MACHINE,Staff travelling expenses,12.30,12.30,.00,4112,Passenger Railways
05/12/17,Tri-Borough Childrens Services,WWW.IBHF.GOV.UK,Tport - Prkng & Congestion Chgs,3.20,3.20,.00,9399,Government Services ( Not Elsewhere Classified)
04/12/17,"Growth, Planning and Housing",LUL TICKET MACHINE,Client travelling expenses,15.00,15.00,.00,4112,Passenger Railways
04/12/17,City Management and Communities,OYSTER RENEW WEB,Staff travelling expenses,20.00,20.00,.00,4112,Passenger Railways
04/12/17,Tri-Borough Childrens Services,HMCOURTS-SERVICE.G,Fees,107.00,107.00,.00,9222,Fines
04/12/17,"Growth, Planning and Housing",LUL TICKET MACHINE,Staff travelling expenses,12.30,12.30,.00,4112,Passenger Railways
04/12/17,Tri-Borough Childrens Services,LB CAMDEN PARKING,Tport - Prkng & Congestion Chgs,2.90,2.90,.00,7523,Automobile Parking Lots and Garages
04/12/17,Chief of Staff,TESCO STORE 2764,Hospitality,80.88,80.88,.00,5411,Grocery Stores
04/12/17,Chief of Staff,TESCO STORE 2764,Hired and Contracted Services,80.00,80.00,.00,5411,Grocery Stores
04/12/17,"Growth, Planning and Housing",GWR LOND PADD SST,Staff travelling expenses,46.00,46.00,.00,4112,Passenger Railways
04/12/17,"Growth, Planning and Housing",GWR READING TO,Staff travelling expenses,3.40,3.40,.00,4112,Passenger Railways
04/12/17,Tri-Borough Childrens Services,LUL TICKET MACHINE,Staff travelling expenses,10.00,10.00,.00,4112,Passenger Railways
04/12/17,PPC,SAINSBURYS SACAT (4286,Catering,16.90,16.90,.00,5411,Grocery Stores
04/12/17,City Management and Communities,WAITROSE 860,Catering,44.77,44.77,.00,5411,Grocery Stores
04/12/17,Tri-Borough ASC and NHS Integrated Commi,WWW.IMPACTFACTORY.COM,Training,540.00,540.00,.00,8299,Schools and Educational Services ( Not Elsewhere Classified)
04/12/17,Tri-Borough ASC and NHS Integrated Commi,ASPIRELEADE,Training,1074.00,1074.00,.00,7392,"Management, Consulting, and Public Relations Services"
04/12/17,Tri-Borough ASC and NHS Integrated Commi,SAINSBURYS SAC (4367),Subsistence Expenses,3.10,3.10,.00,5411,Grocery Stores
04/12/17,Tri-Borough ASC and NHS Integrated Commi,TESCO STORES-2143,"Equipment, furniture and materials",7.75,7.75,.00,5411,Grocery Stores
04/12/17,City Management and Communities,SOUTHERN RAILWAY L,Staff travelling expenses,18.30,18.30,.00,4112,Passenger Railways
04/12/17,Tri-Borough Childrens Services,WATERSTONES,Section 17 Other,16.99,16.99,.00,5942,Book Stores
04/12/17,Tri-Borough Childrens Services,PRET A MANGER,Subsistence Expenses,5.73,5.73,.00,5812,Eating places and Restaurants
04/12/17,Tri-Borough Childrens Services,EAST MIDLANDS TRAI,Staff travelling expenses,18.90,18.90,.00,4112,Passenger Railways
04/12/17,Tri-Borough Childrens Services,COSTCUTTER EXPRESS,Internal Fostering,44.00,44.00,.00,5994,News Dealers and Newsstands
04/12/17,Tri-Borough Childrens Services,COSTCUTTER EXPRESS,Internal Fostering,12.00,12.00,.00,5994,News Dealers and Newsstands
04/12/17,Tri-Borough Childrens Services,LUL TICKET MACHINE,Staff travelling expenses,10.00,10.00,.00,4112,Passenger Railways
04/12/17,"Growth, Planning and Housing",LUL TICKET MACHINE,Client travelling expenses,15.00,15.00,.00,4112,Passenger Railways
03/12/17,Tri-Borough Childrens Services,DISCLOSURE & BARRING,Professional Subscriptions -EO8,13.00,13.00,.00,9399,Government Services ( Not Elsewhere Classified)
04/12/17,Tri-Borough Childrens Services,WESTMINSTER PARKING,Tport - Prkng & Congestion Chgs,3.50,3.50,.00,7523,Automobile Parking Lots and Garages
04/12/17,Tri-Borough ASC and NHS Integrated Commi,NEW SOUTHERN RAILW,Staff travelling expenses,14.10,14.10,.00,4112,Passenger Railways
04/12/17,Tri-Borough Childrens Services,DISCLOSURE & BARRING,DBS Police checks,13.00,13.00,.00,9399,Government Services ( Not Elsewhere Classified)
04/12/17,Tri-Borough ASC and NHS Integrated Commi,SAINSBURYS SACAT 0602,"Equipment, furniture and materials",14.85,14.85,.00,5411,Grocery Stores
04/12/17,Tri-Borough Childrens Services,LUL TICKET MACHINE,Staff travelling expenses,12.30,12.30,.00,4112,Passenger Railways
04/12/17,Tri-Borough Childrens Services,LUL TICKET MACHINE,Staff travelling expenses,20.00,20.00,.00,4112,Passenger Railways
04/12/17,Tri-Borough ASC and NHS Integrated Commi,SAINSBURYS SACAT 0602,"Equipment, furniture and materials",1.80,1.80,.00,5411,Grocery Stores
04/12/17,Tri-Borough Childrens Services,GWR HAYES SST,Staff travelling expenses,20.00,20.00,.00,4112,Passenger Railways
04/12/17,Bi-Borough Corporate Services,LUL TICKET MACHINE,Staff travelling expenses,12.30,12.30,.00,4112,Passenger Railways
04/12/17,Bi-Borough Corporate Services,EXPRESSO COFFEE LIMITE,Subsistence Expenses,5.00,5.00,.00,5994,News Dealers and Newsstands
04/12/17,City Management and Communities,OYSTER RENEW WEB,Staff travelling expenses,50.00,50.00,.00,4112,Passenger Railways
04/12/17,City Management and Communities,MAILCHIMP    PAYASYOUG,"Print, Pub & adverts",75.14,69.00,6.14,5968,Direct Marketing - Continuity/Subscription Merchant
04/12/17,City Management and Communities,CHURCH STREET LIBRARY,Hired and Contracted Services,30.00,30.00,.00,9399,Government Services ( Not Elsewhere Classified)
04/12/17,City Treasurers,ARGOS THE STRAND,"Equipment, furniture and materials",179.96,179.96,.00,5310,Discount Stores
04/12/17,City Treasurers,ARGOS THE STRAND,"Equipment, furniture and materials",35.96,35.96,.00,5310,Discount Stores
04/12/17,City Treasurers,ARGOS THE STRAND,"Equipment, furniture and materials",19.98,19.98,.00,5310,Discount Stores
04/12/17,City Treasurers,ARGOS THE STRAND,"Equipment, furniture and materials",-320.90,-320.90,.00,5310,Discount Stores
04/12/17,Tri-Borough Childrens Services,GOLDEN NEWS,Staff travelling expenses,12.50,12.50,.00,5994,News Dealers and Newsstands
04/12/17,Bi-Borough Corporate Services,FlybeE27G E27GZ7,Staff travelling expenses,179.75,179.75,.00,4511,"Airlines, Air Carriers ( not listed elsewhere)"
04/12/17,City Management and Communities,OYSTER BUS AUTOTOP,Staff travelling expenses,40.00,40.00,.00,4112,Passenger Railways
04/12/17,Tri-Borough ASC and NHS Integrated Commi,SAINSBURYS SACAT 0602,Catering,28.45,28.45,.00,5411,Grocery Stores
04/12/17,WAES,TESCO STORES,"Equipment, furniture and materials",25.07,25.07,.00,5411,Grocery Stores
04/12/17,"Growth, Planning and Housing",MARKS&SPENCER PLC,Hospitality,4.85,4.85,.00,5411,Grocery Stores
04/12/17,Tri-borough Libraries and Archives,Amazon UK Marketplace,Activities and Events,5.85,5.85,.00,5942,Book Stores
04/12/17,City Management and Communities,OYSTER RENEW WEB,Staff travelling expenses,20.00,20.00,.00,4112,Passenger Railways
04/12/17,City Management and Communities,OYSTER RENEW WEB,Staff travelling expenses,20.00,20.00,.00,4112,Passenger Railways
04/12/17,City Management and Communities,OYSTER RENEW WEB,Staff travelling expenses,20.00,20.00,.00,4112,Passenger Railways
04/12/17,Tri-Borough Childrens Services,LUL TICKET MACHINE,Staff travelling expenses,5.00,5.00,.00,4112,Passenger Railways
03/12/17,Tri-Borough Childrens Services,TRINITYONLINEPAY,Section 17 Other,150.00,150.00,.00,8220,"Colleges, Junior Colleges, Universities, and Professional Schools"
01/12/17,Tri-Borough Childrens Services,OYSTER AUTOTOPUP,Client travelling expenses,20.00,20.00,.00,4112,Passenger Railways
01/12/17,Tri-Borough Childrens Services,ASHRA'S,Section 17 Young Persons Support,33.50,33.50,.00,5994,News Dealers and Newsstands
30/11/17,Tri-Borough Childrens Services,PRET A MANGER,Subsistence Expenses,5.72,5.72,.00,5812,Eating places and Restaurants
02/12/17,WAES,AMAZON UK RETAIL AMAZO,"Equipment, furniture and materials",9.93,9.93,.00,5999,Miscellaneous and Specialty Retail Stores
02/12/17,WAES,AMAZON.CO.UK,"Equipment, furniture and materials",8.49,8.49,.00,5942,Book Stores
02/12/17,WAES,AMAZON.CO.UK,"Equipment, furniture and materials",33.10,33.10,.00,5942,Book Stores
02/12/17,WAES,AMAZON.CO.UK,"Equipment, furniture and materials",7.50,7.50,.00,5942,Book Stores
02/12/17,WAES,AMAZON.CO.UK,"Equipment, furniture and materials",5.48,5.48,.00,5942,Book Stores
02/12/17,WAES,AMAZON UK RETAIL AMAZO,"Equipment, furniture and materials",25.69,25.69,.00,5999,Miscellaneous and Specialty Retail Stores
02/12/17,Tri-Borough Childrens Services,AMAZON.CO.UK,"Equipment, furniture and materials",29.67,29.67,.00,5942,Book Stores
30/11/17,Tri-Borough ASC and NHS Integrated Commi,WILLIAM MORRIS,Subsistence Expenses,4.49,4.49,.00,5812,Eating places and Restaurants
01/12/17,Tri-Borough Childrens Services,Virgin Trains,Staff travelling expenses,39.00,39.00,.00,4112,Passenger Railways
01/12/17,Tri-Borough Childrens Services,SW RAILWAY,Staff travelling expenses,40.50,40.50,.00,4112,Passenger Railways
01/12/17,Tri-Borough ASC and NHS Integrated Commi,HAMMERSMITH RENAL PTS,Subsistence Expenses,4.25,4.25,.00,5811,Caterers
02/12/17,Tri-Borough ASC and NHS Integrated Commi,CASA ORTEGA,Subsistence Expenses,212.32,212.32,.00,5969,Direct Marketing - Not Elsewhere Classified
01/12/17,Tri-borough Libraries and Archives,MARKS&SPENCER PLC,Stationery,30.00,30.00,.00,5411,Grocery Stores
02/12/17,City Management and Communities,OYSTER AUTOTOPUP,Staff travelling expenses,20.00,20.00,.00,4112,Passenger Railways
03/12/17,City Management and Communities,OYSTER BUS AUTOTOP,Staff travelling expenses,20.00,20.00,.00,4112,Passenger Railways
01/12/17,City Management and Communities,Amazon UK Marketplace,"Equipment, furniture and materials",11.54,9.62,1.92,5942,Book Stores
02/12/17,City Management and Communities,AMAZON.CO.UK,"Equipment, furniture and materials",49.50,49.50,.00,5942,Book Stores
30/11/17,Tri-Borough ASC and NHS Integrated Commi,OYSTER BUS AUTOTOP,Staff travelling expenses,20.00,20.00,.00,4112,Passenger Railways
30/11/17,Tri-Borough ASC and NHS Integrated Commi,OYSTER BUS AUTOTOP,Staff travelling expenses,20.00,20.00,.00,4112,Passenger Railways
03/12/17,Tri-Borough ASC and NHS Integrated Commi,OYSTER BUS AUTOTOP,Staff travelling expenses,20.00,20.00,.00,4112,Passenger Railways
30/11/17,City Management and Communities,OYSTER AUTOTOPUP,Staff travelling expenses,20.00,20.00,.00,4112,Passenger Railways
01/12/17,City Management and Communities,OYSTER AUTOTOPUP,Staff travelling expenses,20.00,20.00,.00,4112,Passenger Railways
01/12/17,City Management and Communities,OYSTER BUS AUTOTOP,Staff travelling expenses,20.00,20.00,.00,4112,Passenger Railways
02/12/17,City Management and Communities,OYSTER AUTOTOPUP,Staff travelling expenses,20.00,20.00,.00,4112,Passenger Railways
01/12/17,Tri-borough Libraries and Archives,AMAZON.CO.UK,"Equipment, furniture and materials",65.20,54.34,10.86,5942,Book Stores
01/12/17,"Growth, Planning and Housing",EB  BIM FOR HERITAGE S,Training,79.55,79.55,.00,7399,"Business Services, Not Elsewhere Classified"
02/12/17,"Growth, Planning and Housing",OYSTER AUTOTOPUP,Staff travelling expenses,40.00,40.00,.00,4112,Passenger Railways
30/11/17,"Growth, Planning and Housing",OYSTER AUTOTOPUP,Staff travelling expenses,40.00,40.00,.00,4112,Passenger Railways
02/12/17,Tri-Borough ASC and NHS Integrated Commi,AMAZON.CO.UK,Stationery,9.12,9.12,.00,5942,Book Stores
30/11/17,Bi-Borough Corporate Services,OYSTER AUTOTOPUP,Staff travelling expenses,40.00,40.00,.00,4112,Passenger Railways
03/12/17,Tri-Borough ASC and NHS Integrated Commi,OYSTER BUS AUTOTOP,Staff travelling expenses,20.00,20.00,.00,4112,Passenger Railways
03/12/17,Tri-Borough ASC and NHS Integrated Commi,OYSTER BUS AUTOTOP,Staff travelling expenses,20.00,20.00,.00,4112,Passenger Railways
30/11/17,Tri-Borough Childrens Services,LUL TICKET MACHINE,Staff travelling expenses,5.00,5.00,.00,4112,Passenger Railways
01/12/17,Tri-Borough Childrens Services,PP TERENCEMCDO,Staff travelling expenses,9.40,9.40,.00,4121,Taxicabs and Limousines
01/12/17,Tri-Borough Childrens Services,LUL TICKET MACHINE,Staff travelling expenses,12.30,12.30,.00,4112,Passenger Railways
01/12/17,Tri-Borough Childrens Services,GREGGS,Subsistence Expenses,4.30,4.30,.00,5812,Eating places and Restaurants
01/12/17,Tri-Borough ASC and NHS Integrated Commi,Trainline,Client travelling expenses,43.81,43.81,.00,4112,Passenger Railways
01/12/17,Tri-Borough ASC and NHS Integrated Commi,Trainline,Staff travelling expenses,82.21,82.21,.00,4112,Passenger Railways
01/12/17,Tri-Borough ASC and NHS Integrated Commi,Trainline,Staff travelling expenses,39.27,39.27,.00,4112,Passenger Railways
02/12/17,City Management and Communities,OYSTER AUTOTOPUP,Staff travelling expenses,40.00,40.00,.00,4112,Passenger Railways
03/12/17,City Management and Communities,AMAZON UK PRIME AMZN.C,Activities and Events,7.99,7.99,.00,5968,Direct Marketing - Continuity/Subscription Merchant
01/12/17,PPC,UNO RESTAURANT,Hired and Contracted Services,250.00,250.00,.00,5812,Eating places and Restaurants
01/12/17,PPC,CO-OP GROUP 500593,Catering,10.00,10.00,.00,5411,Grocery Stores
01/12/17,Bi-Borough Corporate Services,AMAZON.CO.UK,Stationery,18.99,18.99,.00,5942,Book Stores
01/12/17,Bi-Borough Corporate Services,AMAZON.CO.UK,Stationery,18.99,18.99,.00,5942,Book Stores
30/11/17,City Management and Communities,OYSTER AUTOTOPUP,Staff travelling expenses,20.00,20.00,.00,4112,Passenger Railways
01/12/17,Tri-Borough Childrens Services,DEMES NEWSAGENTS,Client travelling expenses,11.00,11.00,.00,5994,News Dealers and Newsstands
01/12/17,Tri-Borough Childrens Services,WESTMINSTER PARKING,Tport - Prkng & Congestion Chgs,.92,.92,.00,7523,Automobile Parking Lots and Garages
01/12/17,Tri-Borough Childrens Services,WESTMINSTER PARKING,Tport - Prkng & Congestion Chgs,7.40,7.40,.00,7523,Automobile Parking Lots and Garages
02/12/17,Chief of Staff,AMAZON UK RETAIL AMAZO,"Equipment, furniture and materials",9.99,8.33,1.66,5999,Miscellaneous and Specialty Retail Stores
01/12/17,"Growth, Planning and Housing",LUL TICKET MACHINE,Staff travelling expenses,20.00,20.00,.00,4112,Passenger Railways
30/11/17,Tri-Borough Childrens Services,MCDONALDS,Subsistence Expenses,5.79,5.79,.00,5812,Eating places and Restaurants
01/12/17,Bi-Borough Corporate Services,AMAZON.CO.UK,Stationery,2.11,2.11,.00,5942,Book Stores
01/12/17,Bi-Borough Corporate Services,AMAZON.CO.UK,Stationery,2.94,2.94,.00,5942,Book Stores
02/12/17,Bi-Borough Corporate Services,AMAZON.CO.UK,Stationery,18.99,18.99,.00,5942,Book Stores
02/12/17,Bi-Borough Corporate Services,AMAZON.CO.UK,Stationery,21.38,21.38,.00,5942,Book Stores
02/12/17,Bi-Borough Corporate Services,AMAZON.CO.UK,IT Hardware Purchase,311.92,311.92,.00,5942,Book Stores
02/12/17,Bi-Borough Corporate Services,AMAZON.CO.UK,Stationery,34.98,34.98,.00,5942,Book Stores
02/12/17,Bi-Borough Corporate Services,AMAZON.CO.UK,Stationery,28.30,28.30,.00,5942,Book Stores
02/12/17,Bi-Borough Corporate Services,AMAZON.CO.UK,Stationery,18.99,18.99,.00,5942,Book Stores
30/11/17,City Management and Communities,OYSTER AUTOTOPUP,Staff travelling expenses,20.00,20.00,.00,4112,Passenger Railways
02/12/17,City Management and Communities,OYSTER AUTOTOPUP,Staff travelling expenses,20.00,20.00,.00,4112,Passenger Railways
01/12/17,City Management and Communities,WWW.THEKNOWLEDGEACADEM,Training,1737.80,1737.80,.00,8249,Vocational Schools and Trade Schools
01/12/17,Tri-borough Libraries and Archives,Amazon UK Marketplace,"Equipment, furniture and materials",96.59,96.59,.00,5942,Book Stores
02/12/17,Tri-borough Libraries and Archives,Amazon UK Marketplace,"Equipment, furniture and materials",13.29,13.29,.00,5942,Book Stores
30/11/17,City Management and Communities,OYSTER AUTOTOPUP,Staff travelling expenses,20.00,20.00,.00,4112,Passenger Railways
01/12/17,City Management and Communities,OYSTER BUS AUTOTOP,Staff travelling expenses,20.00,20.00,.00,4112,Passenger Railways
02/12/17,City Management and Communities,OYSTER AUTOTOPUP,Staff travelling expenses,20.00,20.00,.00,4112,Passenger Railways
02/12/17,City Management and Communities,OYSTER AUTOTOPUP,Staff travelling expenses,20.00,20.00,.00,4112,Passenger Railways
02/12/17,City Management and Communities,OYSTER AUTOTOPUP,Staff travelling expenses,20.00,20.00,.00,4112,Passenger Railways
01/12/17,Tri-Borough Childrens Services,PEPES PERI PERI/APEX,Subsistence Expenses,6.29,6.29,.00,5812,Eating places and Restaurants
03/12/17,Tri-Borough Childrens Services,OYSTER BUS AUTOTOP,Staff travelling expenses,20.00,20.00,.00,4112,Passenger Railways
01/12/17,Tri-Borough Childrens Services,LUL TICKET MACHINE,Staff travelling expenses,10.00,10.00,.00,4112,Passenger Railways
02/12/17,Tri-borough Libraries and Archives,MCDONALDS,Subsistence Expenses,14.62,14.62,.00,5814,Fast Food Restaurants
30/11/17,Tri-Borough Childrens Services,JOHN LEWIS,Furn & Equip - non Tchng E22,-25.20,-20.99,-4.21,5311,Department Stores
01/12/17,PPC,SAINSBURYS 0932,Catering,72.00,72.00,.00,5411,Grocery Stores
01/12/17,PPC,WESTMINSTER CITY COUNC,Hired and Contracted Services,33.50,33.50,.00,9399,Government Services ( Not Elsewhere Classified)
01/12/17,Tri-Borough Childrens Services,Amazon EU,Furn & Equip - non Tchng E22,114.00,95.00,19.00,5969,Direct Marketing - Not Elsewhere Classified
01/12/17,Tri-borough Libraries and Archives,AMAZON.CO.UK,"Print, Pub & adverts",20.57,17.15,3.42,5942,Book Stores
01/12/17,Tri-Borough Childrens Services,LUL TICKET MACHINE,Staff travelling expenses,12.30,12.30,.00,4112,Passenger Railways
30/11/17,Tri-Borough Childrens Services,LUL TICKET MACHINE,Section 17 Young Persons Support,20.00,20.00,.00,4112,Passenger Railways
01/12/17,"Growth, Planning and Housing",OYSTER BUS AUTOTOP,Staff travelling expenses,40.00,40.00,.00,4112,Passenger Railways
01/12/17,"Growth, Planning and Housing",OYSTER BUS AUTOTOP,Staff travelling expenses,40.00,40.00,.00,4112,Passenger Railways
30/11/17,Tri-Borough Childrens Services,LUL TICKET MACHINE,Staff travelling expenses,10.00,10.00,.00,4112,Passenger Railways
30/11/17,City Treasurers,ARGOS THE STRAND,"Equipment, furniture and materials",320.90,320.90,.00,5310,Discount Stores
30/11/17,City Treasurers,AMAZON.CO.UK,IT Hardware Purchase,14.99,14.99,.00,5942,Book Stores
01/12/17,City Treasurers,AMAZON.CO.UK,IT Hardware Purchase,8.58,8.58,.00,5942,Book Stores
02/12/17,City Treasurers,OYSTER AUTOTOPUP,Staff travelling expenses,40.00,40.00,.00,4112,Passenger Railways
30/11/17,Tri-Borough ASC and NHS Integrated Commi,OYSTER BUS AUTOTOP,Staff travelling expenses,20.00,20.00,.00,4112,Passenger Railways
01/12/17,Tri-Borough ASC and NHS Integrated Commi,OYSTER AUTOTOPUP,Staff travelling expenses,20.00,20.00,.00,4112,Passenger Railways
03/12/17,Tri-Borough ASC and NHS Integrated Commi,OYSTER AUTOTOPUP,Staff travelling expenses,20.00,20.00,.00,4112,Passenger Railways
01/12/17,Tri-Borough Childrens Services,POST OFFICE COUNTER,Section 17 Other,58.75,58.75,.00,9402,Postal Services - Government Only
01/12/17,"Growth, Planning and Housing",ROCOCO NEWS & MAGAZINE,Client travelling expenses,15.50,15.50,.00,5411,Grocery Stores
01/12/17,"Growth, Planning and Housing",SK SWEETS,Client travelling expenses,15.50,15.50,.00,5411,Grocery Stores
01/12/17,"Growth, Planning and Housing",ALLFS CAFE,Hospitality,4.40,4.40,.00,5812,Eating places and Restaurants
29/11/17,"Growth, Planning and Housing",TRI BOROUGH- LISSON GR,Hospitality,3.75,3.75,.00,5811,Caterers
02/12/17,City Management and Communities,AMAZON.CO.UK,"Equipment, furniture and materials",16.50,16.50,.00,5942,Book Stores
30/11/17,City Management and Communities,OYSTER BUS AUTOTOP,Staff travelling expenses,20.00,20.00,.00,4112,Passenger Railways
02/12/17,PPC,Dropbox NZTT887MZRWZ,IT Software Purchase,7.99,7.99,.00,4816,Computer Network/Information Services
01/12/17,Tri-Borough ASC and NHS Integrated Commi,AMAZON UK PRIME AMZN.C,"Equipment, furniture and materials",7.99,7.99,.00,5968,Direct Marketing - Continuity/Subscription Merchant
01/12/17,Tri-Borough Childrens Services,SAINSBURYS 0932,Purch of trading items for resale E24,53.35,53.35,.00,5411,Grocery Stores
01/12/17,Tri-Borough Childrens Services,LONDON OVERGROUND SST,Staff travelling expenses,12.30,12.30,.00,4112,Passenger Railways
01/12/17,Tri-borough Libraries and Archives,Amazon UK Marketplace,Stationery,12.20,10.17,2.03,5942,Book Stores
02/12/17,Tri-borough Libraries and Archives,Amazon EU,Stationery,24.95,20.80,4.15,5969,Direct Marketing - Not Elsewhere Classified
02/12/17,Tri-Borough ASC and NHS Integrated Commi,OYSTER AUTOTOPUP,Staff travelling expenses,20.00,20.00,.00,4112,Passenger Railways
03/12/17,Tri-Borough ASC and NHS Integrated Commi,OYSTER AUTOTOPUP,Staff travelling expenses,20.00,20.00,.00,4112,Passenger Railways
02/12/17,Tri-Borough ASC and NHS Integrated Commi,Amazon UK Marketplace,Stationery,9.99,9.99,.00,5942,Book Stores
01/12/17,Tri-borough Libraries and Archives,Amazon UK Marketplace,Stationery,14.55,14.55,.00,5942,Book Stores
01/12/17,Tri-borough Libraries and Archives,WILKO RETAIL LIMIT,Stationery,27.45,22.87,4.58,5722,Household Appliance Stores
30/11/17,City Management and Communities,OYSTER AUTOTOPUP,Staff travelling expenses,40.00,40.00,.00,4112,Passenger Railways
01/12/17,City Management and Communities,OYSTER AUTOTOPUP,Staff travelling expenses,20.00,20.00,.00,4112,Passenger Railways
01/12/17,City Management and Communities,OYSTER BUS AUTOTOP,Staff travelling expenses,20.00,20.00,.00,4112,Passenger Railways
02/12/17,City Management and Communities,AMAZON.CO.UK,"Equipment, furniture and materials",71.97,71.97,.00,5942,Book Stores
03/12/17,City Management and Communities,Amazon UK Marketplace,"Equipment, furniture and materials",196.92,196.92,.00,5942,Book Stores
03/12/17,City Management and Communities,OYSTER AUTOTOPUP,Staff travelling expenses,20.00,20.00,.00,4112,Passenger Railways
02/12/17,City Management and Communities,OYSTER BUS AUTOTOP,Staff travelling expenses,20.00,20.00,.00,4112,Passenger Railways
03/12/17,Tri-Borough ASC and NHS Integrated Commi,AMAZON.CO.UK,"Equipment, furniture and materials",12.30,12.30,.00,5942,Book Stores
03/12/17,Tri-Borough ASC and NHS Integrated Commi,AMAZON.CO.UK,Stationery,13.44,13.44,.00,5942,Book Stores
01/12/17,Tri-Borough Childrens Services,GREGGS,Subsistence Expenses,5.25,5.25,.00,5812,Eating places and Restaurants
01/12/17,City Management and Communities,SOUTHWARK ON STREET WE,Tport - Prkng & Congestion Chgs,12.00,12.00,.00,7523,Automobile Parking Lots and Garages
01/12/17,City Management and Communities,SOUTHWARK ON STREET WE,Tport - Prkng & Congestion Chgs,3.00,3.00,.00,7523,Automobile Parking Lots and Garages
30/11/17,Tri-Borough Childrens Services,WAITROSE 756,Stationery,1.50,1.50,.00,5411,Grocery Stores
03/12/17,Tri-Borough Childrens Services,Amazon UK Marketplace,Stationery,20.84,20.84,.00,5942,Book Stores
01/12/17,Tri-Borough Childrens Services,GWR EALING BWY SST,Staff travelling expenses,10.00,10.00,.00,4112,Passenger Railways
01/12/17,Tri-borough Libraries and Archives,ROBERT DYAS HOLDNG LTD,"Equipment, furniture and materials",38.97,32.48,6.49,5251,Hardware Stores
30/11/17,"Growth, Planning and Housing",LUL TICKET MACHINE,Client travelling expenses,10.60,10.60,.00,4112,Passenger Railways
30/11/17,"Growth, Planning and Housing",WAITROSE 860,Hospitality,21.09,21.09,.00,5411,Grocery Stores
30/11/17,"Growth, Planning and Housing",WAITROSE 860,Hospitality,21.01,21.01,.00,5411,Grocery Stores
02/12/17,Tri-borough Libraries and Archives,Amazon UK Marketplace,Activities and Events,9.98,9.98,.00,5942,Book Stores
01/12/17,PPC,PAYPAL  VIEWPICTURE,Hired and Contracted Services,60.00,60.00,.00,5946,Camera and Photographic Supply Stores
30/11/17,Tri-borough Libraries and Archives,JOHN LEWIS,"Equipment, furniture and materials",83.00,69.17,13.83,5311,Department Stores
30/11/17,Tri-Borough Childrens Services,LUL TICKET MACHINE,Staff travelling expenses,30.00,30.00,.00,4112,Passenger Railways
03/12/17,City Management and Communities,OYSTER BUS AUTOTOP,Staff travelling expenses,40.00,40.00,.00,4112,Passenger Railways
01/12/17,"Growth, Planning and Housing",OYSTER RENEW WEB,Staff travelling expenses,20.00,20.00,.00,4112,Passenger Railways
30/11/17,Tri-Borough Childrens Services,WAITROSE 660,Catering,10.25,10.25,.00,5411,Grocery Stores
03/12/17,Tri-Borough Childrens Services,M&S SIMPLY FOOD - SSP,Catering,8.10,8.10,.00,5499,Misc. Food Stores - Convenience Stores and Specialty Markets
01/12/17,Chief of Staff,TFL.GOV.UK/CP,Staff travelling expenses,3.00,3.00,.00,4111,"Local/Suburban Commuter Passenger Transportation - Railroads, Feries, Local Water Transportation."
01/12/17,Chief of Staff,UKOFFICEDIRECT.CO.,Stationery,35.93,29.94,5.99,5943,"Stationery Stores, Office and School Supply Stores"
01/12/17,Tri-Borough Childrens Services,MYARTPROJECTCOUK,Teaching Materials -E19,72.00,72.00,.00,7333,"Commercial Photography, Art and Graphics"
01/12/17,Tri-Borough Childrens Services,ETSY.COM - INDODESIGNS,Adminstrative Supplies -E22,27.19,27.19,.00,5699,Miscellaneous Apparel and Accessory Shops
30/11/17,Tri-Borough Childrens Services,AMAZON.CO.UK,Teaching Materials -E19,1.60,1.60,.00,5942,Book Stores
03/12/17,Tri-Borough Childrens Services,AMAZON.CO.UK,Teaching Materials -E19,10.98,10.98,.00,5942,Book Stores
30/11/17,City Management and Communities,MARKSANDSPENCER.CO,Training,116.39,116.39,.00,7392,"Management, Consulting, and Public Relations Services"
30/11/17,Tri-borough Libraries and Archives,WILKO RETAIL LIMIT,Stationery,8.55,8.55,.00,5722,Household Appliance Stores
02/12/17,City Management and Communities,OYSTER AUTOTOPUP,Staff travelling expenses,40.00,40.00,.00,4112,Passenger Railways
30/11/17,"Growth, Planning and Housing",SHOT ESPRESSO,Hospitality,5.80,5.80,.00,5814,Fast Food Restaurants
30/11/17,City Management and Communities,HALFORDS 0838,"Equipment, furniture and materials",25.00,25.00,.00,5940,Bicycle Shops - Sales and Service
30/11/17,City Treasurers,AMAZON.CO.UK,IT Hardware Purchase,8.99,8.99,.00,5942,Book Stores
30/11/17,Tri-Borough Childrens Services,OLIVE OIL & OREGANO,Subsistence Expenses,5.50,5.50,.00,5812,Eating places and Restaurants
30/11/17,Tri-Borough Childrens Services,LND & STH EAST RW,Staff travelling expenses,36.00,36.00,.00,4112,Passenger Railways
30/11/17,Tri-Borough Childrens Services,SOUTHEASTERN WEB,Staff travelling expenses,19.90,19.90,.00,4112,Passenger Railways
30/11/17,Tri-borough Libraries and Archives,SAINSBURYS 0602,Catering,43.50,43.50,.00,5411,Grocery Stores
30/11/17,Tri-Borough Childrens Services,LONDON OVERGROUND SST,Staff travelling expenses,12.30,12.30,.00,4112,Passenger Railways
30/11/17,Tri-Borough Childrens Services,TESCO STORES 4447,Before & After Sch Clubs Exp E24,14.82,14.82,.00,5411,Grocery Stores
30/11/17,PPC,SAINSBURYS SACAT (4286,Catering,8.80,8.80,.00,5411,Grocery Stores
30/11/17,PPC,SAINSBURYS SACAT (4286,Catering,6.90,6.90,.00,5411,Grocery Stores
30/11/17,PPC,INTERFLORA BRITISH UNI,Stationery,37.00,37.00,.00,5992,Florists
30/11/17,PPC,M&S SIMPLY FOOD - SSP,Catering,41.45,41.45,.00,5499,Misc. Food Stores - Convenience Stores and Specialty Markets
30/11/17,Bi-Borough Corporate Services,Amazon UK Marketplace,Stationery,39.18,39.18,.00,5942,Book Stores
30/11/17,WAES,Amazon UK Marketplace,"Equipment, furniture and materials",2.60,2.60,.00,5942,Book Stores
30/11/17,WAES,EB  NEW APPROACH TO AP,Training,318.00,318.00,.00,7399,"Business Services, Not Elsewhere Classified"
29/11/17,Tri-Borough Childrens Services,LONDON BORO OF REDBRI,Young Persons Subsistence Allowance,11.17,11.17,.00,9399,Government Services ( Not Elsewhere Classified)
30/11/17,Tri-borough Libraries and Archives,TIMPSON LTD,"Equipment, furniture and materials",24.00,24.00,.00,7251,"Shop Repair Shops and Shoe Shine Parlors, and Hat Cleaning Shops"
30/11/17,Tri-Borough Childrens Services,NEW SOUTHERN RAILW,Staff travelling expenses,4.30,4.30,.00,4112,Passenger Railways
30/11/17,PPC,Amazon UK Marketplace,Stationery,95.94,95.94,.00,5942,Book Stores
30/11/17,Tri-borough Libraries and Archives,Amazon UK Marketplace,"Equipment, furniture and materials",3.07,3.07,.00,5942,Book Stores
29/11/17,Tri-Borough Childrens Services,SALES@AIRSQUIRRELS.COM,Aud Vis or other equip costs E19,174.99,140.00,34.99,5734,Computer Software Stores
30/11/17,City Management and Communities,AMAZON.CO.UK,Staff travelling expenses,60.99,53.99,7.00,5942,Book Stores
30/11/17,Tri-Borough ASC and NHS Integrated Commi,RONNIES GENERAL STORE,Catering,8.19,8.19,.00,5411,Grocery Stores
30/11/17,Tri-Borough Childrens Services,SNAPPY SNAPS,"Equipment, furniture and materials",281.20,281.20,.00,7395,"Photofinishing Laboratories, Photo Developing"
30/11/17,Tri-borough Libraries and Archives,TESCO STORES 3012,Cleaning and domestic supplies,12.92,11.13,1.79,5411,Grocery Stores
30/11/17,Tri-borough Libraries and Archives,T K MAXX,Stationery,4.99,4.99,.00,5331,Variety Stores
30/11/17,Tri-borough Libraries and Archives,FACEBK MBTWAE2LE2,Activities and Events,10.89,10.89,.00,7311,Advertising Services
30/11/17,Tri-borough Libraries and Archives,TESCO METRO 2299,Activities and Events,45.60,38.00,7.60,5411,Grocery Stores
30/11/17,Tri-Borough Childrens Services,M&S SIMPLY FOOD - SSP,Staff travelling expenses,6.00,6.00,.00,5499,Misc. Food Stores - Convenience Stores and Specialty Markets
30/11/17,Bi-Borough Corporate Services,WWW.THELAWSOCIETY.ORG,Training,318.00,318.00,.00,8699,Membership Organizations ( Not Elsewhere Classified)
30/11/17,Tri-Borough ASC and NHS Integrated Commi,Amazon UK Marketplace,Stationery,10.45,10.45,.00,5942,Book Stores
30/11/17,Tri-Borough Childrens Services,TESCO-STORES-5714,Stationery,16.39,16.39,.00,5411,Grocery Stores
29/11/17,City Management and Communities,VERRUS PARKING,Tport - Prkng & Congestion Chgs,2.34,2.34,.00,7523,Automobile Parking Lots and Garages
30/11/17,City Management and Communities,RINGGO PARKING,Tport - Prkng & Congestion Chgs,10.05,9.98,.07,7523,Automobile Parking Lots and Garages
30/11/17,"Growth, Planning and Housing",SHOT ESPRESSO,Hospitality,5.25,5.25,.00,5814,Fast Food Restaurants
30/11/17,City Management and Communities,FACEBK ABDWBESRQ2,"Print, Pub & adverts",2.77,2.77,.00,7311,Advertising Services
30/11/17,"Growth, Planning and Housing",ROOF TOP KITCHEN,Activities and Events,70.00,70.00,.00,5812,Eating places and Restaurants
30/11/17,"Growth, Planning and Housing",CONTEH CONV STORE,Client travelling expenses,40.50,40.50,.00,5411,Grocery Stores
30/11/17,Tri-Borough Childrens Services,LONDON OVERGROUND SST,Staff travelling expenses,25.30,25.30,.00,4112,Passenger Railways
29/11/17,Corporate Services WCC,IPOSTPARCELS.COM,Postage,105.75,88.12,17.63,4215,Courier Services - Air or Ground
29/11/17,Tri-Borough Childrens Services,BAKER ROSS LTD,Teaching Materials -E19,124.51,103.76,20.75,5970,Artist�s Supply and Craft Shops
29/11/17,Tri-Borough Childrens Services,LONDON OVERGROUND SST,Staff travelling expenses,7.00,7.00,.00,4112,Passenger Railways
29/11/17,Tri-Borough Childrens Services,LUL TICKET MACHINE,Staff travelling expenses,20.00,20.00,.00,4112,Passenger Railways
29/11/17,WAES,WWW.AOC.CO.UK,Training,50.00,50.00,.00,7399,"Business Services, Not Elsewhere Classified"
29/11/17,WAES,WWW.AOC.CO.UK,Training,50.00,50.00,.00,7399,"Business Services, Not Elsewhere Classified"
29/11/17,"Growth, Planning and Housing",TESCO STORES (5565),Contingency,10.00,10.00,.00,5411,Grocery Stores
29/11/17,Tri-Borough Childrens Services,BAYSWATER INN,Temporary Accommodation,53.10,53.10,.00,7011,"Lodging - Hotels, Motels, Resorts, Central Reservation Services (not elsewhere classified)"
29/11/17,"Growth, Planning and Housing",OYSTER RENEW WEB,Client travelling expenses,36.20,36.20,.00,4112,Passenger Railways
29/11/17,"Growth, Planning and Housing",STRATFORD EAST TRADING,Activities and Events,34.50,34.50,.00,5813,"Drinking Places (Alcoholic Beverages), Bars, Taverns, Cocktail lounges, Nightclubs and Discotheques"
28/11/17,Chief of Staff,RAC PALL MALL CLUBHOUS,Hospitality,72.50,60.42,12.08,5999,Miscellaneous and Specialty Retail Stores
29/11/17,Chief of Staff,NISBETS PLC,"Equipment, furniture and materials",353.66,294.72,58.94,5950,Glassware/Crystal Stores
29/11/17,PPC,Amazon UK Marketplace,"Equipment, furniture and materials",95.94,95.94,.00,5942,Book Stores
29/11/17,PPC,Amazon UK Marketplace,Stationery,12.84,10.70,2.14,5942,Book Stores
29/11/17,City Management and Communities,AMAZON.CO.UK,Staff travelling expenses,10.20,8.50,1.70,5942,Book Stores
29/11/17,Tri-Borough Childrens Services,East Midlands Trains,Staff travelling expenses,75.50,75.50,.00,4112,Passenger Railways
29/11/17,Tri-Borough Childrens Services,East Midlands Trains,Staff travelling expenses,75.50,75.50,.00,4112,Passenger Railways
29/11/17,Tri-Borough Childrens Services,LUL TICKET MACHINE,Staff travelling expenses,20.00,20.00,.00,4112,Passenger Railways
29/11/17,Tri-Borough Childrens Services,LUL TICKET MACHINE,Section 17 Young Persons Support,15.00,15.00,.00,4112,Passenger Railways
29/11/17,Tri-Borough Childrens Services,LUL TICKET MACHINE,Section 17 Young Persons Support,38.00,38.00,.00,4112,Passenger Railways
29/11/17,Tri-Borough Childrens Services,LUL TICKET MACHINE,Section 17 Young Persons Support,15.00,15.00,.00,4112,Passenger Railways
29/11/17,Tri-Borough Childrens Services,LUL TICKET MACHINE,Staff travelling expenses,15.00,15.00,.00,4112,Passenger Railways
29/11/17,Tri-Borough Childrens Services,TESCO STORES 3012,Young Persons Subsistence Allowance,3.00,3.00,.00,5411,Grocery Stores
29/11/17,Tri-Borough Childrens Services,POST OFFICE COUNTER,Postage,8.20,8.20,.00,9402,Postal Services - Government Only
29/11/17,Tri-Borough Childrens Services,SAINSBURYS TO YOU 0602,Adminstrative Supplies -E22,52.80,52.80,.00,5411,Grocery Stores
29/11/17,Tri-borough Libraries and Archives,SANTANA,"Equipment, furniture and materials",5.98,4.98,1.00,5411,Grocery Stores
29/11/17,Tri-borough Libraries and Archives,SANTANA,"Equipment, furniture and materials",6.99,5.82,1.17,5411,Grocery Stores
29/11/17,City Management and Communities,OYSTER AUTOTOPUP,Staff travelling expenses,20.00,20.00,.00,4112,Passenger Railways
29/11/17,City Management and Communities,OYSTER AUTOTOPUP,Staff travelling expenses,20.00,20.00,.00,4112,Passenger Railways
29/11/17,City Management and Communities,OYSTER AUTOTOPUP,Staff travelling expenses,20.00,20.00,.00,4112,Passenger Railways
29/11/17,Tri-Borough ASC and NHS Integrated Commi,REGENTS PARK-CATERING,Day Opportunities,2.85,2.85,.00,5811,Caterers
28/11/17,Tri-Borough ASC and NHS Integrated Commi,CAFFE NERO 500 MAIDA V,Day Opportunities,7.50,7.50,.00,5814,Fast Food Restaurants
29/11/17,City Management and Communities,SOUTHERN RAILWAY L,Staff travelling expenses,18.30,18.30,.00,4112,Passenger Railways
29/11/17,City Management and Communities,OYSTER AUTOTOPUP,Staff travelling expenses,20.00,20.00,.00,4112,Passenger Railways
29/11/17,Tri-Borough ASC and NHS Integrated Commi,WWW.WESTMINSTER-BRIEFI,Training,955.80,955.80,.00,8244,Business and Secretarial Schools
29/11/17,Tri-Borough ASC and NHS Integrated Commi,OYSTER AUTOTOPUP,Staff travelling expenses,20.00,20.00,.00,4112,Passenger Railways
29/11/17,City Management and Communities,RB KEN&CHELSEA,Tport - Prkng & Congestion Chgs,14.03,14.03,.00,7523,Automobile Parking Lots and Garages
28/11/17,Tri-Borough Childrens Services,BAYSWATER INN,Temporary Accommodation,134.00,134.00,.00,7011,"Lodging - Hotels, Motels, Resorts, Central Reservation Services (not elsewhere classified)"
29/11/17,Tri-borough Libraries and Archives,TESCO STORES 5177,Catering,2.20,2.20,.00,5411,Grocery Stores
29/11/17,"Growth, Planning and Housing",OYSTER AUTOTOPUP,Staff travelling expenses,20.00,20.00,.00,4112,Passenger Railways
29/11/17,"Growth, Planning and Housing",LUL TICKET MACHINE,Client travelling expenses,33.00,33.00,.00,4112,Passenger Railways
29/11/17,Tri-Borough ASC and NHS Integrated Commi,LONDON OVERGROUND TO,Staff travelling expenses,10.00,10.00,.00,4112,Passenger Railways
29/11/17,Tri-Borough Childrens Services,TULSI NEWS,Staff travelling expenses,6.60,6.60,.00,5994,News Dealers and Newsstands
29/11/17,Tri-Borough Childrens Services,POUNDLAND LTD 1485,Activities and Events,44.20,44.20,.00,5310,Discount Stores
29/11/17,Tri-Borough Childrens Services,TIGER,Activities and Events,6.10,6.10,.00,5947,"Card Shops, Gift, Novelty, and Souvenir Shops"
29/11/17,Tri-Borough Childrens Services,Toys R Us,Activities and Events,34.47,34.47,.00,5999,Miscellaneous and Specialty Retail Stores
29/11/17,"Growth, Planning and Housing",OYSTER AUTOTOPUP,Staff travelling expenses,20.00,20.00,.00,4112,Passenger Railways
29/11/17,Tri-Borough Childrens Services,LUL TICKET MACHINE,Staff travelling expenses,10.00,10.00,.00,4112,Passenger Railways
29/11/17,Tri-Borough ASC and NHS Integrated Commi,EYE LEVEL,"Equipment, furniture and materials",214.00,214.00,.00,8043,"Opticians, Opticians Goods and Eyeglasses"
29/11/17,PPC,CO-OP GROUP 500593,Catering,22.78,22.78,.00,5411,Grocery Stores
29/11/17,City Management and Communities,LITTLE MANOR SERVI,Trade Waste and Refuse Collection,71.60,59.67,11.93,5541,Service Stations ( with or without ancillary services)
28/11/17,Bi-Borough Corporate Services,AERLING   2HZHMN RAMSAY0,Staff travelling expenses,464.98,464.98,.00,3043,AER LINGUS
28/11/17,Bi-Borough Corporate Services,AERLING   27X2XF RAMSAY0,Staff travelling expenses,349.98,349.98,.00,3043,AER LINGUS
29/11/17,Tri-Borough ASC and NHS Integrated Commi,WWW.JUSTGLOVES.CO.UK,"Equipment, furniture and materials",187.20,187.20,.00,5999,Miscellaneous and Specialty Retail Stores
29/11/17,Chief of Staff,LEYLAND LSDM SHAFTESBU,"Equipment, furniture and materials",6.55,5.46,1.09,5251,Hardware Stores
28/11/17,Tri-Borough Childrens Services,PAYPAL  ESBARGAINSL,Adminstrative Supplies -E22,6.87,6.87,.00,5932,Antique Stores
29/11/17,Tri-Borough ASC and NHS Integrated Commi,HMCOURTS-SERVICE.G,Fees,75.00,75.00,.00,9222,Fines
28/11/17,Tri-Borough Childrens Services,WWW.ACCESSTRAININGUK.C,S24 Support allowance,255.17,255.17,.00,8249,Vocational Schools and Trade Schools
28/11/17,Tri-Borough Childrens Services,GOODNEWS,Client travelling expenses,33.00,33.00,.00,5994,News Dealers and Newsstands
28/11/17,Tri-Borough Childrens Services,KRISHNAS CONVENIENCE S,Client travelling expenses,15.50,15.50,.00,5411,Grocery Stores
28/11/17,Tri-Borough Childrens Services,MCDONALDS,Subsistence Expenses,5.16,5.16,.00,5814,Fast Food Restaurants
28/11/17,City Management and Communities,ARGOS LTD,Subsistence Expenses,20.04,20.04,.00,5310,Discount Stores
28/11/17,Chief of Staff,ARGOS THE STRAND,Tport - Prkng & Congestion Chgs,14.99,14.99,.00,5310,Discount Stores
28/11/17,Tri-Borough ASC and NHS Integrated Commi,DISCLOSURE & BARRING,DBS Police checks,13.00,13.00,.00,9399,Government Services ( Not Elsewhere Classified)
28/11/17,Tri-Borough Childrens Services,JOHN LEWIS,Furn & Equip - non Tchng E22,25.25,21.04,4.21,5311,Department Stores
28/11/17,PPC,WWW.PRET.COM,Catering,251.40,251.38,.02,5812,Eating places and Restaurants
28/11/17,PPC,BLOOMSBURY FLOWERS,"Equipment, furniture and materials",-45.00,-45.00,.00,5992,Florists
28/11/17,Tri-Borough ASC and NHS Integrated Commi,HMCOURTS-SERVICE.G,Fees,150.00,150.00,.00,9222,Fines
27/11/17,PPC,STRAND PALACE HOTE,Hired and Contracted Services,300.00,250.00,50.00,7011,"Lodging - Hotels, Motels, Resorts, Central Reservation Services (not elsewhere classified)"
28/11/17,Tri-Borough Childrens Services,COMPLETE CARE SHOP,"Equipment, furniture and materials",58.74,48.95,9.79,5399,Misc. General Merchandise
27/11/17,City Management and Communities,AMAZON UK PRIME AMZN.C,Stationery,7.99,7.99,.00,5968,Direct Marketing - Continuity/Subscription Merchant
28/11/17,Chief of Staff,UKOFFICEDIRECT.CO.,Stationery,156.41,130.33,26.08,5943,"Stationery Stores, Office and School Supply Stores"
28/11/17,Tri-Borough Childrens Services,WWW.PARTYPIECES.CO.UK,Adminstrative Supplies -E22,47.88,47.88,.00,5969,Direct Marketing - Not Elsewhere Classified
28/11/17,Tri-Borough Childrens Services,WWW.ARGOS.CO.UK,Cleaning and Caretaking -E14,33.94,33.94,.00,5310,Discount Stores
28/11/17,Tri-Borough ASC and NHS Integrated Commi,THE SINDIAN GRILL HOUS,Subsistence Expenses,5.45,5.45,.00,5814,Fast Food Restaurants
28/11/17,Tri-borough Libraries and Archives,AMAZON SVCS EU-UK AMAZ,"Equipment, furniture and materials",19.88,19.88,.00,5942,Book Stores
28/11/17,City Management and Communities,TIMPSON LTD,Staff travelling expenses,35.90,35.90,.00,7251,"Shop Repair Shops and Shoe Shine Parlors, and Hat Cleaning Shops"
28/11/17,Tri-Borough Childrens Services,Trainline,Staff travelling expenses,21.67,21.67,.00,4112,Passenger Railways
28/11/17,Tri-Borough Childrens Services,LUL TICKET MACHINE,Staff travelling expenses,12.30,12.30,.00,4112,Passenger Railways
28/11/17,Tri-Borough Childrens Services,BOOKDEPOSITORY.COM,Education Allowance,22.49,22.49,.00,5942,Book Stores
28/11/17,Tri-Borough Childrens Services,TESCO STORE 3012,Section 17 Young Persons Support,24.44,24.44,.00,5411,Grocery Stores
28/11/17,City Management and Communities,OYSTER BUS AUTOTOP,Staff travelling expenses,20.00,20.00,.00,4112,Passenger Railways
28/11/17,City Management and Communities,WH SMITH,"Print, Pub & adverts",10.59,8.83,1.76,5994,News Dealers and Newsstands
28/11/17,Tri-Borough ASC and NHS Integrated Commi,Trainline,Staff travelling expenses,12.29,12.29,.00,4112,Passenger Railways
27/11/17,Tri-Borough ASC and NHS Integrated Commi,TFL CC AUTO PAY,Tport - Prkng & Congestion Chgs,10.00,10.00,.00,4784,Toll and Bridge Fees
28/11/17,Tri-Borough Childrens Services,GOLDEN NEWS,Staff travelling expenses,12.50,12.50,.00,5994,News Dealers and Newsstands
28/11/17,Tri-Borough Childrens Services,TESCO STORES 5439,Subsistence Expenses,5.00,5.00,.00,5411,Grocery Stores
28/11/17,Tri-Borough Childrens Services,POST OFFICE COUNTER,"Admin Stat., Print & Reprog. E22",.56,.56,.00,9402,Postal Services - Government Only
28/11/17,Tri-Borough ASC and NHS Integrated Commi,TESCO PFS  2861,Subsistence Expenses,7.90,7.90,.00,5541,Service Stations ( with or without ancillary services)
28/11/17,Tri-Borough ASC and NHS Integrated Commi,ISTORAGE,Assistive Equipment & Technology,220.80,184.00,36.80,5732,Electronic Sales
28/11/17,City Management and Communities,RYMAN 1037,Stationery,163.97,163.97,.00,5943,"Stationery Stores, Office and School Supply Stores"
28/11/17,City Management and Communities,RYMAN 1037,Stationery,19.99,19.99,.00,5943,"Stationery Stores, Office and School Supply Stores"
28/11/17,Tri-borough Libraries and Archives,RYMAN 1168,Stationery,7.99,7.99,.00,5943,"Stationery Stores, Office and School Supply Stores"
28/11/17,City Management and Communities,3C_ Highland and Islan,Tport - Prkng & Congestion Chgs,11.00,11.00,.00,7523,Automobile Parking Lots and Garages
28/11/17,City Management and Communities,OYSTER RENEW WEB,Staff travelling expenses,10.00,10.00,.00,4112,Passenger Railways
28/11/17,City Management and Communities,OYSTER RENEW WEB,Staff travelling expenses,5.00,5.00,.00,4112,Passenger Railways
28/11/17,City Management and Communities,OYSTER RENEW WEB,Staff travelling expenses,10.00,10.00,.00,4112,Passenger Railways
28/11/17,City Management and Communities,BURGER KING,Subsistence Expenses,7.39,7.39,.00,5814,Fast Food Restaurants
28/11/17,Tri-Borough Childrens Services,WWW.FCO.GOV.UK,Stationery,35.50,35.50,.00,9399,Government Services ( Not Elsewhere Classified)
27/11/17,Tri-Borough Childrens Services,AMAZON.CO.UK,Staff Empl Cost of M & Equip E12,8.87,8.87,.00,5942,Book Stores
28/11/17,Tri-Borough Childrens Services,LONDON OVERGROUND SST,Staff travelling expenses,5.00,5.00,.00,4112,Passenger Railways
28/11/17,Tri-Borough Childrens Services,WH SMITH,Learning Res Not ICT Equip E19,17.93,17.93,.00,5994,News Dealers and Newsstands
28/11/17,"Growth, Planning and Housing",SHOT ESPRESSO,Hospitality,6.00,6.00,.00,5814,Fast Food Restaurants
28/11/17,Tri-Borough ASC and NHS Integrated Commi,TESCO STORES,Catering,12.49,12.49,.00,5411,Grocery Stores
28/11/17,Tri-Borough Childrens Services,KRISHNAS CONVENIENCE S,Staff travelling expenses,10.50,10.50,.00,5411,Grocery Stores
27/11/17,Tri-Borough Childrens Services,EAT,Section 17 Young Persons Support,5.74,5.74,.00,5812,Eating places and Restaurants
27/11/17,Tri-Borough Childrens Services,LUL TICKET MACHINE,Section 17 Young Persons Support,25.00,25.00,.00,4112,Passenger Railways
27/11/17,City Management and Communities,Amazon UK Marketplace,"Equipment, furniture and materials",89.02,85.04,3.98,5942,Book Stores
27/11/17,City Management and Communities,CIEH,Training,578.00,578.00,.00,8699,Membership Organizations ( Not Elsewhere Classified)
27/11/17,City Management and Communities,CIEH,Training,578.00,578.00,.00,8699,Membership Organizations ( Not Elsewhere Classified)
27/11/17,City Management and Communities,OYSTER AUTOTOPUP,Staff travelling expenses,40.00,40.00,.00,4112,Passenger Railways
27/11/17,City Management and Communities,WWW.ISLINGTON.GOV.,Tport - Prkng & Congestion Chgs,10.00,9.94,.06,7523,Automobile Parking Lots and Garages
27/11/17,Tri-borough Libraries and Archives,TESCO STORES 5177,Catering,6.28,6.28,.00,5411,Grocery Stores
27/11/17,Tri-Borough Childrens Services,COSTA COFFEE 43040520,Subsistence Expenses,9.25,9.25,.00,5814,Fast Food Restaurants
27/11/17,Tri-Borough Childrens Services,LUL TICKET MACHINE,Staff travelling expenses,10.00,10.00,.00,4112,Passenger Railways
27/11/17,"Growth, Planning and Housing",LUL TICKET MACHINE,Client travelling expenses,15.00,15.00,.00,4112,Passenger Railways
27/11/17,Tri-Borough Childrens Services,COSTCUTTER EXPRESS,Subsistence Expenses,60.00,60.00,.00,5994,News Dealers and Newsstands
27/11/17,"Growth, Planning and Housing",WAITROSE 860,Activities and Events,11.70,11.70,.00,5411,Grocery Stores
27/11/17,Chief of Staff,AUTOCLEAN,Tport - Prkng & Congestion Chgs,72.00,72.00,.00,7538,Automotive Service Shops
24/11/17,Chief of Staff,TFL CC AUTO PAY,Tport - Prkng & Congestion Chgs,84.00,84.00,.00,4784,Toll and Bridge Fees
27/11/17,Tri-Borough Childrens Services,LUL TICKET MACHINE,Staff travelling expenses,10.00,10.00,.00,4112,Passenger Railways
27/11/17,PPC,SAINSBURYS SACAT (4286,Catering,16.95,16.95,.00,5411,Grocery Stores
27/11/17,PPC,MARKS&SPENCER PLC,Catering,27.90,27.90,.00,5411,Grocery Stores
27/11/17,City Management and Communities,VICTORIA TIC,Staff travelling expenses,25.00,25.00,.00,4112,Passenger Railways
24/11/17,Tri-Borough Childrens Services,RYANAIR22 22400000SREU6P,Staff travelling expenses,77.30,77.30,.00,3246,Ryanair
27/11/17,Tri-borough Libraries and Archives,AMAZON SVCS EU-UK AMAZ,"Equipment, furniture and materials",10.18,10.18,.00,5942,Book Stores
27/11/17,Tri-Borough ASC and NHS Integrated Commi,Trainline,Staff travelling expenses,29.83,29.83,.00,4112,Passenger Railways
27/11/17,Tri-Borough ASC and NHS Integrated Commi,Trainline,Staff travelling expenses,67.63,67.63,.00,4112,Passenger Railways
27/11/17,Tri-Borough ASC and NHS Integrated Commi,Trainline,Staff travelling expenses,23.82,23.82,.00,4112,Passenger Railways
27/11/17,City Treasurers,RYMAN 1037,Stationery,132.81,132.81,.00,5943,"Stationery Stores, Office and School Supply Stores"
27/11/17,City Treasurers,RYMAN 1037,Stationery,45.01,45.01,.00,5943,"Stationery Stores, Office and School Supply Stores"
27/11/17,Tri-Borough Childrens Services,BENS NEWS,Staff travelling expenses,12.00,12.00,.00,5411,Grocery Stores
27/11/17,Tri-Borough Childrens Services,PRET A MANGER,Subsistence Expenses,5.73,5.73,.00,5812,Eating places and Restaurants
27/11/17,City Management and Communities,CARDS GALORE,Stationery,15.60,15.60,.00,5441,Candy Stores
27/11/17,Tri-Borough Childrens Services,PAYPAL  PSAPARTSLTD,"ICT Purch, Lease, Hire & Maint E20",59.99,49.99,10.00,5732,Electronic Sales
27/11/17,Tri-Borough Childrens Services,BAKER ROSS LTD,C/Rm & Learning Equip Excl ICT E19,34.29,28.58,5.71,5970,Artist�s Supply and Craft Shops
27/11/17,Tri-Borough ASC and NHS Integrated Commi,WESTMINSTER FORUM,Training,252.00,252.00,.00,7392,"Management, Consulting, and Public Relations Services"
27/11/17,Tri-Borough ASC and NHS Integrated Commi,SAINSBURYS SACAT 0602,"Equipment, furniture and materials",12.65,12.65,.00,5411,Grocery Stores
27/11/17,Tri-Borough Childrens Services,LUL TICKET MACHINE,Staff travelling expenses,10.00,10.00,.00,4112,Passenger Railways
27/11/17,City Management and Communities,WWW.ISLINGTON.GOV.,Tport - Prkng & Congestion Chgs,12.40,12.34,.06,7523,Automobile Parking Lots and Garages
27/11/17,WAES,ONE PRICE,"Equipment, furniture and materials",6.99,6.99,.00,5310,Discount Stores
27/11/17,"Growth, Planning and Housing",EMBASSY OF THE REPUBLI,Contingency,100.00,100.00,.00,9399,Government Services ( Not Elsewhere Classified)
27/11/17,"Growth, Planning and Housing",SEYMOUR NEWS,Client travelling expenses,15.50,15.50,.00,5994,News Dealers and Newsstands
27/11/17,"Growth, Planning and Housing",PHOTO ME INTERNATIONAL,"Equipment, furniture and materials",6.00,6.00,.00,7395,"Photofinishing Laboratories, Photo Developing"
24/11/17,Tri-borough Libraries and Archives,LASTMINUTE.COM - HOTEL,Hospitality,151.87,151.87,.00,4722,Travel Agencies and Tour Operations
27/11/17,Tri-Borough Childrens Services,LUL TICKET MACHINE,Staff travelling expenses,15.20,15.20,.00,4112,Passenger Railways
27/11/17,Tri-Borough Childrens Services,LUL TICKET MACHINE,Staff travelling expenses,5.00,5.00,.00,4112,Passenger Railways
27/11/17,PPC,JASONHAWKESCOM,Hired and Contracted Services,180.00,180.00,.00,7221,Photographic Studios
27/11/17,Chief of Staff,JOHN LEWIS,"Equipment, furniture and materials",177.15,147.62,29.53,5311,Department Stores
27/11/17,City Management and Communities,VICTORIA TIC,Staff travelling expenses,25.00,25.00,.00,4112,Passenger Railways
27/11/17,City Management and Communities,VICTORIA TIC,Staff travelling expenses,25.00,25.00,.00,4112,Passenger Railways
27/11/17,Tri-Borough Childrens Services,SAINSBURYS SACAT (4286,Hospitality,15.20,15.20,.00,5411,Grocery Stores
27/11/17,Tri-Borough Childrens Services,WESTMINSTER PARKING,Tport - Prkng & Congestion Chgs,3.50,3.50,.00,7523,Automobile Parking Lots and Garages
27/11/17,City Management and Communities,ALAMY.COM LIMITED,"Equipment, furniture and materials",-176.40,-176.40,.00,5971,Art Dealers and Galleries
27/11/17,Tri-Borough Childrens Services,LUL TICKET MACHINE,Section 17 Young Persons Support,38.70,38.70,.00,4112,Passenger Railways
27/11/17,Tri-Borough Childrens Services,LUL TICKET MACHINE,Staff travelling expenses,20.00,20.00,.00,4112,Passenger Railways
27/11/17,Tri-borough Libraries and Archives,EB  MASTERCLASS HOW TO,Training,48.00,40.00,8.00,7399,"Business Services, Not Elsewhere Classified"
23/11/17,City Management and Communities,AUTOGRILL CATERING UK,Subsistence Expenses,3.15,3.15,.00,5812,Eating places and Restaurants
23/11/17,City Management and Communities,COLOSSEO RESTAURANT,Subsistence Expenses,16.00,16.00,.00,5812,Eating places and Restaurants
24/11/17,City Management and Communities,EAT 1539,Subsistence Expenses,7.23,7.23,.00,5812,Eating places and Restaurants
24/11/17,City Management and Communities,3C_ Highland and Islan,Tport - Prkng & Congestion Chgs,22.00,22.00,.00,7523,Automobile Parking Lots and Garages
24/11/17,City Management and Communities,OYSTER RENEW WEB,Staff travelling expenses,-10.00,-10.00,.00,4112,Passenger Railways
24/11/17,City Management and Communities,OYSTER RENEW WEB,Staff travelling expenses,-10.00,-10.00,.00,4112,Passenger Railways
24/11/17,City Management and Communities,SOUTHERN RAILWAY L,Staff travelling expenses,50.40,50.40,.00,4112,Passenger Railways
26/11/17,City Management and Communities,OYSTER BUS AUTOTOP,Staff travelling expenses,20.00,20.00,.00,4112,Passenger Railways
24/11/17,Tri-borough Libraries and Archives,AMAZON UK RETAIL AMAZO,"Equipment, furniture and materials",41.68,34.73,6.95,5999,Miscellaneous and Specialty Retail Stores
25/11/17,Tri-Borough ASC and NHS Integrated Commi,OYSTER AUTOTOPUP,Staff travelling expenses,20.00,20.00,.00,4112,Passenger Railways
25/11/17,Tri-Borough ASC and NHS Integrated Commi,OYSTER AUTOTOPUP,Staff travelling expenses,20.00,20.00,.00,4112,Passenger Railways
25/11/17,Tri-Borough ASC and NHS Integrated Commi,AMZ Tablet2Cases,"Equipment, furniture and materials",-157.25,-157.25,.00,5999,Miscellaneous and Specialty Retail Stores
24/11/17,Tri-Borough Childrens Services,LUL TICKET MACHINE,Staff travelling expenses,5.00,5.00,.00,4112,Passenger Railways
24/11/17,"Growth, Planning and Housing",CO-OP GROUP 500593,Hospitality,21.50,21.50,.00,5411,Grocery Stores
24/11/17,"Growth, Planning and Housing",CO-OP GROUP 500593,Hospitality,3.50,3.50,.00,5411,Grocery Stores
25/11/17,City Management and Communities,OYSTER AUTOTOPUP,Staff travelling expenses,20.00,20.00,.00,4112,Passenger Railways
26/11/17,City Management and Communities,OYSTER AUTOTOPUP,Staff travelling expenses,20.00,20.00,.00,4112,Passenger Railways
24/11/17,Tri-Borough Childrens Services,LUL TICKET MACHINE,Staff travelling expenses,10.00,10.00,.00,4112,Passenger Railways
23/11/17,PPC,THE GORING HOTEL,Catering,125.44,125.44,.00,7011,"Lodging - Hotels, Motels, Resorts, Central Reservation Services (not elsewhere classified)"
26/11/17,City Management and Communities,OYSTER AUTOTOPUP,Staff travelling expenses,40.00,40.00,.00,4112,Passenger Railways
25/11/17,Tri-Borough ASC and NHS Integrated Commi,PAPERCHASE,"Equipment, furniture and materials",107.20,107.20,.00,5947,"Card Shops, Gift, Novelty, and Souvenir Shops"
24/11/17,Tri-Borough ASC and NHS Integrated Commi,SODEXO HAMMERSMITH SUB,Subsistence Expenses,4.40,4.40,.00,5811,Caterers
23/11/17,PPC,NAMESCO,Hired and Contracted Services,188.29,156.91,31.38,4816,Computer Network/Information Services
25/11/17,Tri-Borough ASC and NHS Integrated Commi,OYSTER AUTOTOPUP,Staff travelling expenses,20.00,20.00,.00,4112,Passenger Railways
23/11/17,WAES,AMAZON SVCS EU-UK AMAZ,"Equipment, furniture and materials",5.76,5.76,.00,5942,Book Stores
24/11/17,"Growth, Planning and Housing",LUL TICKET MACHINE,Client travelling expenses,5.00,5.00,.00,4112,Passenger Railways
24/11/17,"Growth, Planning and Housing",STARBUCKS,Hospitality,5.20,5.20,.00,5814,Fast Food Restaurants
24/11/17,Tri-Borough ASC and NHS Integrated Commi,3C_ CP Plus - RAF Muse,Day Opportunities,3.00,3.00,.00,7523,Automobile Parking Lots and Garages
24/11/17,Tri-borough Libraries and Archives,AMAZON SVCS EU-UK AMAZ,"Equipment, furniture and materials",3.65,3.65,.00,5942,Book Stores
24/11/17,Tri-borough Libraries and Archives,AMAZON UK RETAIL AMAZO,"Equipment, furniture and materials",18.15,18.15,.00,5999,Miscellaneous and Specialty Retail Stores
24/11/17,City Management and Communities,OYSTER AUTOTOPUP,Staff travelling expenses,20.00,20.00,.00,4112,Passenger Railways
25/11/17,City Management and Communities,WWW.OFFICEFURNITUREONL,Staff travelling expenses,115.20,115.20,.00,5712,"Furniture, Home Furnishings, and Equipment Stores, Except Appliances"
24/11/17,Tri-Borough Childrens Services,JAMAICA SPICE BAKERY L,Subsistence Expenses,5.00,5.00,.00,5812,Eating places and Restaurants
26/11/17,Tri-Borough Childrens Services,OYSTER AUTOTOPUP,Staff travelling expenses,20.00,20.00,.00,4112,Passenger Railways
24/11/17,Tri-Borough Childrens Services,EXPLORE LEARNING L,Section 17 Other,174.00,174.00,.00,8220,"Colleges, Junior Colleges, Universities, and Professional Schools"
24/11/17,Tri-Borough Childrens Services,LUL TICKET MACHINE,Staff travelling expenses,12.30,12.30,.00,4112,Passenger Railways
25/11/17,Tri-borough Libraries and Archives,TESCO STORES 3012,Activities and Events,1.88,1.88,.00,5411,Grocery Stores
26/11/17,Tri-borough Libraries and Archives,POUNDLAND,Activities and Events,3.00,3.00,.00,5310,Discount Stores
26/11/17,Tri-borough Libraries and Archives,ICELAND,Activities and Events,4.00,4.00,.00,5411,Grocery Stores
23/11/17,City Management and Communities,AMAZON SVCS EU-UK AMAZ,"Equipment, furniture and materials",128.71,128.71,.00,5942,Book Stores
26/11/17,City Management and Communities,OYSTER AUTOTOPUP,Staff travelling expenses,20.00,20.00,.00,4112,Passenger Railways
24/11/17,Tri-Borough Childrens Services,LEON TCW,Staff travelling expenses,5.45,5.45,.00,5812,Eating places and Restaurants
25/11/17,City Treasurers,OYSTER AUTOTOPUP,Staff travelling expenses,40.00,40.00,.00,4112,Passenger Railways
25/11/17,Tri-Borough ASC and NHS Integrated Commi,OYSTER AUTOTOPUP,Staff travelling expenses,20.00,20.00,.00,4112,Passenger Railways
25/11/17,Tri-Borough ASC and NHS Integrated Commi,OYSTER AUTOTOPUP,Staff travelling expenses,20.00,20.00,.00,4112,Passenger Railways
23/11/17,Tri-Borough Childrens Services,AMAZON SVCS EU-UK AMAZ,Teaching Materials -E19,8.99,8.99,.00,5942,Book Stores
23/11/17,Tri-Borough Childrens Services,AMAZON SVCS EU-UK AMAZ,Staff Empl Cost of M & Equip E12,14.99,14.99,.00,5942,Book Stores
25/11/17,City Management and Communities,OYSTER AUTOTOPUP,Staff travelling expenses,20.00,20.00,.00,4112,Passenger Railways
23/11/17,"Growth, Planning and Housing",TRI BOROUGH- LISSON GR,Hospitality,3.75,3.75,.00,5811,Caterers
24/11/17,PPC,MAILCHIMP    MONTHLY,Subscriptions,969.55,890.31,79.24,5968,Direct Marketing - Continuity/Subscription Merchant
25/11/17,City Management and Communities,PRET A MANGER,Subsistence Expenses,11.78,11.78,.00,5812,Eating places and Restaurants
24/11/17,Tri-Borough ASC and NHS Integrated Commi,CAFFE NERO 500 MAIDA V,Day Opportunities,7.80,7.80,.00,5814,Fast Food Restaurants
24/11/17,City Management and Communities,OYSTER AUTOTOPUP,Staff travelling expenses,40.00,40.00,.00,4112,Passenger Railways
24/11/17,City Management and Communities,OYSTER AUTOTOPUP,Staff travelling expenses,40.00,40.00,.00,4112,Passenger Railways
25/11/17,City Management and Communities,OYSTER AUTOTOPUP,Staff travelling expenses,40.00,40.00,.00,4112,Passenger Railways
24/11/17,"Growth, Planning and Housing",CONTEH CONV STORE,Staff travelling expenses,15.50,15.50,.00,5411,Grocery Stores
24/11/17,Tri-Borough ASC and NHS Integrated Commi,OYSTER AUTOTOPUP,Staff travelling expenses,20.00,20.00,.00,4112,Passenger Railways
22/11/17,Tri-Borough ASC and NHS Integrated Commi,WWW.ADDISONLEE.COM,Staff travelling expenses,17.40,17.40,.00,4121,Taxicabs and Limousines
24/11/17,Bi-Borough Corporate Services,TOURVEST-BA RETAIL,Staff travelling expenses,7.25,7.25,.00,5309,Duty Free Store
24/11/17,Bi-Borough Corporate Services,CRANFIELD CONF CNTR LT,Hospitality,15.85,15.85,.00,7011,"Lodging - Hotels, Motels, Resorts, Central Reservation Services (not elsewhere classified)"
24/11/17,Bi-Borough Corporate Services,OYSTER BUS AUTOTOP,Staff travelling expenses,40.00,40.00,.00,4112,Passenger Railways
25/11/17,Bi-Borough Corporate Services,OYSTER AUTOTOPUP,Staff travelling expenses,40.00,40.00,.00,4112,Passenger Railways
26/11/17,City Management and Communities,OYSTER BUS AUTOTOP,Staff travelling expenses,40.00,40.00,.00,4112,Passenger Railways
24/11/17,Tri-Borough ASC and NHS Integrated Commi,WWW.ADDISONLEE.COM,Conference Expenses,31.60,31.60,.00,4121,Taxicabs and Limousines
25/11/17,Tri-Borough ASC and NHS Integrated Commi,WWW.ADDISONLEE.COM,Conference Expenses,22.08,22.08,.00,4121,Taxicabs and Limousines
24/11/17,Tri-Borough Childrens Services,AMAZON SVCS EU-UK AMAZ,Bks (Lib. & Txt bks) -E19,10.15,10.15,.00,5942,Book Stores
25/11/17,City Management and Communities,OYSTER AUTOTOPUP,Staff travelling expenses,40.00,40.00,.00,4112,Passenger Railways
26/11/17,City Management and Communities,OYSTER AUTOTOPUP,Staff travelling expenses,20.00,20.00,.00,4112,Passenger Railways
24/11/17,Tri-Borough Childrens Services,WESTMINSTER PARKING,Tport - Prkng & Congestion Chgs,3.50,3.50,.00,7523,Automobile Parking Lots and Garages
24/11/17,Tri-borough Libraries and Archives,WILKO RETAIL LIMIT,Stationery,5.45,5.45,.00,5722,Household Appliance Stores
24/11/17,City Management and Communities,Trainline,Staff travelling expenses,22.69,22.69,.00,4112,Passenger Railways
24/11/17,City Management and Communities,OYSTER AUTOTOPUP,Staff travelling expenses,20.00,20.00,.00,4112,Passenger Railways
25/11/17,City Management and Communities,OYSTER AUTOTOPUP,Staff travelling expenses,20.00,20.00,.00,4112,Passenger Railways
25/11/17,City Management and Communities,OYSTER BUS AUTOTOP,Staff travelling expenses,20.00,20.00,.00,4112,Passenger Railways
26/11/17,City Management and Communities,OYSTER BUS AUTOTOP,Staff travelling expenses,20.00,20.00,.00,4112,Passenger Railways
24/11/17,"Growth, Planning and Housing",OYSTER AUTOTOPUP,Staff travelling expenses,40.00,40.00,.00,4112,Passenger Railways
24/11/17,City Management and Communities,PROMO PARROT,"Print, Pub & adverts",15.99,15.99,.00,5947,"Card Shops, Gift, Novelty, and Souvenir Shops"
24/11/17,Tri-borough Libraries and Archives,AMAZON UK RETAIL AMAZO,Hospitality,11.99,11.99,.00,5999,Miscellaneous and Specialty Retail Stores
24/11/17,Tri-Borough Childrens Services,OYSTER BUS AUTOTOP,Staff travelling expenses,20.00,20.00,.00,4112,Passenger Railways
23/11/17,PPC,PRET A MANGER,Subscriptions,35.90,35.90,.00,5812,Eating places and Restaurants
23/11/17,"Growth, Planning and Housing",CONTEH CONV STORE,Client travelling expenses,10.50,10.50,.00,5411,Grocery Stores
22/11/17,Tri-borough Libraries and Archives,AMAZON SVCS EU-UK AMAZ,Activities and Events,7.78,6.48,1.30,5942,Book Stores
23/11/17,Tri-borough Libraries and Archives,AMAZON SVCS EU-UK AMAZ,Activities and Events,8.58,7.16,1.42,5942,Book Stores
23/11/17,Tri-Borough Childrens Services,WAITROSE,Young Persons Subsistence Allowance,5.80,5.80,.00,5411,Grocery Stores
23/11/17,City Management and Communities,APPLE STORE R245,Tport - Prkng & Congestion Chgs,449.00,374.16,74.84,5732,Electronic Sales
23/11/17,"Growth, Planning and Housing",POST OFFICE COUNTER,Indirect employee expenses -E08,20.00,20.00,.00,9402,Postal Services - Government Only
23/11/17,"Growth, Planning and Housing",WWW.JAPANSOCIETY.ORG.U,Activities and Events,45.00,37.50,7.50,8398,Charitable and Social Service Organizations
23/11/17,Tri-Borough Childrens Services,LUL TICKET MACHINE,Staff travelling expenses,10.00,10.00,.00,4112,Passenger Railways
23/11/17,Tri-Borough Childrens Services,PUMPKIN CAFE,Staff travelling expenses,5.64,5.64,.00,5499,Misc. Food Stores - Convenience Stores and Specialty Markets
23/11/17,"Growth, Planning and Housing",TESCO STORES 3093,Activities and Events,7.00,7.00,.00,5411,Grocery Stores
23/11/17,Tri-Borough Childrens Services,WESTMINSTER PARKING,Tport - Prkng & Congestion Chgs,2.90,2.90,.00,7523,Automobile Parking Lots and Garages
23/11/17,Tri-borough Libraries and Archives,AMAZON SVCS EU-UK AMAZ,Activities and Events,4.32,4.32,.00,5942,Book Stores
23/11/17,Tri-borough Libraries and Archives,EASYKEYSLOC,Stationery,12.20,12.20,.00,5943,"Stationery Stores, Office and School Supply Stores"
23/11/17,"Growth, Planning and Housing",OYSTER RENEW WEB,Client travelling expenses,148.70,148.70,.00,4112,Passenger Railways
23/11/17,Tri-Borough Childrens Services,LUL TICKET MACHINE,Client travelling expenses,9.80,9.80,.00,4112,Passenger Railways
22/11/17,Tri-Borough Childrens Services,EBUYER (UK) LTD,ICT Learning resouces -E20,149.99,124.99,25.00,5722,Household Appliance Stores
23/11/17,Tri-Borough Childrens Services,WAYFAIR STORES LIM,Furniture -Teaching Purposes -E19,755.98,629.99,125.99,5965,Direct Marketing - Catalog and Catalog and Retail Merchant
23/11/17,Tri-Borough Childrens Services,WAITROSE,Subsistence Expenses,4.10,4.10,.00,5411,Grocery Stores
23/11/17,City Management and Communities,OYSTER BUS AUTOTOP,Staff travelling expenses,20.00,20.00,.00,4112,Passenger Railways
23/11/17,Tri-Borough Childrens Services,SUBWAY,Subsistence Expenses,6.20,6.20,.00,5814,Fast Food Restaurants
23/11/17,Tri-Borough Childrens Services,WENZELS THE BAKERS GRE,Subsistence Expenses,4.90,4.90,.00,5462,Bakeries
23/11/17,Tri-borough Libraries and Archives,SANTANA,"Equipment, furniture and materials",11.96,9.96,2.00,5411,Grocery Stores
22/11/17,City Management and Communities,AMAZON SVCS EU-UK AMAZ,"Equipment, furniture and materials",40.30,40.30,.00,5942,Book Stores
23/11/17,Tri-Borough Childrens Services,WWW.GREATFURNITURETRAD,Furniture -Teaching Purposes -E19,1735.20,1446.00,289.20,5712,"Furniture, Home Furnishings, and Equipment Stores, Except Appliances"
23/11/17,Tri-Borough Childrens Services,WWW.EARTH-ANCHORS.COM,Furniture -Teaching Purposes -E19,564.00,470.00,94.00,5021,Office and Commercial Furniture
22/11/17,Tri-Borough Childrens Services,AMAZON SVCS EU-UK AMAZ,Bks (Lib. & Txt bks) -E19,10.96,10.96,.00,5942,Book Stores
22/11/17,"Growth, Planning and Housing",AMAZON SVCS EU-UK AMAZ,Training,37.98,37.98,.00,5942,Book Stores
23/11/17,Tri-Borough ASC and NHS Integrated Commi,TESCO STORES 3276,Catering,15.14,15.14,.00,5411,Grocery Stores
23/11/17,PPC,SAINSBURYS SACAT (4286,Catering,6.90,6.90,.00,5411,Grocery Stores
23/11/17,City Management and Communities,OYSTER BUS AUTOTOP,Staff travelling expenses,40.00,40.00,.00,4112,Passenger Railways
22/11/17,Bi-Borough Corporate Services,HEATHROW EXPRESS,Staff travelling expenses,22.00,22.00,.00,4111,"Local/Suburban Commuter Passenger Transportation - Railroads, Feries, Local Water Transportation."
22/11/17,Bi-Borough Corporate Services,WIENER LINIEN 1045,Stationery,4.04,4.04,.00,4111,"Local/Suburban Commuter Passenger Transportation - Railroads, Feries, Local Water Transportation."
23/11/17,Tri-Borough ASC and NHS Integrated Commi,SAINSBURYS SACAT 0602,Catering,6.25,6.25,.00,5411,Grocery Stores
23/11/17,City Management and Communities,AMAZON SVCS EU-UK AMAZ,"Equipment, furniture and materials",151.62,151.62,.00,5942,Book Stores
23/11/17,City Management and Communities,AMAZON SVCS EU-UK AMAZ,"Equipment, furniture and materials",125.99,125.99,.00,5942,Book Stores
23/11/17,City Management and Communities,OYSTER BUS AUTOTOP,Staff travelling expenses,40.00,40.00,.00,4112,Passenger Railways
23/11/17,Tri-borough Libraries and Archives,POUNDLAND LTD 1149,Stationery,3.00,3.00,.00,5310,Discount Stores
23/11/17,Tri-borough Libraries and Archives,OCADO LTD.,Activities and Events,72.99,72.99,.00,5499,Misc. Food Stores - Convenience Stores and Specialty Markets
23/11/17,Tri-Borough Childrens Services,TAXIPAY TAXI FARE,Staff travelling expenses,13.31,13.31,.00,4121,Taxicabs and Limousines
23/11/17,Tri-Borough Childrens Services,WEST COAST TRAINS,Staff travelling expenses,52.10,52.10,.00,4112,Passenger Railways
23/11/17,Tri-Borough ASC and NHS Integrated Commi,ASHRA'S,Client travelling expenses,20.50,20.50,.00,5994,News Dealers and Newsstands
23/11/17,Tri-Borough ASC and NHS Integrated Commi,LONDON & SOUTH EAS,Staff travelling expenses,28.50,28.50,.00,4112,Passenger Railways
23/11/17,Tri-Borough ASC and NHS Integrated Commi,LONDON & SOUTH EAS,Staff travelling expenses,-28.40,-28.40,.00,4112,Passenger Railways
23/11/17,Tri-borough Libraries and Archives,AMAZON SVCS EU-UK AMAZ,"Print, Pub & adverts",-9.28,-9.28,.00,5942,Book Stores
23/11/17,PPC,THE INTELLECTUAL PROPE,Hired and Contracted Services,270.00,270.00,.00,9399,Government Services ( Not Elsewhere Classified)
23/11/17,Tri-Borough ASC and NHS Integrated Commi,OYSTER BUS AUTOTOP,Staff travelling expenses,20.00,20.00,.00,4112,Passenger Railways
23/11/17,Tri-Borough Childrens Services,LUL TICKET MACHINE,Staff travelling expenses,5.00,5.00,.00,4112,Passenger Railways
23/11/17,Tri-Borough ASC and NHS Integrated Commi,IZ  Canal deli,Day Opportunities,3.50,3.50,.00,5812,Eating places and Restaurants
23/11/17,Tri-Borough Childrens Services,PRET A MANGER,Section 17 Other,2.35,2.35,.00,5812,Eating places and Restaurants
23/11/17,Tri-Borough ASC and NHS Integrated Commi,LUL TICKET MACHINE,Client travelling expenses,5.00,5.00,.00,4112,Passenger Railways
23/11/17,Tri-Borough ASC and NHS Integrated Commi,GREENHOUSE GARDEN,"Equipment, furniture and materials",13.61,13.61,.00,5261,Nurseries - Lawn and Garden Supply Store
23/11/17,City Management and Communities,Trainline,Staff travelling expenses,22.19,22.19,.00,4112,Passenger Railways
23/11/17,City Management and Communities,EAT LTD,Subsistence Expenses,2.24,2.24,.00,5812,Eating places and Restaurants
23/11/17,City Management and Communities,OYSTER AUTOTOPUP,Staff travelling expenses,20.00,20.00,.00,4112,Passenger Railways
23/11/17,Tri-Borough Childrens Services,Amazon UK Marketplace,Furn & Equip - non Tchng E22,12.99,10.83,2.16,5942,Book Stores
23/11/17,WAES,AMAZON SVCS EU-UK AMAZ,"Equipment, furniture and materials",10.74,10.74,.00,5942,Book Stores
23/11/17,PPC,HOO HOOTSUITE MEDIA I,Subscriptions,23.98,19.98,4.00,5968,Direct Marketing - Continuity/Subscription Merchant
22/11/17,Tri-Borough Childrens Services,TESCO STORES 4447,Before & After Sch Clubs Exp E24,15.31,15.31,.00,5411,Grocery Stores
22/11/17,Tri-Borough Childrens Services,TESCO STORES 4447,"Admin Stat., Print & Reprog. E22",3.15,3.15,.00,5411,Grocery Stores
22/11/17,Tri-Borough ASC and NHS Integrated Commi,LUL TICKET MACHINE,Staff travelling expenses,5.00,5.00,.00,4112,Passenger Railways
22/11/17,Tri-Borough ASC and NHS Integrated Commi,SODEXO HAMMERSMITH FOO,Subsistence Expenses,4.05,4.05,.00,5811,Caterers
22/11/17,Tri-Borough Childrens Services,PAYPAL  TOOLSTATION,Staff Empl Cost of M & Equip E12,49.79,41.49,8.30,5169,"Chemicals and Allied Products, Not Elsewhere Classified"
22/11/17,Chief of Staff,OYSTER AUTOTOPUP,Staff travelling expenses,20.00,20.00,.00,4112,Passenger Railways
22/11/17,Tri-Borough ASC and NHS Integrated Commi,TESCO STORES 6109,Catering,91.60,91.60,.00,5411,Grocery Stores
22/11/17,Tri-Borough Childrens Services,PRET A MANGER,Subsistence Expenses,6.43,6.43,.00,5812,Eating places and Restaurants
22/11/17,Tri-Borough Childrens Services,SELFSERVE TICKET,Staff travelling expenses,45.50,45.50,.00,4112,Passenger Railways
22/11/17,Tri-Borough Childrens Services,TICKETOFFICESALE,Staff travelling expenses,13.35,13.35,.00,4112,Passenger Railways
22/11/17,City Management and Communities,AMAZON SVCS EU-UK AMAZ,"Equipment, furniture and materials",28.99,25.37,3.62,5942,Book Stores
21/11/17,City Management and Communities,EVERWALL.COM,Staff travelling expenses,24.31,24.31,.00,5734,Computer Software Stores
22/11/17,City Management and Communities,OYSTER AUTOTOPUP,Staff travelling expenses,20.00,20.00,.00,4112,Passenger Railways
22/11/17,Tri-Borough Childrens Services,WWW.POSTURITE.CO.UK,"Equipment, furniture and materials",101.99,101.99,.00,5021,Office and Commercial Furniture
22/11/17,Tri-Borough Childrens Services,ONLINE-ERGONOMICS.,"Equipment, furniture and materials",13.80,13.80,.00,5943,"Stationery Stores, Office and School Supply Stores"
21/11/17,Tri-Borough ASC and NHS Integrated Commi,CAFFE NERO 500 MAIDA V,Day Opportunities,7.95,7.95,.00,5814,Fast Food Restaurants
22/11/17,Tri-Borough ASC and NHS Integrated Commi,WILL TO WIN LTD,Day Opportunities,9.90,9.90,.00,7941,"Commercial Sports, Athletic Fields, Professional Sport Clubs, and Sport Promoters"
22/11/17,Tri-Borough ASC and NHS Integrated Commi,OYSTER AUTOTOPUP,Staff travelling expenses,20.00,20.00,.00,4112,Passenger Railways
